Workbook

Sheet No Debt Cap Method 1
B1: Period | G1: 0 | I1: 1 | J1: 2 | K1: 3 | L1: 4 | M1: 5 | N1: 6 | O1: 7 | P1: 8 | Q1: 9 | R1: 10 | S1: 11 | T1: 12 | U1: 13 | V1: 14 | W1: 15
B2: CFADS | I2: 200 | J2: 210 | K2: 240 | L2: 230 | M2: 220 | N2: 210 | O2: =N2*0.98 -> 205.8 | P2: =O2*0.98 -> 201.684 | Q2: 197.65032 | R2: 193.6973136 | S2: 189.8233673 | T2: 186.0269 | U2: 182.306362 | V2: 178.6602347 | W2: 175.08703
B3: DSCR Target | E3: 1.3
B4: Debt 1
C5: Percent | E5: 0.3
C6: Tenor | E6: 8
C7: Interest Rate | I7: 0.15 | J7: 0.15 | K7: 0.15 | L7: 0.15 | M7: 0.15 | N7: 0.15 | O7: 0.15 | P7: 0.15 | Q7: 0.15 | R7: 0.15 | S7: 0.15 | T7: 0.15 | U7: 0.15 | V7: 0.15 | W7: 0.15
B8: Debt 2
C9: Amount | E9: 0.45
C10: Tenor | E10: 12
C11: Interest Rate | I11: 0.1 | J11: 0.1 | K11: 0.1 | L11: 0.1 | M11: 0.1 | N11: 0.1 | O11: 0.1 | P11: 0.1 | Q11: 0.1 | R11: 0.1 | S11: 0.1 | T11: 0.1 | U11: 0.1 | V11: 0.1 | W11: 0.1
B12: Debt 3
C13: Amount | E13: 0.25
C14: Tenor | E14: 14
C15: Interest Rate | I15: 0.02 | J15: 0.02 | K15: 0.02 | L15: 0.02 | M15: 0.02 | N15: 0.02 | O15: 0.02 | P15: 0.02 | Q15: 0.02 | R15: 0.02 | S15: 0.02 | T15: 0.02 | U15: 0.02 | V15: 0.02 | W15: 0.02
A17: Sculpting Calculations
B18: Tenor Switch 1 | E18: =E6 -> 8 | I18: =I1<=$E18 -> TRUE | J18: TRUE | K18: TRUE | L18: TRUE | M18: TRUE | N18: TRUE | O18: TRUE | P18: TRUE | Q18: FALSE | R18: FALSE | S18: FALSE | T18: FALSE | U18: FALSE | V18: FALSE | W18: FALSE
B19: Tenor Switch 2 | E19: =E10 -> 12 | I19: =I1<=$E19 -> TRUE | J19: TRUE | K19: TRUE | L19: TRUE | M19: TRUE | N19: TRUE | O19: TRUE | P19: TRUE | Q19: TRUE | R19: TRUE | S19: TRUE | T19: TRUE | U19: FALSE | V19: FALSE | W19: FALSE
B20: Tenor Switch 3 | E20: =E14 -> 14 | I20: =I1<=$E$20 -> TRUE | J20: TRUE | K20: TRUE | L20: TRUE | M20: TRUE | N20: TRUE | O20: TRUE | P20: TRUE | Q20: TRUE | R20: TRUE | S20: TRUE | T20: TRUE | U20: TRUE | V20: TRUE | W20: FALSE
B22: Issue 1 Percent | E22: =E5 -> 0.3 | I22: =$E$22*I18 -> 0.3 | J22: =$E$22*J18 -> 0.3 | K22: 0.3 | L22: 0.3 | M22: 0.3 | N22: 0.3 | O22: 0.3 | P22: 0.3 | Q22: 0 | R22: 0 | S22: 0 | T22: 0 | U22: 0 | V22: 0 | W22: 0
B23: Issue 2 Percent | E23: =E9 -> 0.45 | I23: =$E$23*I19 -> 0.45 | J23: =$E$23*J19 -> 0.45 | K23: 0.45 | L23: 0.45 | M23: 0.45 | N23: 0.45 | O23: 0.45 | P23: 0.45 | Q23: 0.45 | R23: 0.45 | S23: 0.45 | T23: 0.45 | U23: 0 | V23: 0 | W23: 0
B24: Issue 3 Percent | E24: =E13 -> 0.25 | I24: =$E$24*I20 -> 0.25 | J24: =$E$24*J20 -> 0.25 | K24: 0.25 | L24: 0.25 | M24: 0.25 | N24: 0.25 | O24: 0.25 | P24: 0.25 | Q24: 0.25 | R24: 0.25 | S24: 0.25 | T24: 0.25 | U24: 0.25 | V24: 0.25 | W24: 0
B25: Total | I25: =SUM(I22:I24) -> 1 | J25: =SUM(J22:J24) -> 1 | K25: 1 | L25: 1 | M25: 1 | N25: 1 | O25: 1 | P25: 1 | Q25: 0.7 | R25: 0.7 | S25: 0.7 | T25: 0.7 | U25: 0.25 | V25: 0.25 | W25: 0
B27: Issue 1 Periodic Percent | I27: =IF(I$25,I22/I$25) -> 0.3 | J27: =IF(J$25,J22/J$25) -> 0.3 | K27: 0.3 | L27: 0.3 | M27: 0.3 | N27: 0.3 | O27: 0.3 | P27: 0.3 | Q27: 0 | R27: 0 | S27: 0 | T27: 0 | U27: 0 | V27: 0 | W27: FALSE
B28: Issue 2 Periodic Percent | I28: =IF(I$25,I23/I$25) -> 0.45 | J28: 0.45 | K28: 0.45 | L28: 0.45 | M28: 0.45 | N28: 0.45 | O28: 0.45 | P28: 0.45 | Q28: 0.6428571429 | R28: 0.6428571429 | S28: 0.6428571429 | T28: 0.6428571429 | U28: 0 | V28: 0 | W28: FALSE
B29: Issue 3 Periodic Percent | I29: 0.25 | J29: 0.25 | K29: 0.25 | L29: 0.25 | M29: 0.25 | N29: 0.25 | O29: 0.25 | P29: 0.25 | Q29: 0.3571428571 | R29: 0.3571428571 | S29: 0.3571428571 | T29: 0.3571428571 | U29: 1 | V29: 1 | W29: FALSE
B30: Total | I30: =SUM(I27:I29) -> 1 | J30: =SUM(J27:J29) -> 1 | K30: 1 | L30: 1 | M30: 1 | N30: 1 | O30: 1 | P30: 1 | Q30: 1 | R30: 1 | S30: 1 | T30: 1 | U30: 1 | V30: 1 | W30: 0
B32: Total CFADS | I32: =I2 -> 200 | J32: 210 | K32: 240 | L32: 230 | M32: 220 | N32: 210 | O32: 205.8 | P32: 201.684 | Q32: 197.65032 | R32: 193.6973136 | S32: 189.8233673 | T32: 186.0269 | U32: 182.306362 | V32: 178.6602347 | W32: 175.08703
B33: Total Sculpted Debt Service | E33: =E3 -> 1.3 | I33: =I32/$E$33 -> 153.8461538 | J33: =J32/$E$33 -> 161.5384615 | K33: 184.6153846 | L33: 176.9230769 | M33: 169.2307692 | N33: 161.5384615 | O33: 158.3076923 | P33: 155.1415385 | Q33: 152.0387077 | R33: 148.9979335 | S33: 146.0179749 | T33: 143.0976154 | U33: 140.2356631 | V33: 137.4309498 | W33: 134.6823308
B35: Issue 1: Percent | I35: =I27 -> 0.3 | J35: 0.3 | K35: 0.3 | L35: 0.3 | M35: 0.3 | N35: 0.3 | O35: 0.3 | P35: 0.3 | Q35: 0 | R35: 0 | S35: 0 | T35: 0 | U35: 0 | V35: 0 | W35: FALSE
B36: Allocated CFADS to Issue | I36: =I32*I35 -> 60 | J36: 63 | K36: 72 | L36: 69 | M36: 66 | N36: 63 | O36: 61.74 | P36: 60.5052 | Q36: 0 | R36: 0 | S36: 0 | T36: 0 | U36: 0 | V36: 0 | W36: 0
B37: Debt Service | E37: =E3 -> 1.3 | I37: =I36/$E$37 -> 46.15384615 | J37: =J36/$E$37 -> 48.46153846 | K37: 55.38461538 | L37: 53.07692308 | M37: 50.76923077 | N37: 48.46153846 | O37: 47.49230769 | P37: 46.54246154 | Q37: 0 | R37: 0 | S37: 0 | T37: 0 | U37: 0 | V37: 0 | W37: 0
B38: PV Debt Service | E38: =NPV(F38,I37:W37) -> 222.802323 | F38: =I7 -> 0.15
B40: Issue 2: Percent | I40: =I28 -> 0.45 | J40: 0.45 | K40: 0.45 | L40: 0.45 | M40: 0.45 | N40: 0.45 | O40: 0.45 | P40: 0.45 | Q40: 0.6428571429 | R40: 0.6428571429 | S40: 0.6428571429 | T40: 0.6428571429 | U40: 0 | V40: 0 | W40: FALSE
B41: Allocated CFADS to Issue | I41: =I32*I40 -> 90 | J41: 94.5 | K41: 108 | L41: 103.5 | M41: 99 | N41: 94.5 | O41: 92.61 | P41: 90.7578 | Q41: 127.06092 | R41: 124.5197016 | S41: 122.0293076 | T41: 119.5887214 | U41: 0 | V41: 0 | W41: 0
B42: Debt Service | E42: =E3 -> 1.3 | I42: =I41/$E$42 -> 69.23076923 | J42: =J41/$E$42 -> 72.69230769 | K42: 83.07692308 | L42: 79.61538462 | M42: 76.15384615 | N42: 72.69230769 | O42: 71.23846154 | P42: 69.81369231 | Q42: 97.73916923 | R42: 95.78438585 | S42: 93.86869813 | T42: 91.99132417 | U42: 0 | V42: 0 | W42: 0
B43: PV Debt Service | E43: =NPV(F43,I42:W42) -> 537.8439612 | F43: =I11 -> 0.1
B45: Issue 3: Percent | I45: =I29 -> 0.25 | J45: 0.25 | K45: 0.25 | L45: 0.25 | M45: 0.25 | N45: 0.25 | O45: 0.25 | P45: 0.25 | Q45: 0.3571428571 | R45: 0.3571428571 | S45: 0.3571428571 | T45: 0.3571428571 | U45: 1 | V45: 1 | W45: FALSE
B46: Allocated CFADS to Issue | I46: =I45*I32 -> 50 | J46: 52.5 | K46: 60 | L46: 57.5 | M46: 55 | N46: 52.5 | O46: 51.45 | P46: 50.421 | Q46: 70.5894 | R46: 69.177612 | S46: 67.79405976 | T46: 66.43817856 | U46: 182.306362 | V46: 178.6602347 | W46: 0
B47: Debt Service | E47: =E42 -> 1.3 | I47: =I46/$E$47 -> 38.46153846 | J47: =J46/$E$47 -> 40.38461538 | K47: 46.15384615 | L47: 44.23076923 | M47: 42.30769231 | N47: 40.38461538 | O47: 39.57692308 | P47: 38.78538462 | Q47: 54.29953846 | R47: 53.21354769 | S47: 52.14927674 | T47: 51.1062912 | U47: 140.2356631 | V47: 137.4309498 | W47: 0
B48: PV Debt Service | E48: =NPV(F48,I47:W47) -> 686.5048037 | F48: =I15 -> 0.02
A50: Check
B51: CFADS | I51: =I2 -> 200 | J51: 210 | K51: 240 | L51: 230 | M51: 220 | N51: 210 | O51: 205.8 | P51: 201.684 | Q51: 197.65032 | R51: 193.6973136 | S51: 189.8233673 | T51: 186.0269 | U51: 182.306362 | V51: 178.6602347 | W51: 175.08703
B53: Debt Service 1 | I53: =I37 -> 46.15384615 | J53: 48.46153846 | K53: 55.38461538 | L53: 53.07692308 | M53: 50.76923077 | N53: 48.46153846 | O53: 47.49230769 | P53: 46.54246154 | Q53: 0 | R53: 0 | S53: 0 | T53: 0 | U53: 0 | V53: 0 | W53: 0
B54: Debt Service 2 | I54: =I42 -> 69.23076923 | J54: 72.69230769 | K54: 83.07692308 | L54: 79.61538462 | M54: 76.15384615 | N54: 72.69230769 | O54: 71.23846154 | P54: 69.81369231 | Q54: 97.73916923 | R54: 95.78438585 | S54: 93.86869813 | T54: 91.99132417 | U54: 0 | V54: 0 | W54: 0
B55: Debt Service 3 | I55: =I47 -> 38.46153846 | J55: 40.38461538 | K55: 46.15384615 | L55: 44.23076923 | M55: 42.30769231 | N55: 40.38461538 | O55: 39.57692308 | P55: 38.78538462 | Q55: 54.29953846 | R55: 53.21354769 | S55: 52.14927674 | T55: 51.1062912 | U55: 140.2356631 | V55: 137.4309498 | W55: 0
C56: Total Debt Service | I56: =SUM(I53:I55) -> 153.8461538 | J56: 161.5384615 | K56: 184.6153846 | L56: 176.9230769 | M56: 169.2307692 | N56: 161.5384615 | O56: 158.3076923 | P56: 155.1415385 | Q56: 152.0387077 | R56: 148.9979335 | S56: 146.0179749 | T56: 143.0976154 | U56: 140.2356631 | V56: 137.4309498 | W56: 0
B58: DSCR | I58: =IF(I56,I51/I56) -> 1.3 | J58: 1.3 | K58: 1.3 | L58: 1.3 | M58: 1.3 | N58: 1.3 | O58: 1.3 | P58: 1.3 | Q58: 1.3 | R58: 1.3 | S58: 1.3 | T58: 1.3 | U58: 1.3 | V58: 1.3 | W58: FALSE
B60: Debt Issues | F60: Pct Tot | G60: Pct Sculpt | H60: Target
C61: Debt 1 | E61: =E38 -> 222.802323 | F61: =E61/$E$64 -> 0.1539592686 | G61: =E61/$E$65 -> 0.1539592686 | H61: =E5 -> 0.3
C62: Debt 2 | E62: =E43 -> 537.8439612 | F62: =E62/$E$64 -> 0.3716570894 | G62: =E62/$E$65 -> 0.3716570894 | H62: =E9 -> 0.45
C63: Debt 3 | E63: =E48 -> 686.5048037 | F63: =E63/$E$64 -> 0.4743836421 | G63: =E63/$E$65 -> 0.4743836421 | H63: =E24 -> 0.25
D64: Total | E64: =SUM(E61:E63) -> 1447.151088 | F64: =E64/$E$64 -> 1
D65: Sculpted | E65: =SUM(E61:E63) -> 1447.151088
B97: CFADS | I97: =I2 -> 200 | J97: 210 | K97: 240 | L97: 230 | M97: 220 | N97: 210 | O97: 205.8 | P97: 201.684 | Q97: 197.65032 | R97: 193.6973136 | S97: 189.8233673 | T97: 186.0269 | U97: 182.306362 | V97: 178.6602347 | W97: 175.08703
B98: DSCR | E98: =E3 -> 1.3 | I98: =$E98 -> 1.3 | J98: =$E98 -> 1.3 | K98: 1.3 | L98: 1.3 | M98: 1.3 | N98: 1.3 | O98: 1.3 | P98: 1.3 | Q98: 1.3 | R98: 1.3 | S98: 1.3 | T98: 1.3 | U98: 1.3 | V98: 1.3 | W98: 1.3
B99: Debt Service | I99: =I97/I98 -> 153.8461538 | J99: =J97/J98 -> 161.5384615 | K99: 184.6153846 | L99: 176.9230769 | M99: 169.2307692 | N99: 161.5384615 | O99: 158.3076923 | P99: 155.1415385 | Q99: 152.0387077 | R99: 148.9979335 | S99: 146.0179749 | T99: 143.0976154 | U99: 140.2356631 | V99: 137.4309498 | W99: 134.6823308
B101: Debt Service 1 | I101: =I99*I18 -> 153.8461538 | J101: 161.5384615 | K101: 184.6153846 | L101: 176.9230769 | M101: 169.2307692 | N101: 161.5384615 | O101: 158.3076923 | P101: 155.1415385 | Q101: 0 | R101: 0 | S101: 0 | T101: 0 | U101: 0 | V101: 0 | W101: 0
B102: Compound Interest | G102: 1 | I102: =G102*(1+I7) -> 1.15 | J102: =I102*(1+J7) -> 1.3225 | K102: 1.520875 | L102: 1.74900625 | M102: 2.011357187 | N102: 2.313060766 | O102: 2.66001988 | P102: 3.059022863 | Q102: 3.517876292 | R102: 4.045557736 | S102: 4.652391396 | T102: 5.350250105 | U102: 6.152787621 | V102: 7.075705764 | W102: 8.137061629
B103: PV Before Adjsutment | G103: =SUMPRODUCT(I101:W101/I102:W102) -> 742.67441
B105: Debt Service 2 | I105: =I99*I19 -> 153.8461538 | J105: 161.5384615 | K105: 184.6153846 | L105: 176.9230769 | M105: 169.2307692 | N105: 161.5384615 | O105: 158.3076923 | P105: 155.1415385 | Q105: 152.0387077 | R105: 148.9979335 | S105: 146.0179749 | T105: 143.0976154 | U105: 0 | V105: 0 | W105: 0
B106: Compound Interest | G106: 1 | I106: =G106*(1+I11) -> 1.1 | J106: =I106*(1+J11) -> 1.21 | K106: 1.331 | L106: 1.4641 | M106: 1.61051 | N106: 1.771561 | O106: 1.9487171 | P106: 2.14358881 | Q106: 2.357947691 | R106: 2.59374246 | S106: 2.853116706 | T106: 3.138428377 | U106: 3.452271214 | V106: 3.797498336 | W106: 4.177248169
B107: PV Before Adjustment | G107: =SUMPRODUCT(I105:W105/I106:W106) -> 1101.481034
B109: Allocated
C110: Total | G110: =G107+G103 -> 1844.155444
C111: Debt 1 | G111: =G103/G110 -> 0.4027179012 | I111: =I101*$G111 -> 61.95660019 | J111: =J101*$G111 -> 65.0544302 | K111: 74.34792023 | L111: 71.25009022 | M111: 68.15226021 | N111: 65.0544302 | O111: 63.7533416 | P111: 62.47827476 | Q111: 0 | R111: 0 | S111: 0 | T111: 0 | U111: 0 | V111: 0 | W111: 0
C112: Debt 2 | G112: =G107/G110 -> 0.5972820988 | I112: =I105*$G112 -> 91.88955366 | J112: =J105*$G112 -> 96.48403134 | K112: 110.2674644 | L112: 105.6729867 | M112: 101.078509 | N112: 96.48403134 | O112: 94.55435071 | P112: 92.6632637 | Q112: 90.80999842 | R112: 88.99379846 | S112: 87.21392249 | T112: 85.46964404 | U112: 0 | V112: 0 | W112: 0
C113: Total | I113: =SUM(I111:I112) -> 153.8461538 | J113: =SUM(J111:J112) -> 161.5384615 | K113: 184.6153846 | L113: 176.9230769 | M113: 169.2307692 | N113: 161.5384615 | O113: 158.3076923 | P113: 155.1415385 | Q113: 90.80999842 | R113: 88.99379846 | S113: 87.21392249 | T113: 85.46964404 | U113: 0 | V113: 0 | W113: 0
I114: =IF(I113,I111/I113) -> 0.4027179012 | J114: =IF(J113,J111/J113) -> 0.4027179012 | K114: 0.4027179012 | L114: 0.4027179012 | M114: 0.4027179012 | N114: 0.4027179012 | O114: 0.4027179012 | P114: 0.4027179012 | Q114: 0 | R114: 0 | S114: 0 | T114: 0 | U114: FALSE | V114: FALSE | W114: FALSE
B115: Amounts
C116: Debt 1 | G116: =SUMPRODUCT(I111:W111/I102:W102) -> 299.0882797 | H116: =G116/I111 -> 4.827383665 | I116: =H116/H118 -> 0.4027179012 | L116: 0.5923 | M116: X | R116: =I117 -> 0.5972820988 | S116: X
C117: Debt 2 | G117: =SUMPRODUCT(I112:W112/I106:W106) -> 657.8949038 | H117: =G117/I112 -> 7.159626721 | I117: =H117/H118 -> 0.5972820988 | L117: =G116 -> 299.0882797 | M117: =G133 -> 287.094955 | O117: =M117*L116 -> 170.0463419 | P117: =O117/L117 -> 0.5685489985 | R117: =G117 -> 657.8949038 | S117: =M117 -> 287.094955
G118: =SUM(G116:G117) -> 956.9831835 | H118: =SUM(H116:H117) -> 11.98701039
B119: Check
C120: Debt 1 | G120: =IRR(H120:W120) -> 0.15 | H120: =-G116 -> -299.0882797 | I120: =I111 -> 61.95660019 | J120: =J111 -> 65.0544302 | K120: 74.34792023 | L120: 71.25009022 | M120: 68.15226021 | N120: 65.0544302 | O120: 63.7533416 | P120: 62.47827476 | Q120: 0 | R120: 0 | S120: 0 | T120: 0 | U120: 0 | V120: 0 | W120: 0
C121: Debt 2 | G121: =IRR(H121:W121) -> 0.1 | H121: =-G117 -> -657.8949038 | I121: =I112 -> 91.88955366 | J121: =J112 -> 96.48403134 | K121: 110.2674644 | L121: 105.6729867 | M121: 101.078509 | N121: 96.48403134 | O121: 94.55435071 | P121: 92.6632637 | Q121: 90.80999842 | R121: 88.99379846 | S121: 87.21392249 | T121: 85.46964404 | U121: 0 | V121: 0 | W121: 0
C122: Total | G122: =IRR(H122:W122) -> 0.1133149582 | H122: =SUM(H120:H121) -> -956.9831835 | I122: =SUM(I120:I121) -> 153.8461538 | J122: 161.5384615 | K122: 184.6153846 | L122: 176.9230769 | M122: 169.2307692 | N122: 161.5384615 | O122: 158.3076923 | P122: 155.1415385 | Q122: 90.80999842 | R122: 88.99379846 | S122: 87.21392249 | T122: 85.46964404 | U122: 0 | V122: 0 | W122: 0
B124: PV of CFADS | I124: =I97*I18 -> 200 | J124: 210 | K124: 240 | L124: 230 | M124: 220 | N124: 210 | O124: 205.8 | P124: 201.684 | Q124: 0 | R124: 0 | S124: 0 | T124: 0 | U124: 0 | V124: 0 | W124: 0
C125: PV for 1 | G125: =G120 -> 0.15 | H125: =NPV(G125,I124:W124) -> 965.476733 | I125: =H125/G133 -> 3.362917794
C126: PV for 2 | G126: =G121 -> 0.1 | H126: =NPV(G126,I124:W124) -> 1147.617779 | I126: =H126/G133 -> 3.997345684
C127: PV for Both | G127: =G122 -> 0.1133149582 | H127: =NPV(G127,I124:W124) -> 1094.146902 | I127: =H127/G131 -> 1.143329288
C131: PV | G131: =NPV(G122,I122:W122) -> 956.9831835
E133: =E5 -> 0.3 | G133: =G131*E133 -> 287.094955 | I133: 0.12 | J133: =I133 -> 0.12 | K133: =J133 -> 0.12 | L133: 0.12 | M133: 0.12 | N133: 0.12 | O133: 0.12 | P133: 0.12 | Q133: 0.12 | R133: 0.12 | S133: 0.12 | T133: 0.12 | U133: 0.12 | V133: 0.12 | W133: 0.12
G134: =NPV(G120,I134:W134) -> 201.4500547 | I134: =I133*$G133 -> 34.4513946 | J134: =J133*$G133 -> 34.4513946 | K134: 34.4513946 | L134: 34.4513946 | M134: 34.4513946 | N134: 34.4513946 | O134: 34.4513946 | P134: 34.4513946 | Q134: 34.4513946 | R134: 34.4513946 | S134: 34.4513946 | T134: 34.4513946 | U134: 34.4513946 | V134: 34.4513946 | W134: 34.4513946
G136: =E137*G131 -> 287.094955
E137: =E133 -> 0.3 | G137: =NPV(G121,I137:W137) -> 948.4940075 | I137: =I2/I98-I134 -> 119.3947592 | J137: 127.0870669 | K137: 150.16399 | L137: 142.4716823 | M137: 134.7793746 | N137: 127.0870669 | O137: 123.8562977 | P137: 120.6901439 | Q137: 117.5873131 | R137: 114.5465389 | S137: 111.5665803 | T137: 108.6462208 | U137: 105.7842685 | V137: 102.9795552 | W137: 100.2309362
G139: =NPV(G122,I139:W139) -> 1126.982643 | I139: =I134+I137 -> 153.8461538 | J139: =J134+J137 -> 161.5384615 | K139: 184.6153846 | L139: 176.9230769 | M139: 169.2307692 | N139: 161.5384615 | O139: 158.3076923 | P139: 155.1415385 | Q139: 152.0387077 | R139: 148.9979335 | S139: 146.0179749 | T139: 143.0976154 | U139: 140.2356631 | V139: 137.4309498 | W139: 134.6823308
D141: CFADS | I141: =I2 -> 200 | J141: 210 | K141: 240 | L141: 230 | M141: 220 | N141: 210 | O141: 205.8 | P141: 201.684 | Q141: 197.65032 | R141: 193.6973136 | S141: 189.8233673 | T141: 186.0269 | U141: 182.306362 | V141: 178.6602347 | W141: 175.08703
D143: CFADS 1 | G143: =E6 -> 8 | I143: =(I1<=$G$143)*I141 -> 200 | J143: 210 | K143: 240 | L143: 230 | M143: 220 | N143: 210 | O143: 205.8 | P143: 201.684 | Q143: 0 | R143: 0 | S143: 0 | T143: 0 | U143: 0 | V143: 0 | W143: 0
D144: CFADS 2 | G144: =E10 -> 12 | I144: =(I1<=$G$144)*I141 -> 200 | J144: 210 | K144: 240 | L144: 230 | M144: 220 | N144: 210 | O144: 205.8 | P144: 201.684 | Q144: 197.65032 | R144: 193.6973136 | S144: 189.8233673 | T144: 186.0269 | U144: 0 | V144: 0 | W144: 0
D147: Debt Service 1 | E147: =H147/(H147+H148) -> 0.3563162995 | G147: 2.977201654 | H147: =NPV(G125,I147:W147) -> 324.2900029 | I147: =I143/$G147 -> 67.17717617 | J147: =J143/$G147 -> 70.53603498 | K147: 80.61261141 | L147: 77.2537526 | M147: 73.89489379 | N147: 70.53603498 | O147: 69.12531428 | P147: 67.742808 | Q147: 0 | R147: 0 | S147: 0 | T147: 0 | U147: 0 | V147: 0 | W147: 0
D148: Debt Service 2 | E148: =E9/(E5+E13) -> 0.8181818182 | H148: =NPV(G126,I148:W148) -> 585.828348 | I148: =(I144/$G$150-I147)*$E$148 -> 70.91098173 | J148: 74.45653082 | K148: 85.09317808 | L148: 81.54762899 | M148: 78.0020799 | N148: 74.45653082 | O148: 72.9674002 | P148: 71.5080522 | Q148: 124.3953063 | R148: 121.9074002 | S148: 119.4692522 | T148: 117.0798671 | U148: 0 | V148: 0 | W148: 0
E149: =E13/(E5+E9) -> 0.3333333333 | H149: =NPV(I15,I149:W149) -> 72.78856641 | I149: =(I143-I147-I148)/$G$150 -> 47.62449392 | J149: =(J143-J147-J148)/$G$150 -> 50.00571861 | K149: 57.1493927 | L149: 54.76816801 | M149: 52.38694331 | N149: 50.00571861 | O149: 49.00560424 | P149: 48.02549216 | Q149: -95.68869715 | R149: -93.77492321 | S149: -91.89942474 | T149: -90.06143625 | U149: 0 | V149: 0 | W149: 0
G150: =E3 -> 1.3 | H150: =NPV(G127,I150:W150) -> 1126.982643 | I150: =I$141/$G150 -> 153.8461538 | J150: =J$141/$G150 -> 161.5384615 | K150: 184.6153846 | L150: 176.9230769 | M150: 169.2307692 | N150: 161.5384615 | O150: 158.3076923 | P150: 155.1415385 | Q150: 152.0387077 | R150: 148.9979335 | S150: 146.0179749 | T150: 143.0976154 | U150: 140.2356631 | V150: 137.4309498 | W150: 134.6823308
H152: =(H147+H148)*E149-H149 -> 230.5842172 | I152: =I147+I148 -> 138.0881579 | J152: =J147+J148 -> 144.9925658 | K152: 165.7057895 | L152: 158.8013816 | M152: 151.8969737 | N152: 144.9925658 | O152: 142.0927145 | P152: 139.2508602 | Q152: 124.3953063 | R152: 121.9074002 | S152: 119.4692522 | T152: 117.0798671 | U152: 0 | V152: 0 | W152: 0
I153: =I141/I152 -> 1.448350119 | J153: =J141/J152 -> 1.448350119 | K153: 1.448350119 | L153: 1.448350119 | M153: 1.448350119 | N153: 1.448350119 | O153: 1.448350119 | P153: 1.448350119 | Q153: 1.588888889 | R153: 1.588888889 | S153: 1.588888889 | T153: 1.588888889
I156: 4 | J156: 2
I170: dscr =cfads/ds
I172: ds =cfads/dscr
I173: ds + other =cfads/dscr
I174: ds =cfads/dscr - other
H176: Weighted LLCR
I177: LLCR 1 =At Rate 1 =CFADS at Rate 1/Given Debt
I178: LLCR 2 =At Rate 2 =CFADS at Rate 2/Given Debt
I179: LLCR Average
H180: Compute 1

Sheet Only Interest Rate
D1: Period | G1: 0 | I1: 1 | J1: 2 | K1: 3 | L1: 4 | M1: 5 | N1: 6 | O1: 7 | P1: 8 | Q1: 9 | R1: 10 | S1: 11 | T1: 12 | U1: 13 | V1: 14 | W1: 15
B2: CFADS | I2: 200 | J2: 210 | K2: 240 | L2: 230 | M2: 220 | N2: 210 | O2: =N2*0.98 -> 205.8 | P2: =O2*0.98 -> 201.684 | Q2: 197.65032 | R2: 193.6973136 | S2: 189.8233673 | T2: 186.0269 | U2: 182.306362 | V2: 178.6602347 | W2: 175.08703
B3: DSCR Target | E3: 1.3
B4: Non-Sculpted Debt Service | I4: 100 | J4: =I4 -> 100 | K4: =J4 -> 100 | L4: =K4 -> 100 | M4: =L4 -> 100 | N4: =M4 -> 100
B5: Interest Rate | E5: 0
B6: NPV of Debt Service | E6: =NPV(E5,I4:W4) -> 600 | F6: DSCR = CFADS/(SDS+ODS)
F7: SDS = CFADS/DSCR - ODS
B9: Debt 1
C10: Percent | E10: 0.3
C11: Tenor | E11: 10
C12: Interest Rate | I12: 0.02 | J12: =I12 -> 0.02 | K12: =J12 -> 0.02 | L12: 0.02 | M12: 0.02 | N12: 0.02 | O12: 0.02 | P12: 0.02 | Q12: 0.02 | R12: 0.02 | S12: 0.02 | T12: 0.02 | U12: 0.02 | V12: 0.02 | W12: 0.02
B13: Debt 2
C14: Amount | E14: 0.45
C15: Tenor | E15: 10
C16: Interest Rate | I16: 0.1 | J16: 0.1 | K16: 0.1 | L16: 0.1 | M16: 0.1 | N16: 0.1 | O16: 0.1 | P16: 0.1 | Q16: 0.1 | R16: 0.1 | S16: 0.1 | T16: 0.1 | U16: 0.1 | V16: 0.1 | W16: 0.1
B17: Debt 3
C18: Amount | E18: 0.25
C19: Tenor | E19: 10
C20: Interest Rate | I20: 0.15 | J20: =I20 -> 0.15 | K20: =J20 -> 0.15 | L20: 0.15 | M20: 0.15 | N20: 0.15 | O20: 0.15 | P20: 0.15 | Q20: 0.15 | R20: 0.15 | S20: 0.15 | T20: 0.15 | U20: 0.15 | V20: 0.15 | W20: 0.15
A22: Sculpting Calculations
B23: Tenor Switch 1 | E23: =E11 -> 10 | I23: =I1<=$E23 -> TRUE | J23: TRUE | K23: TRUE | L23: TRUE | M23: TRUE | N23: TRUE | O23: TRUE | P23: TRUE | Q23: TRUE | R23: TRUE | S23: FALSE | T23: FALSE | U23: FALSE | V23: FALSE | W23: FALSE
B24: Tenor Switch 2 | E24: =E15 -> 10 | I24: =I1<=$E24 -> TRUE | J24: TRUE | K24: TRUE | L24: TRUE | M24: TRUE | N24: TRUE | O24: TRUE | P24: TRUE | Q24: TRUE | R24: TRUE | S24: FALSE | T24: FALSE | U24: FALSE | V24: FALSE | W24: FALSE
B25: Tenor Switch 3 | E25: =E19 -> 10 | I25: =I1<=$E$25 -> TRUE | J25: TRUE | K25: TRUE | L25: TRUE | M25: TRUE | N25: TRUE | O25: TRUE | P25: TRUE | Q25: TRUE | R25: TRUE | S25: FALSE | T25: FALSE | U25: FALSE | V25: FALSE | W25: FALSE
B27: Issue 1 Percent | E27: =E10 -> 0.3 | I27: =$E$27*I23 -> 0.3 | J27: =$E$27*J23 -> 0.3 | K27: 0.3 | L27: 0.3 | M27: 0.3 | N27: 0.3 | O27: 0.3 | P27: 0.3 | Q27: 0.3 | R27: 0.3 | S27: 0 | T27: 0 | U27: 0 | V27: 0 | W27: 0
B28: Issue 2 Percent | E28: =E14 -> 0.45 | I28: =$E$28*I24 -> 0.45 | J28: =$E$28*J24 -> 0.45 | K28: 0.45 | L28: 0.45 | M28: 0.45 | N28: 0.45 | O28: 0.45 | P28: 0.45 | Q28: 0.45 | R28: 0.45 | S28: 0 | T28: 0 | U28: 0 | V28: 0 | W28: 0
B29: Issue 3 Percent | E29: =E18 -> 0.25 | I29: =$E$29*I25 -> 0.25 | J29: =$E$29*J25 -> 0.25 | K29: 0.25 | L29: 0.25 | M29: 0.25 | N29: 0.25 | O29: 0.25 | P29: 0.25 | Q29: 0.25 | R29: 0.25 | S29: 0 | T29: 0 | U29: 0 | V29: 0 | W29: 0
B30: Total | I30: =SUM(I27:I29) -> 1 | J30: =SUM(J27:J29) -> 1 | K30: 1 | L30: 1 | M30: 1 | N30: 1 | O30: 1 | P30: 1 | Q30: 1 | R30: 1 | S30: 0 | T30: 0 | U30: 0 | V30: 0 | W30: 0
B32: Issue 1 Periodic Percent | I32: =IF(I$30,I27/I$30) -> 0.3 | J32: =IF(J$30,J27/J$30) -> 0.3 | K32: 0.3 | L32: 0.3 | M32: 0.3 | N32: 0.3 | O32: 0.3 | P32: 0.3 | Q32: 0.3 | R32: 0.3 | S32: FALSE | T32: FALSE | U32: FALSE | V32: FALSE | W32: FALSE
B33: Issue 2 Periodic Percent | I33: =IF(I$30,I28/I$30) -> 0.45 | J33: 0.45 | K33: 0.45 | L33: 0.45 | M33: 0.45 | N33: 0.45 | O33: 0.45 | P33: 0.45 | Q33: 0.45 | R33: 0.45 | S33: FALSE | T33: FALSE | U33: FALSE | V33: FALSE | W33: FALSE
B34: Issue 3 Periodic Percent | I34: 0.25 | J34: 0.25 | K34: 0.25 | L34: 0.25 | M34: 0.25 | N34: 0.25 | O34: 0.25 | P34: 0.25 | Q34: 0.25 | R34: 0.25 | S34: FALSE | T34: FALSE | U34: FALSE | V34: FALSE | W34: FALSE
B35: Total | I35: =SUM(I32:I34) -> 1 | J35: =SUM(J32:J34) -> 1 | K35: 1 | L35: 1 | M35: 1 | N35: 1 | O35: 1 | P35: 1 | Q35: 1 | R35: 1 | S35: 0 | T35: 0 | U35: 0 | V35: 0 | W35: 0
B37: Total CFADS | I37: =I2 -> 200 | J37: 210 | K37: 240 | L37: 230 | M37: 220 | N37: 210 | O37: 205.8 | P37: 201.684 | Q37: 197.65032 | R37: 193.6973136 | S37: 189.8233673 | T37: 186.0269 | U37: 182.306362 | V37: 178.6602347 | W37: 175.08703
B38: Other Debt Service | I38: =I4 -> 100 | J38: 100 | K38: 100 | L38: 100 | M38: 100 | N38: 100 | O38: 0 | P38: 0 | Q38: 0 | R38: 0 | S38: 0 | T38: 0 | U38: 0 | V38: 0 | W38: 0
B39: Total Sculpted Debt Service | E39: =E3 -> 1.3 | I39: =I37/$E$39-I38 -> 53.84615385 | J39: =J37/$E$39-J38 -> 61.53846154 | K39: 84.61538462 | L39: 76.92307692 | M39: 69.23076923 | N39: 61.53846154 | O39: 158.3076923 | P39: 155.1415385 | Q39: 152.0387077 | R39: 148.9979335 | S39: 146.0179749 | T39: 143.0976154 | U39: 140.2356631 | V39: 137.4309498 | W39: 134.6823308
B41: Issue 1: Percent | I41: =I32 -> 0.3 | J41: =J32 -> 0.3 | K41: 0.3 | L41: 0.3 | M41: 0.3 | N41: 0.3 | O41: 0.3 | P41: 0.3 | Q41: 0.3 | R41: 0.3 | S41: FALSE | T41: FALSE | U41: FALSE | V41: FALSE | W41: FALSE
B42: Debt Service | E42: =E3 -> 1.3 | I42: =I39*I41 -> 16.15384615 | J42: =J39*J41 -> 18.46153846 | K42: 25.38461538 | L42: 23.07692308 | M42: 20.76923077 | N42: 18.46153846 | O42: 47.49230769 | P42: 46.54246154 | Q42: 45.61161231 | R42: 44.69938006 | S42: 0 | T42: 0 | U42: 0 | V42: 0 | W42: 0
B43: PV Debt Service | E43: =NPV(F43,I42:W42) -> 269.9296803 | F43: =I12 -> 0.02
B46: Issue 2: Percent | I46: =I33 -> 0.45 | J46: 0.45 | K46: 0.45 | L46: 0.45 | M46: 0.45 | N46: 0.45 | O46: 0.45 | P46: 0.45 | Q46: 0.45 | R46: 0.45 | S46: FALSE | T46: FALSE | U46: FALSE | V46: FALSE | W46: FALSE
B47: Debt Service | E47: =E3 -> 1.3 | I47: =I46*I39 -> 24.23076923 | J47: =J46*J39 -> 27.69230769 | K47: 38.07692308 | L47: 34.61538462 | M47: 31.15384615 | N47: 27.69230769 | O47: 71.23846154 | P47: 69.81369231 | Q47: 68.41741846 | R47: 67.04907009 | S47: 0 | T47: 0 | U47: 0 | V47: 0 | W47: 0
B48: PV Debt Service | E48: =NPV(F48,I47:W47) -> 256.13156 | F48: =I16 -> 0.1
B50: Issue 3: Percent | I50: =I34 -> 0.25 | J50: 0.25 | K50: 0.25 | L50: 0.25 | M50: 0.25 | N50: 0.25 | O50: 0.25 | P50: 0.25 | Q50: 0.25 | R50: 0.25 | S50: FALSE | T50: FALSE | U50: FALSE | V50: FALSE | W50: FALSE
B51: Debt Service | E51: =E47 -> 1.3 | I51: =I50*I39 -> 13.46153846 | J51: =J50*J39 -> 15.38461538 | K51: 21.15384615 | L51: 19.23076923 | M51: 17.30769231 | N51: 15.38461538 | O51: 39.57692308 | P51: 38.78538462 | Q51: 38.00967692 | R51: 37.24948338 | S51: 0 | T51: 0 | U51: 0 | V51: 0 | W51: 0
B52: PV Debt Service | E52: =NPV(F52,I51:W51) -> 111.0687602 | F52: =I20 -> 0.15
A54: Check
B55: CFADS | I55: =I2 -> 200 | J55: 210 | K55: 240 | L55: 230 | M55: 220 | N55: 210 | O55: 205.8 | P55: 201.684 | Q55: 197.65032 | R55: 193.6973136 | S55: 189.8233673 | T55: 186.0269 | U55: 182.306362 | V55: 178.6602347 | W55: 175.08703
B57: Debt Service Other | I57: =I4 -> 100 | J57: 100 | K57: 100 | L57: 100 | M57: 100 | N57: 100 | O57: 0 | P57: 0 | Q57: 0 | R57: 0 | S57: 0 | T57: 0 | U57: 0 | V57: 0 | W57: 0
B58: Debt Service 1 | I58: =I42 -> 16.15384615 | J58: 18.46153846 | K58: 25.38461538 | L58: 23.07692308 | M58: 20.76923077 | N58: 18.46153846 | O58: 47.49230769 | P58: 46.54246154 | Q58: 45.61161231 | R58: 44.69938006 | S58: 0 | T58: 0 | U58: 0 | V58: 0 | W58: 0
B59: Debt Service 2 | I59: =I47 -> 24.23076923 | J59: 27.69230769 | K59: 38.07692308 | L59: 34.61538462 | M59: 31.15384615 | N59: 27.69230769 | O59: 71.23846154 | P59: 69.81369231 | Q59: 68.41741846 | R59: 67.04907009 | S59: 0 | T59: 0 | U59: 0 | V59: 0 | W59: 0
B60: Debt Service 3 | I60: =I51 -> 13.46153846 | J60: =J51 -> 15.38461538 | K60: 21.15384615 | L60: 19.23076923 | M60: 17.30769231 | N60: 15.38461538 | O60: 39.57692308 | P60: 38.78538462 | Q60: 38.00967692 | R60: 37.24948338 | S60: 0 | T60: 0 | U60: 0 | V60: 0 | W60: 0
C61: Total Debt Service | I61: =SUM(I57:I60) -> 153.8461538 | J61: 161.5384615 | K61: 184.6153846 | L61: 176.9230769 | M61: 169.2307692 | N61: 161.5384615 | O61: 158.3076923 | P61: 155.1415385 | Q61: 152.0387077 | R61: 148.9979335 | S61: 0 | T61: 0 | U61: 0 | V61: 0 | W61: 0
B63: DSCR | I63: =IF(I61,I55/I61) -> 1.3 | J63: =IF(J61,J55/J61) -> 1.3 | K63: 1.3 | L63: 1.3 | M63: 1.3 | N63: 1.3 | O63: 1.3 | P63: 1.3 | Q63: 1.3 | R63: 1.3 | S63: FALSE | T63: FALSE | U63: FALSE | V63: FALSE | W63: FALSE
B65: Debt Issues | F65: Pct Tot | G65: Pct Sculpt | H65: Target
C66: Other Debt | E66: =E6 -> 600 | F66: =E66/$E$70 -> 0.4849934928
C67: Debt 1 | E67: =E43 -> 269.9296803 | F67: =E67/$E$70 -> 0.2181902307 | G67: =E67/$E$71 -> 0.4236649978 | H67: =E10 -> 0.3
C68: Debt 2 | E68: =E48 -> 256.13156 | F68: =E68/$E$70 -> 0.2070368999 | G68: =E68/$E$71 -> 0.4020083183 | H68: =E14 -> 0.45
C69: Debt 3 | E69: =E52 -> 111.0687602 | F69: =E69/$E$70 -> 0.08977937658 | G69: =E69/$E$71 -> 0.1743266839 | H69: =E29 -> 0.25
D70: Total | E70: =SUM(E66:E69) -> 1237.13 | F70: =E70/$E$70 -> 1
D71: Sculpted | E71: =SUM(E67:E69) -> 637.1300005
B103: CFADS | I103: =I2 -> 200 | J103: 210 | K103: 240 | L103: 230 | M103: 220 | N103: 210 | O103: 205.8 | P103: 201.684 | Q103: 197.65032 | R103: 193.6973136 | S103: 189.8233673 | T103: 186.0269 | U103: 182.306362 | V103: 178.6602347 | W103: 175.08703
B104: DSCR | E104: =E3 -> 1.3 | I104: =$E104 -> 1.3 | J104: =$E104 -> 1.3 | K104: 1.3 | L104: 1.3 | M104: 1.3 | N104: 1.3 | O104: 1.3 | P104: 1.3 | Q104: 1.3 | R104: 1.3 | S104: 1.3 | T104: 1.3 | U104: 1.3 | V104: 1.3 | W104: 1.3
B105: Debt Service | I105: =I103/I104 -> 153.8461538 | J105: =J103/J104 -> 161.5384615 | K105: 184.6153846 | L105: 176.9230769 | M105: 169.2307692 | N105: 161.5384615 | O105: 158.3076923 | P105: 155.1415385 | Q105: 152.0387077 | R105: 148.9979335 | S105: 146.0179749 | T105: 143.0976154 | U105: 140.2356631 | V105: 137.4309498 | W105: 134.6823308
B107: Debt Service 1 | I107: =I105*I23 -> 153.8461538 | J107: 161.5384615 | K107: 184.6153846 | L107: 176.9230769 | M107: 169.2307692 | N107: 161.5384615 | O107: 158.3076923 | P107: 155.1415385 | Q107: 152.0387077 | R107: 148.9979335 | S107: 0 | T107: 0 | U107: 0 | V107: 0 | W107: 0
B108: Compound Interest | G108: 1 | I108: =G108*(1+I12) -> 1.02 | J108: =I108*(1+J12) -> 1.0404 | K108: 1.061208 | L108: 1.08243216 | M108: 1.104080803 | N108: 1.126162419 | O108: 1.148685668 | P108: 1.171659381 | Q108: 1.195092569 | R108: 1.21899442 | S108: 1.243374308 | T108: 1.268241795 | U108: 1.29360663 | V108: 1.319478763 | W108: 1.345868338
B109: PV Before Adjsutment | G109: =SUMPRODUCT(I107:W107/I108:W108) -> 1459.90869
B111: Debt Service 2 | I111: =I105*I24 -> 153.8461538 | J111: 161.5384615 | K111: 184.6153846 | L111: 176.9230769 | M111: 169.2307692 | N111: 161.5384615 | O111: 158.3076923 | P111: 155.1415385 | Q111: 152.0387077 | R111: 148.9979335 | S111: 0 | T111: 0 | U111: 0 | V111: 0 | W111: 0
B112: Compound Interest | G112: 1 | I112: =G112*(1+I16) -> 1.1 | J112: =I112*(1+J16) -> 1.21 | K112: 1.331 | L112: 1.4641 | M112: 1.61051 | N112: 1.771561 | O112: 1.9487171 | P112: 2.14358881 | Q112: 2.357947691 | R112: 2.59374246 | S112: 2.853116706 | T112: 3.138428377 | U112: 3.452271214 | V112: 3.797498336 | W112: 4.177248169
B113: PV Before Adjustment | G113: =SUMPRODUCT(I111:W111/I112:W112) -> 1004.707314
B115: Allocated
C116: Total | G116: =G113+G109 -> 2464.616004
C117: Debt 1 | G117: =G109/G116 -> 0.592347322 | I117: =I107*$G117 -> 91.13035723 | J117: =J107*$G117 -> 95.68687509 | K117: 109.3564287 | L117: 104.7999108 | M117: 100.243393 | N117: 95.68687509 | O117: 93.77313759 | P117: 91.89767484 | Q117: 90.05972134 | R117: 88.25852691 | S117: 0 | T117: 0 | U117: 0 | V117: 0 | W117: 0
C118: Debt 2 | G118: =G113/G116 -> 0.407652678 | I118: =I111*$G118 -> 62.71579662 | J118: =J111*$G118 -> 65.85158645 | K118: 75.25895594 | L118: 72.12316611 | M118: 68.98737628 | N118: 65.85158645 | O118: 64.53455472 | P118: 63.24386362 | Q118: 61.97898635 | R118: 60.73940663 | S118: 0 | T118: 0 | U118: 0 | V118: 0 | W118: 0
C119: Total | I119: =SUM(I117:I118) -> 153.8461538 | J119: =SUM(J117:J118) -> 161.5384615 | K119: 184.6153846 | L119: 176.9230769 | M119: 169.2307692 | N119: 161.5384615 | O119: 158.3076923 | P119: 155.1415385 | Q119: 152.0387077 | R119: 148.9979335 | S119: 0 | T119: 0 | U119: 0 | V119: 0 | W119: 0
I120: =IF(I119,I117/I119) -> 0.592347322 | J120: =IF(J119,J117/J119) -> 0.592347322 | K120: 0.592347322 | L120: 0.592347322 | M120: 0.592347322 | N120: 0.592347322 | O120: 0.592347322 | P120: 0.592347322 | Q120: 0.592347322 | R120: 0.592347322 | S120: FALSE | T120: FALSE | U120: FALSE | V120: FALSE | W120: FALSE
B121: Amounts
C122: Debt 1 | G122: =SUMPRODUCT(I117:W117/I108:W108) -> 864.7730028 | H122: =G122/I117 -> 9.489406484 | I122: =H122/H124 -> 0.592347322 | L122: 0.5923 | M122: X | R122: =I123 -> 0.407652678 | S122: X
C123: Debt 2 | G123: =SUMPRODUCT(I118:W118/I112:W112) -> 409.5716274 | H123: =G123/I118 -> 6.530597544 | I123: =H123/H124 -> 0.407652678 | L123: =G122 -> 864.7730028 | M123: =G139 -> 382.303389 | O123: =M123*L122 -> 226.4382973 | P123: =O123/L123 -> 0.2618470935 | R123: =G123 -> 409.5716274 | S123: =M123 -> 382.303389
G124: =SUM(G122:G123) -> 1274.34463 | H124: =SUM(H122:H123) -> 16.02000403
B125: Check
C126: Debt 1 | G126: =IRR(H126:W126) -> 0.02 | H126: =-G122 -> -864.7730028 | I126: =I117 -> 91.13035723 | J126: =J117 -> 95.68687509 | K126: 109.3564287 | L126: 104.7999108 | M126: 100.243393 | N126: 95.68687509 | O126: 93.77313759 | P126: 91.89767484 | Q126: 90.05972134 | R126: 88.25852691 | S126: 0 | T126: 0 | U126: 0 | V126: 0 | W126: 0
C127: Debt 2 | G127: =IRR(H127:W127) -> 0.1 | H127: =-G123 -> -409.5716274 | I127: =I118 -> 62.71579662 | J127: 65.85158645 | K127: 75.25895594 | L127: 72.12316611 | M127: 68.98737628 | N127: 65.85158645 | O127: 64.53455472 | P127: 63.24386362 | Q127: 61.97898635 | R127: 60.73940663 | S127: 0 | T127: 0 | U127: 0 | V127: 0 | W127: 0
C128: Total | G128: =IRR(H128:W128) -> 0.04733985696 | H128: =SUM(H126:H127) -> -1274.34463 | I128: =SUM(I126:I127) -> 153.8461538 | J128: 161.5384615 | K128: 184.6153846 | L128: 176.9230769 | M128: 169.2307692 | N128: 161.5384615 | O128: 158.3076923 | P128: 155.1415385 | Q128: 152.0387077 | R128: 148.9979335 | S128: 0 | T128: 0 | U128: 0 | V128: 0 | W128: 0
B130: PV of CFADS | I130: =I103*I23 -> 200 | J130: 210 | K130: 240 | L130: 230 | M130: 220 | N130: 210 | O130: 205.8 | P130: 201.684 | Q130: 197.65032 | R130: 193.6973136 | S130: 0 | T130: 0 | U130: 0 | V130: 0 | W130: 0
C131: PV for 1 | G131: =G126 -> 0.02 | H131: =NPV(G131,I130:W130) -> 1897.881297 | I131: =H131/G139 -> 4.964332913
C132: PV for 2 | G132: =G127 -> 0.1 | H132: =NPV(G132,I130:W130) -> 1306.119509 | I132: =H132/G139 -> 3.416447634
C133: PV for Both | G133: =G128 -> 0.04733985696 | H133: =NPV(G133,I130:W130) -> 1656.648019 | I133: =H133/G137 -> 1.3
C137: PV | G137: =NPV(G128,I128:W128) -> 1274.34463
E139: =E10 -> 0.3 | G139: =G137*E139 -> 382.303389 | I139: 0.12 | J139: =I139 -> 0.12 | K139: =J139 -> 0.12 | L139: 0.12 | M139: 0.12 | N139: 0.12 | O139: 0.12 | P139: 0.12 | Q139: 0.12 | R139: 0.12 | S139: 0.12 | T139: 0.12 | U139: 0.12 | V139: 0.12 | W139: 0.12
G140: =NPV(G126,I140:W140) -> 589.478038 | I140: =I139*$G139 -> 45.87640669 | J140: =J139*$G139 -> 45.87640669 | K140: 45.87640669 | L140: 45.87640669 | M140: 45.87640669 | N140: 45.87640669 | O140: 45.87640669 | P140: 45.87640669 | Q140: 45.87640669 | R140: 45.87640669 | S140: 45.87640669 | T140: 45.87640669 | U140: 45.87640669 | V140: 45.87640669 | W140: 45.87640669
G142: =E143*G137 -> 382.303389
E143: =E139 -> 0.3 | G143: =NPV(G127,I143:W143) -> 861.5944573 | I143: =I2/I104-I140 -> 107.9697472 | J143: 115.6620549 | K143: 138.7389779 | L143: 131.0466702 | M143: 123.3543625 | N143: 115.6620549 | O143: 112.4312856 | P143: 109.2651318 | Q143: 106.162301 | R143: 103.1215269 | S143: 100.1415682 | T143: 97.22120869 | U143: 94.35925638 | V143: 91.55454312 | W143: 88.80592412
G145: =NPV(G128,I145:W145) -> 1660.360775 | I145: =I140+I143 -> 153.8461538 | J145: =J140+J143 -> 161.5384615 | K145: 184.6153846 | L145: 176.9230769 | M145: 169.2307692 | N145: 161.5384615 | O145: 158.3076923 | P145: 155.1415385 | Q145: 152.0387077 | R145: 148.9979335 | S145: 146.0179749 | T145: 143.0976154 | U145: 140.2356631 | V145: 137.4309498 | W145: 134.6823308
D147: CFADS | I147: =I2 -> 200 | J147: 210 | K147: 240 | L147: 230 | M147: 220 | N147: 210 | O147: 205.8 | P147: 201.684 | Q147: 197.65032 | R147: 193.6973136 | S147: 189.8233673 | T147: 186.0269 | U147: 182.306362 | V147: 178.6602347 | W147: 175.08703
D149: CFADS 1 | G149: =E11 -> 10 | I149: =(I1<=$G$149)*I147 -> 200 | J149: 210 | K149: 240 | L149: 230 | M149: 220 | N149: 210 | O149: 205.8 | P149: 201.684 | Q149: 197.65032 | R149: 193.6973136 | S149: 0 | T149: 0 | U149: 0 | V149: 0 | W149: 0
D150: CFADS 2 | G150: =E15 -> 10 | I150: =(I1<=$G$150)*I147 -> 200 | J150: 210 | K150: 240 | L150: 230 | M150: 220 | N150: 210 | O150: 205.8 | P150: 201.684 | Q150: 197.65032 | R150: 193.6973136 | S150: 0 | T150: 0 | U150: 0 | V150: 0 | W150: 0
D153: Debt Service 1 | E153: =H153/(H153+H154) -> 0.5792233199 | G153: 2.977201654 | H153: =NPV(G131,I153:W153) -> 637.4715312 | I153: =I149/$G153 -> 67.17717617 | J153: =J149/$G153 -> 70.53603498 | K153: 80.61261141 | L153: 77.2537526 | M153: 73.89489379 | N153: 70.53603498 | O153: 69.12531428 | P153: 67.742808 | Q153: 66.38795184 | R153: 65.0601928 | S153: 0 | T153: 0 | U153: 0 | V153: 0 | W153: 0
D154: Debt Service 2 | E154: =E14/(E10+E18) -> 0.8181818182 | H154: =NPV(G132,I154:W154) -> 463.0910831 | I154: =(I150/$G$156-I153)*$E$154 -> 70.91098173 | J154: 74.45653082 | K154: 85.09317808 | L154: 81.54762899 | M154: 78.0020799 | N154: 74.45653082 | O154: 72.9674002 | P154: 71.5080522 | Q154: 70.07789115 | R154: 68.67633333 | S154: 0 | T154: 0 | U154: 0 | V154: 0 | W154: 0
E155: =E18/(E10+E14) -> 0.3333333333 | H155: =NPV(I20,I155:W155) -> 254.6815783 | I155: =(I149-I153-I154)/$G$156 -> 47.62449392 | J155: =(J149-J153-J154)/$G$156 -> 50.00571861 | K155: 57.1493927 | L155: 54.76816801 | M155: 52.38694331 | N155: 50.00571861 | O155: 49.00560424 | P155: 48.02549216 | Q155: 47.06498231 | R155: 46.12368267 | S155: 0 | T155: 0 | U155: 0 | V155: 0 | W155: 0
G156: =E3 -> 1.3 | H156: =NPV(G133,I156:W156) -> 1660.360775 | I156: =I$147/$G156 -> 153.8461538 | J156: =J$147/$G156 -> 161.5384615 | K156: 184.6153846 | L156: 176.9230769 | M156: 169.2307692 | N156: 161.5384615 | O156: 158.3076923 | P156: 155.1415385 | Q156: 152.0387077 | R156: 148.9979335 | S156: 146.0179749 | T156: 143.0976154 | U156: 140.2356631 | V156: 137.4309498 | W156: 134.6823308
H158: =(H153+H154)*E155-H155 -> 112.1726264 | I158: =I153+I154 -> 138.0881579 | J158: =J153+J154 -> 144.9925658 | K158: 165.7057895 | L158: 158.8013816 | M158: 151.8969737 | N158: 144.9925658 | O158: 142.0927145 | P158: 139.2508602 | Q158: 136.465843 | R158: 133.7365261 | S158: 0 | T158: 0 | U158: 0 | V158: 0 | W158: 0
I159: =I147/I158 -> 1.448350119 | J159: =J147/J158 -> 1.448350119 | K159: 1.448350119 | L159: 1.448350119 | M159: 1.448350119 | N159: 1.448350119 | O159: 1.448350119 | P159: 1.448350119 | Q159: 1.448350119 | R159: 1.448350119
I162: 4 | J162: 2
I176: dscr = cfads/ds
I178: ds = cfads/dscr
I179: ds + other = cfads/dscr
I180: ds = cfads/dscr - other
H182: Weighted LLCR
I183: LLCR 1 = At Rate 1 = CFADS at Rate 1/Given Debt
I184: LLCR 2 = At Rate 2 = CFADS at Rate 2/Given Debt
I185: LLCR Average
H186: Compute 1

Sheet LLCR Method
B1: Period | G1: 0 | I1: 1 | J1: 2 | K1: 3 | L1: 4 | M1: 5 | N1: 6 | O1: 7 | P1: 8 | Q1: 9 | R1: 10 | S1: 11 | T1: 12 | U1: 13 | V1: 14 | W1: 15
B2: CFADS | I2: 200 | J2: 210 | K2: 240 | L2: 230 | M2: 220 | N2: 210 | O2: =N2*0.98 -> 205.8 | P2: =O2*0.98 -> 201.684 | Q2: 197.65032 | R2: 193.6973136 | S2: 189.8233673 | T2: 186.0269 | U2: 182.306362 | V2: 178.6602347 | W2: 175.08703
B3: DSCR Target | E3: 1.3
B4: Max Debt to Capital | E4: 0.6
B5: Total Project Cost | E5: 900
B6: Non-Sculpted Debt Service | I6: 0 | J6: =I6 -> 0 | K6: =J6 -> 0 | L6: =K6 -> 0 | M6: =L6 -> 0 | N6: =M6 -> 0
B7: Interest Rate | E7: 0 | G7: DSCR =CFADS/(SDS+ODS)
B8: NPV of Debt Service | E8: =NPV(E7,I6:W6) -> 0 | G8: SDS =CFADS/DSCR - ODS
B12: Debt 1
C13: Percent | E13: 0.3 | F13: =E13*$E$5 -> 270
C14: Tenor | E14: 6
C15: Interest Rate | I15: 0.15 | J15: 0.15 | K15: 0.15 | L15: 0.15 | M15: 0.15 | N15: 0.15 | O15: 0.15 | P15: 0.15 | Q15: 0.15 | R15: 0.15 | S15: 0.15 | T15: 0.15 | U15: 0.15 | V15: 0.15 | W15: 0.15
B16: Debt 2
C17: Amount | E17: 0.45 | F17: =E17*E5 -> 405
C18: Tenor | E18: 10
C19: Interest Rate | I19: 0.1 | J19: 0.1 | K19: 0.1 | L19: 0.1 | M19: 0.1 | N19: 0.1 | O19: 0.1 | P19: 0.1 | Q19: 0.1 | R19: 0.1 | S19: 0.1 | T19: 0.1 | U19: 0.1 | V19: 0.1 | W19: 0.1
B20: Debt 3
C21: Amount | E21: 0.25 | F21: =E21*E5 -> 225
C22: Tenor | E22: 14
C23: Interest Rate | I23: 0.02 | J23: 0.02 | K23: 0.02 | L23: 0.02 | M23: 0.02 | N23: 0.02 | O23: 0.02 | P23: 0.02 | Q23: 0.02 | R23: 0.02 | S23: 0.02 | T23: 0.02 | U23: 0.02 | V23: 0.02 | W23: 0.02
A25: Sculpting Calculations
B26: Tenor Switch 1 | E26: =E14 -> 6 | I26: =I1<=$E26 -> TRUE | J26: TRUE | K26: TRUE | L26: TRUE | M26: TRUE | N26: TRUE | O26: FALSE | P26: FALSE | Q26: FALSE | R26: FALSE | S26: FALSE | T26: FALSE | U26: FALSE | V26: FALSE | W26: FALSE
B27: Tenor Switch 2 | E27: =E18 -> 10 | I27: =I1<=$E27 -> TRUE | J27: TRUE | K27: TRUE | L27: TRUE | M27: TRUE | N27: TRUE | O27: TRUE | P27: TRUE | Q27: TRUE | R27: TRUE | S27: FALSE | T27: FALSE | U27: FALSE | V27: FALSE | W27: FALSE
B28: Tenor Switch 3 | E28: =E22 -> 14 | I28: =I1<=$E$28 -> TRUE | J28: TRUE | K28: TRUE | L28: TRUE | M28: TRUE | N28: TRUE | O28: TRUE | P28: TRUE | Q28: TRUE | R28: TRUE | S28: TRUE | T28: TRUE | U28: TRUE | V28: TRUE | W28: FALSE
B31: Total CFADS | I31: =I2 -> 200 | J31: 210 | K31: 240 | L31: 230 | M31: 220 | N31: 210 | O31: 205.8 | P31: 201.684 | Q31: 197.65032 | R31: 193.6973136 | S31: 189.8233673 | T31: 186.0269 | U31: 182.306362 | V31: 178.6602347 | W31: 175.08703
B32: Other Debt Service | I32: =I6 -> 0 | J32: 0 | K32: 0 | L32: 0 | M32: 0 | N32: 0 | O32: 0 | P32: 0 | Q32: 0 | R32: 0 | S32: 0 | T32: 0 | U32: 0 | V32: 0 | W32: 0
B33: Total Sculpted Debt Service | E33: =E3 -> 1.3 | I33: =I31/$E$33-I32 -> 153.8461538 | J33: =J31/$E$33-J32 -> 161.5384615 | K33: 184.6153846 | L33: 176.9230769 | M33: 169.2307692 | N33: 161.5384615 | O33: 158.3076923 | P33: 155.1415385 | Q33: 152.0387077 | R33: 148.9979335 | S33: 146.0179749 | T33: 143.0976154 | U33: 140.2356631 | V33: 137.4309498 | W33: 134.6823308
B35: Issue 1: Percent
B36: Debt Service | E36: =E40 -> 3.045103825 | I36: =I31/$E$36*I26 -> 65.67920553 | J36: 68.96316581 | K36: 78.81504664 | L36: 75.53108636 | M36: 72.24712609 | N36: 68.96316581 | O36: 0 | P36: 0 | Q36: 0 | R36: 0 | S36: 0 | T36: 0 | U36: 0 | V36: 0 | W36: 0
B37: PV Debt Service | E37: =NPV(F37,I36:W36) -> 270 | F37: =I15 -> 0.15
B38: PV CF | E38: =NPV(F37,I31:W31*I26:W26) -> 822.1780328 | I38: LLCR =NPV(CFADS)/Debt | L38: LLCR =NPV(CFADS)/(Odebt + Sdebt)
B39: Debt 1 | E39: =F13 -> 270
B40: LLCR 1 | E40: =E38/E39 -> 3.045103825
B42: Issue 2: Percent
B43: Debt Service | E43: =E47 -> 3.224986441 | I43: =I31/$E$43*I27 -> 62.0157646 | J43: 65.11655283 | K43: 74.41891752 | L43: 71.31812929 | M43: 68.21734106 | N43: 65.11655283 | O43: 63.81422178 | P43: 62.53793734 | Q43: 61.28717859 | R43: 60.06143502 | S43: 0 | T43: 0 | U43: 0 | V43: 0 | W43: 0
B44: PV Debt Service | E44: =NPV(F44,I43:W43) -> 405 | F44: =I19 -> 0.1
B45: PV CF | E45: =NPV(F44,I31:W31*I27:W27) -> 1306.119509
B46: Debt 2 | E46: =F17 -> 405
B47: LLCR 2 | E47: =E45/E46 -> 3.224986441
B49: Issue 3: Percent
B50: Debt Service | E50: =E54 -> 10.99360459 | I50: =I31/$E$50*I28 -> 18.19239525 | J50: 19.10201501 | K50: 21.8308743 | L50: 20.92125454 | M50: 20.01163478 | N50: 19.10201501 | O50: 18.71997471 | P50: 18.34557522 | Q50: 17.97866372 | R50: 17.61909044 | S50: 17.26670863 | T50: 16.92137446 | U50: 16.58294697 | V50: 16.25128803 | W50: 0
B51: PV Debt Service | E51: =NPV(F51,I50:W50) -> 225 | F51: =I23 -> 0.02
B52: PV CF | E52: =NPV(F51,I31:W31*I28:W28) -> 2473.561033
B53: Debt 3 | E53: =F21 -> 225
B54: LLCR 3 | E54: =E52/E53 -> 10.99360459
A57: Check
B58: CFADS | I58: =I2 -> 200 | J58: 210 | K58: 240 | L58: 230 | M58: 220 | N58: 210 | O58: 205.8 | P58: 201.684 | Q58: 197.65032 | R58: 193.6973136 | S58: 189.8233673 | T58: 186.0269 | U58: 182.306362 | V58: 178.6602347 | W58: 175.08703
B60: Debt Service Other | I60: =I6 -> 0 | J60: 0 | K60: 0 | L60: 0 | M60: 0 | N60: 0 | O60: 0 | P60: 0 | Q60: 0 | R60: 0 | S60: 0 | T60: 0 | U60: 0 | V60: 0 | W60: 0
B61: Debt Service 1 | I61: =I36 -> 65.67920553 | J61: 68.96316581 | K61: 78.81504664 | L61: 75.53108636 | M61: 72.24712609 | N61: 68.96316581 | O61: 0 | P61: 0 | Q61: 0 | R61: 0 | S61: 0 | T61: 0 | U61: 0 | V61: 0 | W61: 0
B62: Debt Service 2 | I62: =I43 -> 62.0157646 | J62: 65.11655283 | K62: 74.41891752 | L62: 71.31812929 | M62: 68.21734106 | N62: 65.11655283 | O62: 63.81422178 | P62: 62.53793734 | Q62: 61.28717859 | R62: 60.06143502 | S62: 0 | T62: 0 | U62: 0 | V62: 0 | W62: 0
B63: Debt Service 3 | I63: =I50 -> 18.19239525 | J63: =J50 -> 19.10201501 | K63: 21.8308743 | L63: 20.92125454 | M63: 20.01163478 | N63: 19.10201501 | O63: 18.71997471 | P63: 18.34557522 | Q63: 17.97866372 | R63: 17.61909044 | S63: 17.26670863 | T63: 16.92137446 | U63: 16.58294697 | V63: 16.25128803 | W63: 0
C64: Total Debt Service | I64: =SUM(I60:I63) -> 145.8873654 | J64: 153.1817337 | K64: 175.0648385 | L64: 167.7704702 | M64: 160.4761019 | N64: 153.1817337 | O64: 82.53419649 | P64: 80.88351256 | Q64: 79.26584231 | R64: 77.68052546 | S64: 17.26670863 | T64: 16.92137446 | U64: 16.58294697 | V64: 16.25128803 | W64: 0
B66: Sculpted Cash Flow | H66: =-F13-F17-F21 -> -900 | I66: =SUM(I61:I63) -> 145.8873654 | J66: =SUM(J61:J63) -> 153.1817337 | K66: 175.0648385 | L66: 167.7704702 | M66: 160.4761019 | N66: 153.1817337 | O66: 82.53419649 | P66: 80.88351256 | Q66: 79.26584231 | R66: 77.68052546 | S66: 17.26670863 | T66: 16.92137446 | U66: 16.58294697 | V66: 16.25128803 | W66: 0
B67: Sculpted IRR | E67: =IRR(66:66) -> 0.0873763165
B69: DSCR | I69: =IF(I64,I58/I64) -> 1.370920638 | J69: =IF(J64,J58/J64) -> 1.370920638 | K69: 1.370920638 | L69: =IF(L64,L58/L64) -> 1.370920638 | M69: 1.370920638 | N69: 1.370920638 | O69: 2.493511887 | P69: 2.493511887 | Q69: 2.493511887 | R69: 2.493511887 | S69: 10.99360459 | T69: 10.99360459 | U69: 10.99360459 | V69: 10.99360459 | W69: FALSE
B71: Debt Issues | F71: Pct Tot | G71: Pct Sculpt | H71: Target
C72: Other Debt | E72: =E8 -> 0 | F72: =E72/$E$76 -> 0
C73: Debt 1 | E73: =E37 -> 270 | F73: =E73/$E$76 -> 0.3 | G73: =E73/$E$77 -> 0.3 | H73: =E13 -> 0.3
C74: Debt 2 | E74: =E44 -> 405 | F74: =E74/$E$76 -> 0.45 | G74: =E74/$E$77 -> 0.45 | H74: =E17 -> 0.45
C75: Debt 3 | E75: =E51 -> 225 | F75: =E75/$E$76 -> 0.25 | G75: =E75/$E$77 -> 0.25 | H75: =E21 -> 0.25
D76: Total | E76: =SUM(E72:E75) -> 900 | F76: =E76/$E$76 -> 1
D77: Sculpted | E77: =SUM(E73:E75) -> 900
B109: CFADS | I109: =I2 -> 200 | J109: 210 | K109: 240 | L109: 230 | M109: 220 | N109: 210 | O109: 205.8 | P109: 201.684 | Q109: 197.65032 | R109: 193.6973136 | S109: 189.8233673 | T109: 186.0269 | U109: 182.306362 | V109: 178.6602347 | W109: 175.08703
B110: DSCR | E110: =E3 -> 1.3 | I110: =$E110 -> 1.3 | J110: =$E110 -> 1.3 | K110: 1.3 | L110: 1.3 | M110: 1.3 | N110: 1.3 | O110: 1.3 | P110: 1.3 | Q110: 1.3 | R110: 1.3 | S110: 1.3 | T110: 1.3 | U110: 1.3 | V110: 1.3 | W110: 1.3
B111: Debt Service | I111: =I109/I110 -> 153.8461538 | J111: =J109/J110 -> 161.5384615 | K111: 184.6153846 | L111: 176.9230769 | M111: 169.2307692 | N111: 161.5384615 | O111: 158.3076923 | P111: 155.1415385 | Q111: 152.0387077 | R111: 148.9979335 | S111: 146.0179749 | T111: 143.0976154 | U111: 140.2356631 | V111: 137.4309498 | W111: 134.6823308
B113: Debt Service 1 | I113: =I111*I26 -> 153.8461538 | J113: 161.5384615 | K113: 184.6153846 | L113: 176.9230769 | M113: 169.2307692 | N113: 161.5384615 | O113: 0 | P113: 0 | Q113: 0 | R113: 0 | S113: 0 | T113: 0 | U113: 0 | V113: 0 | W113: 0
B114: Compound Interest | G114: 1 | I114: =G114*(1+I15) -> 1.15 | J114: =I114*(1+J15) -> 1.3225 | K114: 1.520875 | L114: 1.74900625 | M114: 2.011357187 | N114: 2.313060766 | O114: 2.66001988 | P114: 3.059022863 | Q114: 3.517876292 | R114: 4.045557736 | S114: 4.652391396 | T114: 5.350250105 | U114: 6.152787621 | V114: 7.075705764 | W114: 8.137061629
B115: PV Before Adjsutment | G115: =SUMPRODUCT(I113:W113/I114:W114) -> 632.4446406
B117: Debt Service 2 | I117: =I111*I27 -> 153.8461538 | J117: 161.5384615 | K117: 184.6153846 | L117: 176.9230769 | M117: 169.2307692 | N117: 161.5384615 | O117: 158.3076923 | P117: 155.1415385 | Q117: 152.0387077 | R117: 148.9979335 | S117: 0 | T117: 0 | U117: 0 | V117: 0 | W117: 0
B118: Compound Interest | G118: 1 | I118: =G118*(1+I19) -> 1.1 | J118: =I118*(1+J19) -> 1.21 | K118: 1.331 | L118: 1.4641 | M118: 1.61051 | N118: 1.771561 | O118: 1.9487171 | P118: 2.14358881 | Q118: 2.357947691 | R118: 2.59374246 | S118: 2.853116706 | T118: 3.138428377 | U118: 3.452271214 | V118: 3.797498336 | W118: 4.177248169
B119: PV Before Adjustment | G119: =SUMPRODUCT(I117:W117/I118:W118) -> 1004.707314
B121: Allocated
C122: Total | G122: =G119+G115 -> 1637.151955
C123: Debt 1 | G123: =G115/G122 -> 0.3863078431 | I123: =I113*$G123 -> 59.43197586 | J123: =J113*$G123 -> 62.40357466 | K123: 71.31837104 | L123: 68.34677224 | M123: 65.37517345 | N123: 62.40357466 | O123: 0 | P123: 0 | Q123: 0 | R123: 0 | S123: 0 | T123: 0 | U123: 0 | V123: 0 | W123: 0
C124: Debt 2 | G124: =G119/G122 -> 0.6136921569 | I124: =I117*$G124 -> 94.41417798 | J124: =J117*$G124 -> 99.13488688 | K124: 113.2970136 | L124: 108.5763047 | M124: 103.8555958 | N124: 99.13488688 | O124: 97.15218914 | P124: 95.20914536 | Q124: 93.30496245 | R124: 91.4388632 | S124: 0 | T124: 0 | U124: 0 | V124: 0 | W124: 0
C125: Total | I125: =SUM(I123:I124) -> 153.8461538 | J125: =SUM(J123:J124) -> 161.5384615 | K125: 184.6153846 | L125: 176.9230769 | M125: 169.2307692 | N125: 161.5384615 | O125: 97.15218914 | P125: 95.20914536 | Q125: 93.30496245 | R125: 91.4388632 | S125: 0 | T125: 0 | U125: 0 | V125: 0 | W125: 0
I126: =IF(I125,I123/I125) -> 0.3863078431 | J126: =IF(J125,J123/J125) -> 0.3863078431 | K126: 0.3863078431 | L126: 0.3863078431 | M126: 0.3863078431 | N126: 0.3863078431 | O126: 0 | P126: 0 | Q126: 0 | R126: 0 | S126: FALSE | T126: FALSE | U126: FALSE | V126: FALSE | W126: FALSE
B127: Amounts
C128: Debt 1 | G128: =SUMPRODUCT(I123:W123/I114:W114) -> 244.318325 | H128: =G128/I123 -> 4.110890164 | I128: =H128/H130 -> 0.3863078431 | L128: 0.5923 | M128: X | R128: =I129 -> 0.6136921569 | S128: X
C129: Debt 2 | G129: =SUMPRODUCT(I124:W124/I118:W118) -> 616.5809988 | H129: =G129/I124 -> 6.530597544 | I129: =H129/H130 -> 0.6136921569 | L129: =G128 -> 244.318325 | M129: =G145 -> 258.2697972 | O129: =M129*L128 -> 152.9732009 | P129: =O129/L129 -> 0.6261225017 | R129: =G129 -> 616.5809988 | S129: =M129 -> 258.2697972
G130: =SUM(G128:G129) -> 860.8993238 | H130: =SUM(H128:H129) -> 10.64148771
B131: Check
C132: Debt 1 | G132: =IRR(H132:W132) -> 0.15 | H132: =-G128 -> -244.318325 | I132: =I123 -> 59.43197586 | J132: =J123 -> 62.40357466 | K132: 71.31837104 | L132: 68.34677224 | M132: 65.37517345 | N132: 62.40357466 | O132: 0 | P132: 0 | Q132: 0 | R132: 0 | S132: 0 | T132: 0 | U132: 0 | V132: 0 | W132: 0
C133: Debt 2 | G133: =IRR(H133:W133) -> 0.1 | H133: =-G129 -> -616.5809988 | I133: =I124 -> 94.41417798 | J133: 99.13488688 | K133: 113.2970136 | L133: 108.5763047 | M133: 103.8555958 | N133: 99.13488688 | O133: 97.15218914 | P133: 95.20914536 | Q133: 93.30496245 | R133: 91.4388632 | S133: 0 | T133: 0 | U133: 0 | V133: 0 | W133: 0
C134: Total | G134: =IRR(H134:W134) -> 0.1112143239 | H134: =SUM(H132:H133) -> -860.8993238 | I134: =SUM(I132:I133) -> 153.8461538 | J134: 161.5384615 | K134: 184.6153846 | L134: 176.9230769 | M134: 169.2307692 | N134: 161.5384615 | O134: 97.15218914 | P134: 95.20914536 | Q134: 93.30496245 | R134: 91.4388632 | S134: 0 | T134: 0 | U134: 0 | V134: 0 | W134: 0
B136: PV of CFADS | I136: =I109*I26 -> 200 | J136: 210 | K136: 240 | L136: 230 | M136: 220 | N136: 210 | O136: 0 | P136: 0 | Q136: 0 | R136: 0 | S136: 0 | T136: 0 | U136: 0 | V136: 0 | W136: 0
C137: PV for 1 | G137: =G132 -> 0.15 | H137: =NPV(G137,I136:W136) -> 822.1780328 | I137: =H137/G145 -> 3.183407591
C138: PV for 2 | G138: =G133 -> 0.1 | H138: =NPV(G138,I136:W136) -> 947.9227642 | I138: =H138/G145 -> 3.670281135
C139: PV for Both | G139: =G134 -> 0.1112143239 | H139: =NPV(G139,I136:W136) -> 917.1977873 | I139: =H139/G143 -> 1.065394944
C143: PV | G143: =NPV(G134,I134:W134) -> 860.8993238
E145: =E13 -> 0.3 | G145: =G143*E145 -> 258.2697972 | I145: 0.12 | J145: =I145 -> 0.12 | K145: =J145 -> 0.12 | L145: 0.12 | M145: 0.12 | N145: 0.12 | O145: 0.12 | P145: 0.12 | Q145: 0.12 | R145: 0.12 | S145: 0.12 | T145: 0.12 | U145: 0.12 | V145: 0.12 | W145: 0.12
G146: =NPV(G132,I146:W146) -> 181.2238907 | I146: =I145*$G145 -> 30.99237566 | J146: =J145*$G145 -> 30.99237566 | K146: 30.99237566 | L146: 30.99237566 | M146: 30.99237566 | N146: 30.99237566 | O146: 30.99237566 | P146: 30.99237566 | Q146: 30.99237566 | R146: 30.99237566 | S146: 30.99237566 | T146: 30.99237566 | U146: 30.99237566 | V146: 30.99237566 | W146: 30.99237566
G148: =E149*G143 -> 258.2697972
E149: =E145 -> 0.3 | G149: =NPV(G133,I149:W149) -> 974.8035806 | I149: =I2/I110-I146 -> 122.8537782 | J149: 130.5460859 | K149: 153.623009 | L149: 145.9307013 | M149: 138.2383936 | N149: 130.5460859 | O149: 127.3153166 | P149: 124.1491628 | Q149: 121.046332 | R149: 118.0055579 | S149: 115.0255992 | T149: 112.1052397 | U149: 109.2432874 | V149: 106.4385741 | W149: 103.6899551
G151: =NPV(G134,I151:W151) -> 1139.535571 | I151: =I146+I149 -> 153.8461538 | J151: =J146+J149 -> 161.5384615 | K151: 184.6153846 | L151: 176.9230769 | M151: 169.2307692 | N151: 161.5384615 | O151: 158.3076923 | P151: 155.1415385 | Q151: 152.0387077 | R151: 148.9979335 | S151: 146.0179749 | T151: 143.0976154 | U151: 140.2356631 | V151: 137.4309498 | W151: 134.6823308
D153: CFADS | I153: =I2 -> 200 | J153: 210 | K153: 240 | L153: 230 | M153: 220 | N153: 210 | O153: 205.8 | P153: 201.684 | Q153: 197.65032 | R153: 193.6973136 | S153: 189.8233673 | T153: 186.0269 | U153: 182.306362 | V153: 178.6602347 | W153: 175.08703
D155: CFADS 1 | G155: =E14 -> 6 | I155: =(I1<=$G$155)*I153 -> 200 | J155: 210 | K155: 240 | L155: 230 | M155: 220 | N155: 210 | O155: 0 | P155: 0 | Q155: 0 | R155: 0 | S155: 0 | T155: 0 | U155: 0 | V155: 0 | W155: 0
D156: CFADS 2 | G156: =E18 -> 10 | I156: =(I1<=$G$156)*I153 -> 200 | J156: 210 | K156: 240 | L156: 230 | M156: 220 | N156: 210 | O156: 205.8 | P156: 201.684 | Q156: 197.65032 | R156: 193.6973136 | S156: 0 | T156: 0 | U156: 0 | V156: 0 | W156: 0
D159: Debt Service 1 | E159: =H159/(H159+H160) -> 0.3296672097 | G159: 2.977201654 | H159: =NPV(G137,I159:W159) -> 276.1579928 | I159: =I155/$G159 -> 67.17717617 | J159: =J155/$G159 -> 70.53603498 | K159: 80.61261141 | L159: 77.2537526 | M159: 73.89489379 | N159: 70.53603498 | O159: 0 | P159: 0 | Q159: 0 | R159: 0 | S159: 0 | T159: 0 | U159: 0 | V159: 0 | W159: 0
D160: Debt Service 2 | E160: =E17/(E13+E21) -> 0.8181818182 | H160: =NPV(G138,I160:W160) -> 561.5291797 | I160: =(I156/$G$162-I159)*$E$160 -> 70.91098173 | J160: 74.45653082 | K160: 85.09317808 | L160: 81.54762899 | M160: 78.0020799 | N160: 74.45653082 | O160: 129.5244755 | P160: 126.933986 | Q160: 124.3953063 | R160: 121.9074002 | S160: 0 | T160: 0 | U160: 0 | V160: 0 | W160: 0
E161: =E21/(E13+E17) -> 0.3333333333 | H161: =NPV(I23,I161:W161) -> -36.01259887 | I161: =(I155-I159-I160)/$G$162 -> 47.62449392 | J161: =(J155-J159-J160)/$G$162 -> 50.00571861 | K161: 57.1493927 | L161: 54.76816801 | M161: 52.38694331 | N161: 50.00571861 | O161: -99.63421194 | P161: -97.6415277 | Q161: -95.68869715 | R161: -93.77492321 | S161: 0 | T161: 0 | U161: 0 | V161: 0 | W161: 0
G162: =E3 -> 1.3 | H162: =NPV(G139,I162:W162) -> 1139.535571 | I162: =I$153/$G162 -> 153.8461538 | J162: =J$153/$G162 -> 161.5384615 | K162: 184.6153846 | L162: 176.9230769 | M162: 169.2307692 | N162: 161.5384615 | O162: 158.3076923 | P162: 155.1415385 | Q162: 152.0387077 | R162: 148.9979335 | S162: 146.0179749 | T162: 143.0976154 | U162: 140.2356631 | V162: 137.4309498 | W162: 134.6823308
H164: =(H159+H160)*E161-H161 -> 315.2416563 | I164: =I159+I160 -> 138.0881579 | J164: =J159+J160 -> 144.9925658 | K164: 165.7057895 | L164: 158.8013816 | M164: 151.8969737 | N164: 144.9925658 | O164: 129.5244755 | P164: 126.933986 | Q164: 124.3953063 | R164: 121.9074002 | S164: 0 | T164: 0 | U164: 0 | V164: 0 | W164: 0
I165: =I153/I164 -> 1.448350119 | J165: =J153/J164 -> 1.448350119 | K165: 1.448350119 | L165: 1.448350119 | M165: 1.448350119 | N165: 1.448350119 | O165: 1.588888889 | P165: 1.588888889 | Q165: 1.588888889 | R165: 1.588888889
I168: 4 | J168: 2
I182: dscr =cfads/ds
I184: ds =cfads/dscr
I185: ds + other =cfads/dscr
I186: ds =cfads/dscr - other
H188: Weighted LLCR
I189: LLCR 1 =At Rate 1 =CFADS at Rate 1/Given Debt
I190: LLCR 2 =At Rate 2 =CFADS at Rate 2/Given Debt
I191: LLCR Average
H192: Compute 1

Sheet LLCR and Sculpt
D1: Period | G1: 0 | I1: 1 | J1: 2 | K1: 3 | L1: 4 | M1: 5 | N1: 6 | O1: 7 | P1: 8 | Q1: 9 | R1: 10 | S1: 11 | T1: 12 | U1: 13 | V1: 14 | W1: 15
B2: CFADS | I2: 200 | J2: 210 | K2: 240 | L2: 230 | M2: 220 | N2: 210 | O2: =N2*0.98 -> 205.8 | P2: =O2*0.98 -> 201.684 | Q2: 197.65032 | R2: 193.6973136 | S2: 189.8233673 | T2: 186.0269 | U2: 182.306362 | V2: 178.6602347 | W2: 175.08703
B3: DSCR Target | E3: 1.3
B4: Max Debt to Capital | E4: 0.6
B5: Total Project Cost | E5: 900
B6: Non-Sculpted Debt Service | I6: 0 | J6: =I6 -> 0 | K6: =J6 -> 0 | L6: =K6 -> 0 | M6: =L6 -> 0 | N6: =M6 -> 0
B7: Interest Rate | E7: 0
B8: NPV of Debt Service | E8: =NPV(E7,I6:W6) -> 0
F9: DSCR = CFADS/(SDS+ODS) | I9: LLCR = NPV(CFADS)/Debt | L9: LLCR = NPV(CFADS)/(Odebt + Sdebt)
F10: SDS = CFADS/DSCR - ODS
B12: Max Tenor | E12: =MAX(E20,E24,E28) -> 12
B13: Aggregate Switch | I13: =I1<=$E$12 -> TRUE | J13: =J1<=$E$12 -> TRUE | K13: TRUE | L13: TRUE | M13: TRUE | N13: TRUE | O13: TRUE | P13: TRUE | Q13: TRUE | R13: TRUE | S13: TRUE | T13: TRUE | U13: FALSE | V13: FALSE | W13: FALSE
B14: Total Debt Service for Sculpting | E14: =E3 -> 1.3 | F14: Fixed | I14: =I2/$E$14*I13 -> 153.8461538 | J14: =J2/$E$14*J13 -> 161.5384615 | K14: 184.6153846 | L14: 176.9230769 | M14: 169.2307692 | N14: 161.5384615 | O14: 158.3076923 | P14: 155.1415385 | Q14: 152.0387077 | R14: 148.9979335 | S14: 146.0179749 | T14: 143.0976154 | U14: 0 | V14: 0 | W14: 0
B15: IRR on Sculpted Debt | E15: =E73 -> 0.09563261529 | F15: 0.0956 | G15: =F15-E15 -> -3.26152856e-05
B16: NPV of Total Debt Service | E16: =NPV(F15,I14:W14) -> 1125.035065
B18: Debt 1
C19: Percent | E19: 0.3 | F19: =E19*E16 -> 337.5105195
C20: Tenor | E20: 8
C21: Interest Rate | I21: 0.02 | J21: =I21 -> 0.02 | K21: =J21 -> 0.02 | L21: 0.02 | M21: 0.02 | N21: 0.02 | O21: 0.02 | P21: 0.02 | Q21: 0.02 | R21: 0.02 | S21: 0.02 | T21: 0.02 | U21: 0.02 | V21: 0.02 | W21: 0.02
B22: Debt 2
C23: Amount | E23: 0.45 | F23: =E23*E16 -> 506.2657792
C24: Tenor | E24: 10
C25: Interest Rate | I25: 0.1 | J25: 0.1 | K25: 0.1 | L25: 0.1 | M25: 0.1 | N25: 0.1 | O25: 0.1 | P25: 0.1 | Q25: 0.1 | R25: 0.1 | S25: 0.1 | T25: 0.1 | U25: 0.1 | V25: 0.1 | W25: 0.1
B26: Debt 3
C27: Amount | E27: 0.25 | F27: =E27*E16 -> 281.2587662
C28: Tenor | E28: 12
C29: Interest Rate | I29: 0.15 | J29: =I29 -> 0.15 | K29: =J29 -> 0.15 | L29: 0.15 | M29: 0.15 | N29: 0.15 | O29: 0.15 | P29: 0.15 | Q29: 0.15 | R29: 0.15 | S29: 0.15 | T29: 0.15 | U29: 0.15 | V29: 0.15 | W29: 0.15
A31: Sculpting Calculations
B32: Tenor Switch 1 | E32: =E20 -> 8 | I32: =I1<=$E32 -> TRUE | J32: TRUE | K32: TRUE | L32: TRUE | M32: TRUE | N32: TRUE | O32: TRUE | P32: TRUE | Q32: FALSE | R32: FALSE | S32: FALSE | T32: FALSE | U32: FALSE | V32: FALSE | W32: FALSE
B33: Tenor Switch 2 | E33: =E24 -> 10 | I33: =I1<=$E33 -> TRUE | J33: TRUE | K33: TRUE | L33: TRUE | M33: TRUE | N33: TRUE | O33: TRUE | P33: TRUE | Q33: TRUE | R33: TRUE | S33: FALSE | T33: FALSE | U33: FALSE | V33: FALSE | W33: FALSE
B34: Tenor Switch 3 | E34: =E28 -> 12 | I34: =I1<=$E$34 -> TRUE | J34: TRUE | K34: TRUE | L34: TRUE | M34: TRUE | N34: TRUE | O34: TRUE | P34: TRUE | Q34: TRUE | R34: TRUE | S34: TRUE | T34: TRUE | U34: FALSE | V34: FALSE | W34: FALSE
B37: Total CFADS | I37: =I2 -> 200 | J37: 210 | K37: 240 | L37: 230 | M37: 220 | N37: 210 | O37: 205.8 | P37: 201.684 | Q37: 197.65032 | R37: 193.6973136 | S37: 189.8233673 | T37: 186.0269 | U37: 182.306362 | V37: 178.6602347 | W37: 175.08703
B38: Other Debt Service | I38: =I6 -> 0 | J38: 0 | K38: 0 | L38: 0 | M38: 0 | N38: 0 | O38: 0 | P38: 0 | Q38: 0 | R38: 0 | S38: 0 | T38: 0 | U38: 0 | V38: 0 | W38: 0
B39: Total Sculpted Debt Service | E39: =E3 -> 1.3 | I39: =I37/$E$39-I38 -> 153.8461538 | J39: =J37/$E$39-J38 -> 161.5384615 | K39: 184.6153846 | L39: 176.9230769 | M39: 169.2307692 | N39: 161.5384615 | O39: 158.3076923 | P39: 155.1415385 | Q39: 152.0387077 | R39: 148.9979335 | S39: 146.0179749 | T39: 143.0976154 | U39: 140.2356631 | V39: 137.4309498 | W39: 134.6823308
B41: Issue 1: Percent
B42: Debt Service | E42: =E46 -> 4.662364573 | I42: =I37/$E$42*I32 -> 42.89668834 | J42: 45.04152276 | K42: 51.47602601 | L42: 49.33119159 | M42: 47.18635717 | N42: 45.04152276 | O42: 44.1406923 | P42: 43.25787846 | Q42: 0 | R42: 0 | S42: 0 | T42: 0 | U42: 0 | V42: 0 | W42: 0
B43: PV Debt Service | E43: =NPV(F43,I42:W42) -> 337.5105195 | F43: =I21 -> 0.02
B44: PV CF | E44: =NPV(F43,I37:W37*I32:W32) -> 1573.597089
B45: Debt 1 | E45: =F19 -> 337.5105195
B46: LLCR 1 | E46: =E44/E45 -> 4.662364573
B48: Issue 2: Percent
B49: Debt Service | E49: =E53 -> 2.57990874 | I49: =I37/$E$49*I33 -> 77.52212195 | J49: 81.39822805 | K49: 93.02654634 | L49: 89.15044025 | M49: 85.27433415 | N49: 81.39822805 | O49: 79.77026349 | P49: 78.17485822 | Q49: 76.61136106 | R49: 75.07913383 | S49: 0 | T49: 0 | U49: 0 | V49: 0 | W49: 0
B50: PV Debt Service | E50: =NPV(F50,I49:W49) -> 506.2657792 | F50: =I25 -> 0.1
B51: PV CF | E51: =NPV(F50,I37:W37*I33:W33) -> 1306.119509
B52: Debt 2 | E52: =F23 -> 506.2657792
B53: LLCR 2 | E53: =E51/E52 -> 2.57990874
B55: Issue 3: Percent
B56: Debt Service | E56: =E60 -> 4.07137997 | I56: =I37/$E$56*I34 -> 49.12339341 | J56: 51.57956308 | K56: 58.94807209 | L56: 56.49190242 | M56: 54.03573275 | N56: 51.57956308 | O56: 50.54797182 | P56: 49.53701238 | Q56: 48.54627214 | R56: 47.57534669 | S56: 46.62383976 | T56: 45.69136297 | U56: 0 | V56: 0 | W56: 0
B57: PV Debt Service | E57: =NPV(F57,I56:W56) -> 281.2587662 | F57: =I29 -> 0.15
B58: PV CF | E58: =NPV(F57,I37:W37*I34:W34) -> 1145.111307
B59: Debt 3 | E59: =F27 -> 281.2587662
B60: LLCR 3 | E60: =E58/E59 -> 4.07137997
A63: Check
B64: CFADS | I64: =I2 -> 200 | J64: 210 | K64: 240 | L64: 230 | M64: 220 | N64: 210 | O64: 205.8 | P64: 201.684 | Q64: 197.65032 | R64: 193.6973136 | S64: 189.8233673 | T64: 186.0269 | U64: 182.306362 | V64: 178.6602347 | W64: 175.08703
B66: Debt Service Other | I66: =I6 -> 0 | J66: 0 | K66: 0 | L66: 0 | M66: 0 | N66: 0 | O66: 0 | P66: 0 | Q66: 0 | R66: 0 | S66: 0 | T66: 0 | U66: 0 | V66: 0 | W66: 0
B67: Debt Service 1 | I67: =I42 -> 42.89668834 | J67: 45.04152276 | K67: 51.47602601 | L67: 49.33119159 | M67: 47.18635717 | N67: 45.04152276 | O67: 44.1406923 | P67: 43.25787846 | Q67: 0 | R67: 0 | S67: 0 | T67: 0 | U67: 0 | V67: 0 | W67: 0
B68: Debt Service 2 | I68: =I49 -> 77.52212195 | J68: 81.39822805 | K68: 93.02654634 | L68: 89.15044025 | M68: 85.27433415 | N68: 81.39822805 | O68: 79.77026349 | P68: 78.17485822 | Q68: 76.61136106 | R68: 75.07913383 | S68: 0 | T68: 0 | U68: 0 | V68: 0 | W68: 0
B69: Debt Service 3 | I69: =I56 -> 49.12339341 | J69: =J56 -> 51.57956308 | K69: 58.94807209 | L69: 56.49190242 | M69: 54.03573275 | N69: 51.57956308 | O69: 50.54797182 | P69: 49.53701238 | Q69: 48.54627214 | R69: 47.57534669 | S69: 46.62383976 | T69: 45.69136297 | U69: 0 | V69: 0 | W69: 0
C70: Total Debt Service | I70: =SUM(I66:I69) -> 169.5422037 | J70: 178.0193139 | K70: 203.4506444 | L70: 194.9735343 | M70: 186.4964241 | N70: 178.0193139 | O70: 174.4589276 | P70: 170.9697491 | Q70: 125.1576332 | R70: 122.6544805 | S70: 46.62383976 | T70: 45.69136297 | U70: 0 | V70: 0 | W70: 0
B72: Sculpted Cash Flow | H72: =-F19-F23-F27 -> -1125.035065 | I72: =SUM(I67:I69) -> 169.5422037 | J72: =SUM(J67:J69) -> 178.0193139 | K72: 203.4506444 | L72: 194.9735343 | M72: 186.4964241 | N72: 178.0193139 | O72: 174.4589276 | P72: 170.9697491 | Q72: 125.1576332 | R72: 122.6544805 | S72: 46.62383976 | T72: 45.69136297 | U72: 0 | V72: 0 | W72: 0
B73: Sculpted IRR | E73: =IRR(72:72) -> 0.09563261529
B75: DSCR | I75: =IF(I70,I64/I70) -> 1.179647283 | J75: =IF(J70,J64/J70) -> 1.179647283 | K75: 1.179647283 | L75: 1.179647283 | M75: 1.179647283 | N75: 1.179647283 | O75: 1.179647283 | P75: 1.179647283 | Q75: 1.579211071 | R75: 1.579211071 | S75: 4.07137997 | T75: 4.07137997 | U75: FALSE | V75: FALSE | W75: FALSE
B77: Debt Issues | F77: Pct Tot | G77: Pct Sculpt | H77: Target
C78: Other Debt | E78: =E8 -> 0 | F78: =E78/$E$82 -> 0
C79: Debt 1 | E79: =E43 -> 337.5105195 | F79: =E79/$E$82 -> 0.3 | G79: =E79/$E$83 -> 0.3 | H79: =E19 -> 0.3
C80: Debt 2 | E80: =E50 -> 506.2657792 | F80: =E80/$E$82 -> 0.45 | G80: =E80/$E$83 -> 0.45 | H80: =E23 -> 0.45
C81: Debt 3 | E81: =E57 -> 281.2587662 | F81: =E81/$E$82 -> 0.25 | G81: =E81/$E$83 -> 0.25 | H81: =#REF! -> 
D82: Total | E82: =SUM(E78:E81) -> 1125.035065 | F82: =E82/$E$82 -> 1
D83: Sculpted | E83: =SUM(E79:E81) -> 1125.035065
B115: CFADS | I115: =I2 -> 200 | J115: 210 | K115: 240 | L115: 230 | M115: 220 | N115: 210 | O115: 205.8 | P115: 201.684 | Q115: 197.65032 | R115: 193.6973136 | S115: 189.8233673 | T115: 186.0269 | U115: 182.306362 | V115: 178.6602347 | W115: 175.08703
B116: DSCR | E116: =E3 -> 1.3 | I116: =$E116 -> 1.3 | J116: =$E116 -> 1.3 | K116: 1.3 | L116: 1.3 | M116: 1.3 | N116: 1.3 | O116: 1.3 | P116: 1.3 | Q116: 1.3 | R116: 1.3 | S116: 1.3 | T116: 1.3 | U116: 1.3 | V116: 1.3 | W116: 1.3
B117: Debt Service | I117: =I115/I116 -> 153.8461538 | J117: =J115/J116 -> 161.5384615 | K117: 184.6153846 | L117: 176.9230769 | M117: 169.2307692 | N117: 161.5384615 | O117: 158.3076923 | P117: 155.1415385 | Q117: 152.0387077 | R117: 148.9979335 | S117: 146.0179749 | T117: 143.0976154 | U117: 140.2356631 | V117: 137.4309498 | W117: 134.6823308
B119: Debt Service 1 | I119: =I117*I32 -> 153.8461538 | J119: 161.5384615 | K119: 184.6153846 | L119: 176.9230769 | M119: 169.2307692 | N119: 161.5384615 | O119: 158.3076923 | P119: 155.1415385 | Q119: 0 | R119: 0 | S119: 0 | T119: 0 | U119: 0 | V119: 0 | W119: 0
B120: Compound Interest | G120: 1 | I120: =G120*(1+I21) -> 1.02 | J120: =I120*(1+J21) -> 1.0404 | K120: 1.061208 | L120: 1.08243216 | M120: 1.104080803 | N120: 1.126162419 | O120: 1.148685668 | P120: 1.171659381 | Q120: 1.195092569 | R120: 1.21899442 | S120: 1.243374308 | T120: 1.268241795 | U120: 1.29360663 | V120: 1.319478763 | W120: 1.345868338
B121: PV Before Adjsutment | G121: =SUMPRODUCT(I119:W119/I120:W120) -> 1210.459299
B123: Debt Service 2 | I123: =I117*I33 -> 153.8461538 | J123: 161.5384615 | K123: 184.6153846 | L123: 176.9230769 | M123: 169.2307692 | N123: 161.5384615 | O123: 158.3076923 | P123: 155.1415385 | Q123: 152.0387077 | R123: 148.9979335 | S123: 0 | T123: 0 | U123: 0 | V123: 0 | W123: 0
B124: Compound Interest | G124: 1 | I124: =G124*(1+I25) -> 1.1 | J124: =I124*(1+J25) -> 1.21 | K124: 1.331 | L124: 1.4641 | M124: 1.61051 | N124: 1.771561 | O124: 1.9487171 | P124: 2.14358881 | Q124: 2.357947691 | R124: 2.59374246 | S124: 2.853116706 | T124: 3.138428377 | U124: 3.452271214 | V124: 3.797498336 | W124: 4.177248169
B125: PV Before Adjustment | G125: =SUMPRODUCT(I123:W123/I124:W124) -> 1004.707314
B127: Allocated
C128: Total | G128: =G125+G121 -> 2215.166614
C129: Debt 1 | G129: =G121/G128 -> 0.5464416499 | I129: =I119*$G129 -> 84.06794614 | J129: =J119*$G129 -> 88.27134345 | K129: 100.8815354 | L129: 96.67813806 | M129: 92.47474075 | N129: 88.27134345 | O129: 86.50591658 | P129: 84.77579825 | Q129: 0 | R129: 0 | S129: 0 | T129: 0 | U129: 0 | V129: 0 | W129: 0
C130: Debt 2 | G130: =G125/G128 -> 0.4535583501 | I130: =I123*$G130 -> 69.77820771 | J130: =J123*$G130 -> 73.26711809 | K130: 83.73384925 | L130: 80.24493886 | M130: 76.75602848 | N130: 73.26711809 | O130: 71.80177573 | P130: 70.36574022 | Q130: 68.95842541 | R130: 67.5792569 | S130: 0 | T130: 0 | U130: 0 | V130: 0 | W130: 0
C131: Total | I131: =SUM(I129:I130) -> 153.8461538 | J131: =SUM(J129:J130) -> 161.5384615 | K131: 184.6153846 | L131: 176.9230769 | M131: 169.2307692 | N131: 161.5384615 | O131: 158.3076923 | P131: 155.1415385 | Q131: 68.95842541 | R131: 67.5792569 | S131: 0 | T131: 0 | U131: 0 | V131: 0 | W131: 0
I132: =IF(I131,I129/I131) -> 0.5464416499 | J132: =IF(J131,J129/J131) -> 0.5464416499 | K132: 0.5464416499 | L132: 0.5464416499 | M132: 0.5464416499 | N132: 0.5464416499 | O132: 0.5464416499 | P132: 0.5464416499 | Q132: 0 | R132: 0 | S132: FALSE | T132: FALSE | U132: FALSE | V132: FALSE | W132: FALSE
B133: Amounts
C134: Debt 1 | G134: =SUMPRODUCT(I129:W129/I120:W120) -> 661.4453766 | H134: =G134/I129 -> 7.867985445 | I134: =H134/H136 -> 0.5464416499 | L134: 0.5923 | M134: X | R134: =I135 -> 0.4535583501 | S134: X
C135: Debt 2 | G135: =SUMPRODUCT(I130:W130/I124:W124) -> 455.6933919 | H135: =G135/I130 -> 6.530597544 | I135: =H135/H136 -> 0.4535583501 | L135: =G134 -> 661.4453766 | M135: =G151 -> 335.1416305 | O135: =M135*L134 -> 198.5043878 | P135: =O135/L135 -> 0.3001070002 | R135: =G135 -> 455.6933919 | S135: =M135 -> 335.1416305
G136: =SUM(G134:G135) -> 1117.138768 | H136: =SUM(H134:H135) -> 14.39858299
B137: Check
C138: Debt 1 | G138: =IRR(H138:W138) -> 0.02 | H138: =-G134 -> -661.4453766 | I138: =I129 -> 84.06794614 | J138: =J129 -> 88.27134345 | K138: 100.8815354 | L138: 96.67813806 | M138: 92.47474075 | N138: 88.27134345 | O138: 86.50591658 | P138: 84.77579825 | Q138: 0 | R138: 0 | S138: 0 | T138: 0 | U138: 0 | V138: 0 | W138: 0
C139: Debt 2 | G139: =IRR(H139:W139) -> 0.1 | H139: =-G135 -> -455.6933919 | I139: =I130 -> 69.77820771 | J139: 73.26711809 | K139: 83.73384925 | L139: 80.24493886 | M139: 76.75602848 | N139: 73.26711809 | O139: 71.80177573 | P139: 70.36574022 | Q139: 68.95842541 | R139: 67.5792569 | S139: 0 | T139: 0 | U139: 0 | V139: 0 | W139: 0
C140: Total | G140: =IRR(H140:W140) -> 0.05758215173 | H140: =SUM(H138:H139) -> -1117.138768 | I140: =SUM(I138:I139) -> 153.8461538 | J140: 161.5384615 | K140: 184.6153846 | L140: 176.9230769 | M140: 169.2307692 | N140: 161.5384615 | O140: 158.3076923 | P140: 155.1415385 | Q140: 68.95842541 | R140: 67.5792569 | S140: 0 | T140: 0 | U140: 0 | V140: 0 | W140: 0
B142: PV of CFADS | I142: =I115*I32 -> 200 | J142: 210 | K142: 240 | L142: 230 | M142: 220 | N142: 210 | O142: 205.8 | P142: 201.684 | Q142: 0 | R142: 0 | S142: 0 | T142: 0 | U142: 0 | V142: 0 | W142: 0
C143: PV for 1 | G143: =G138 -> 0.02 | H143: =NPV(G143,I142:W142) -> 1573.597089 | I143: =H143/G151 -> 4.695319667
C144: PV for 2 | G144: =G139 -> 0.1 | H144: =NPV(G144,I142:W142) -> 1147.617779 | I144: =H144/G151 -> 3.424277007
C145: PV for Both | G145: =G140 -> 0.05758215173 | H145: =NPV(G145,I142:W142) -> 1347.927459 | I145: =H145/G149 -> 1.206589098
C149: PV | G149: =NPV(G140,I140:W140) -> 1117.138768
E151: =E19 -> 0.3 | G151: =G149*E151 -> 335.1416305 | I151: 0.12 | J151: =I151 -> 0.12 | K151: =J151 -> 0.12 | L151: 0.12 | M151: 0.12 | N151: 0.12 | O151: 0.12 | P151: 0.12 | Q151: 0.12 | R151: 0.12 | S151: 0.12 | T151: 0.12 | U151: 0.12 | V151: 0.12 | W151: 0.12
G152: =NPV(G138,I152:W152) -> 516.7587745 | I152: =I151*$G151 -> 40.21699566 | J152: =J151*$G151 -> 40.21699566 | K152: 40.21699566 | L152: 40.21699566 | M152: 40.21699566 | N152: 40.21699566 | O152: 40.21699566 | P152: 40.21699566 | Q152: 40.21699566 | R152: 40.21699566 | S152: 40.21699566 | T152: 40.21699566 | U152: 40.21699566 | V152: 40.21699566 | W152: 40.21699566
G154: =E155*G149 -> 335.1416305
E155: =E151 -> 0.3 | G155: =NPV(G139,I155:W155) -> 904.6403875 | I155: =I2/I116-I152 -> 113.6291582 | J155: 121.3214659 | K155: 144.398389 | L155: 136.7060813 | M155: 129.0137736 | N155: 121.3214659 | O155: 118.0906966 | P155: 114.9245428 | Q155: 111.821712 | R155: 108.7809379 | S155: 105.8009792 | T155: 102.8806197 | U155: 100.0186674 | V155: 97.21395414 | W155: 94.46533514
G157: =NPV(G140,I157:W157) -> 1554.463105 | I157: =I152+I155 -> 153.8461538 | J157: =J152+J155 -> 161.5384615 | K157: 184.6153846 | L157: 176.9230769 | M157: 169.2307692 | N157: 161.5384615 | O157: 158.3076923 | P157: 155.1415385 | Q157: 152.0387077 | R157: 148.9979335 | S157: 146.0179749 | T157: 143.0976154 | U157: 140.2356631 | V157: 137.4309498 | W157: 134.6823308
D159: CFADS | I159: =I2 -> 200 | J159: 210 | K159: 240 | L159: 230 | M159: 220 | N159: 210 | O159: 205.8 | P159: 201.684 | Q159: 197.65032 | R159: 193.6973136 | S159: 189.8233673 | T159: 186.0269 | U159: 182.306362 | V159: 178.6602347 | W159: 175.08703
D161: CFADS 1 | G161: =E20 -> 8 | I161: =(I1<=$G$161)*I159 -> 200 | J161: 210 | K161: 240 | L161: 230 | M161: 220 | N161: 210 | O161: 205.8 | P161: 201.684 | Q161: 0 | R161: 0 | S161: 0 | T161: 0 | U161: 0 | V161: 0 | W161: 0
D162: CFADS 2 | G162: =E24 -> 10 | I162: =(I1<=$G$162)*I159 -> 200 | J162: 210 | K162: 240 | L162: 230 | M162: 220 | N162: 210 | O162: 205.8 | P162: 201.684 | Q162: 197.65032 | R162: 193.6973136 | S162: 0 | T162: 0 | U162: 0 | V162: 0 | W162: 0
D165: Debt Service 1 | E165: =H165/(H165+H166) -> 0.5105772883 | G165: 2.977201654 | H165: =NPV(G143,I165:W165) -> 528.5490443 | I165: =I161/$G165 -> 67.17717617 | J165: =J161/$G165 -> 70.53603498 | K165: 80.61261141 | L165: 77.2537526 | M165: 73.89489379 | N165: 70.53603498 | O165: 69.12531428 | P165: 67.742808 | Q165: 0 | R165: 0 | S165: 0 | T165: 0 | U165: 0 | V165: 0 | W165: 0
D166: Debt Service 2 | E166: =E23/(E19+E27) -> 0.8181818182 | H166: =NPV(G144,I166:W166) -> 506.6498501 | I166: =(I162/$G$168-I165)*$E$166 -> 70.91098173 | J166: 74.45653082 | K166: 85.09317808 | L166: 81.54762899 | M166: 78.0020799 | N166: 74.45653082 | O166: 72.9674002 | P166: 71.5080522 | Q166: 124.3953063 | R166: 121.9074002 | S166: 0 | T166: 0 | U166: 0 | V166: 0 | W166: 0
E167: =E27/(E19+E23) -> 0.3333333333 | H167: =NPV(I29,I167:W167) -> 179.5212773 | I167: =(I161-I165-I166)/$G$168 -> 47.62449392 | J167: =(J161-J165-J166)/$G$168 -> 50.00571861 | K167: 57.1493927 | L167: 54.76816801 | M167: 52.38694331 | N167: 50.00571861 | O167: 49.00560424 | P167: 48.02549216 | Q167: -95.68869715 | R167: -93.77492321 | S167: 0 | T167: 0 | U167: 0 | V167: 0 | W167: 0
G168: =E3 -> 1.3 | H168: =NPV(G145,I168:W168) -> 1554.463105 | I168: =I$159/$G168 -> 153.8461538 | J168: =J$159/$G168 -> 161.5384615 | K168: 184.6153846 | L168: 176.9230769 | M168: 169.2307692 | N168: 161.5384615 | O168: 158.3076923 | P168: 155.1415385 | Q168: 152.0387077 | R168: 148.9979335 | S168: 146.0179749 | T168: 143.0976154 | U168: 140.2356631 | V168: 137.4309498 | W168: 134.6823308
H170: =(H165+H166)*E167-H167 -> 165.5450209 | I170: =I165+I166 -> 138.0881579 | J170: =J165+J166 -> 144.9925658 | K170: 165.7057895 | L170: 158.8013816 | M170: 151.8969737 | N170: 144.9925658 | O170: 142.0927145 | P170: 139.2508602 | Q170: 124.3953063 | R170: 121.9074002 | S170: 0 | T170: 0 | U170: 0 | V170: 0 | W170: 0
I171: =I159/I170 -> 1.448350119 | J171: =J159/J170 -> 1.448350119 | K171: 1.448350119 | L171: 1.448350119 | M171: 1.448350119 | N171: 1.448350119 | O171: 1.448350119 | P171: 1.448350119 | Q171: 1.588888889 | R171: 1.588888889
I174: 4 | J174: 2
I188: dscr = cfads/ds
I190: ds = cfads/dscr
I191: ds + other = cfads/dscr
I192: ds = cfads/dscr - other
H194: Weighted LLCR
I195: LLCR 1 = At Rate 1 = CFADS at Rate 1/Given Debt
I196: LLCR 2 = At Rate 2 = CFADS at Rate 2/Given Debt
I197: LLCR Average
H198: Compute 1

Sheet LLCR and Simple
D1: Period | G1: 0 | I1: 1 | J1: 2 | K1: 3 | L1: 4 | M1: 5 | N1: 6 | O1: 7 | P1: 8 | Q1: 9 | R1: 10 | S1: 11 | T1: 12 | U1: 13 | V1: 14 | W1: 15
B2: CFADS | I2: 100 | J2: 100 | K2: 100 | L2: 100 | M2: 100 | N2: 100 | O2: 100 | P2: 100 | Q2: 100 | R2: 100 | S2: 100 | T2: 100 | U2: 100 | V2: 100 | W2: 100
B3: DSCR Target | E3: 2
B4: Max Debt to Capital | E4: 0.6
B5: Total Project Cost | E5: 900
B6: Non-Sculpted Debt Service | I6: 0 | J6: =I6 -> 0 | K6: =J6 -> 0 | L6: =K6 -> 0 | M6: =L6 -> 0 | N6: =M6 -> 0
B7: Interest Rate | E7: 0
B8: NPV of Debt Service | E8: =NPV(E7,I6:W6) -> 0
F9: DSCR = CFADS/(SDS+ODS) | I9: LLCR = NPV(CFADS)/Debt | L9: LLCR = NPV(CFADS)/(Odebt + Sdebt)
F10: SDS = CFADS/DSCR - ODS | I10: ALCR = NPV(CFADS - CFADS/DSCR)/Debt
B12: Max Tenor | E12: =MAX(E20,E24,E28) -> 10
B13: Aggregate Switch | I13: =I1<=$E$12 -> TRUE | J13: =J1<=$E$12 -> TRUE | K13: TRUE | L13: TRUE | M13: TRUE | N13: TRUE | O13: TRUE | P13: TRUE | Q13: TRUE | R13: TRUE | S13: FALSE | T13: FALSE | U13: FALSE | V13: FALSE | W13: FALSE
B14: Total Debt Service for Sculpting | E14: =E3 -> 2 | F14: Fixed | I14: =I2/$E$14*I13 -> 50 | J14: =J2/$E$14*J13 -> 50 | K14: 50 | L14: 50 | M14: 50 | N14: 50 | O14: 50 | P14: 50 | Q14: 50 | R14: 50 | S14: 0 | T14: 0 | U14: 0 | V14: 0 | W14: 0
B15: IRR on Sculpted Debt | E15: =E74 -> 2.920330644e-12 | F15: 0 | G15: =F15-E15 -> -2.920330644e-12
B16: NPV of Total Debt Service | E16: =NPV(F15,I14:W14) -> 500
B18: Debt 1
C19: Percent | E19: 0.5 | F19: =E19*E16 -> 250
C20: Tenor | E20: 10
C21: Interest Rate | I21: 0 | J21: =I21 -> 0 | K21: =J21 -> 0 | L21: 0 | M21: 0 | N21: 0 | O21: 0 | P21: 0 | Q21: 0 | R21: 0 | S21: 0 | T21: 0 | U21: 0 | V21: 0 | W21: 0
B22: Debt 2
C23: Amount | E23: 0.5 | F23: =E23*E16 -> 250
C24: Tenor | E24: 10
C25: Interest Rate | I25: 0 | J25: =I25 -> 0 | K25: =J25 -> 0 | L25: 0 | M25: 0 | N25: 0 | O25: 0 | P25: 0 | Q25: 0 | R25: 0 | S25: 0 | T25: 0 | U25: 0 | V25: 0 | W25: 0
B26: Debt 3
C27: Amount | E27: 0 | F27: =E27*E16 -> 0
C28: Tenor | E28: 10
C29: Interest Rate | I29: 0 | J29: =I29 -> 0 | K29: =J29 -> 0 | L29: 0 | M29: 0 | N29: 0 | O29: 0 | P29: 0 | Q29: 0 | R29: 0 | S29: 0 | T29: 0 | U29: 0 | V29: 0 | W29: 0
B32: Total CFADS | I32: =I2 -> 100 | J32: 100 | K32: 100 | L32: 100 | M32: 100 | N32: 100 | O32: 100 | P32: 100 | Q32: 100 | R32: 100 | S32: 100 | T32: 100 | U32: 100 | V32: 100 | W32: 100
B33: Other Debt Service | I33: =I6 -> 0 | J33: 0 | K33: 0 | L33: 0 | M33: 0 | N33: 0 | O33: 0 | P33: 0 | Q33: 0 | R33: 0 | S33: 0 | T33: 0 | U33: 0 | V33: 0 | W33: 0
B34: Total Sculpted Debt Service | E34: =E3 -> 2 | I34: =I32/$E$34-I33 -> 50 | J34: =J32/$E$34-J33 -> 50 | K34: 50 | L34: 50 | M34: 50 | N34: 50 | O34: 50 | P34: 50 | Q34: 50 | R34: 50 | S34: 50 | T34: 50 | U34: 50 | V34: 50 | W34: 50
B36: Issue 1: Percent | E36: =E20 -> 10 | I36: =I1<=$E36 -> TRUE | J36: TRUE | K36: TRUE | L36: TRUE | M36: TRUE | N36: TRUE | O36: TRUE | P36: TRUE | Q36: TRUE | R36: TRUE | S36: FALSE | T36: FALSE | U36: FALSE | V36: FALSE | W36: FALSE
B37: Other Debt Service
B38: Debt Service | E38: =E43 -> 4 | I38: =(I32/$E$38-I37)*I36 -> 25 | J38: =(J32/$E$38-J37)*J36 -> 25 | K38: 25 | L38: 25 | M38: 25 | N38: 25 | O38: 25 | P38: 25 | Q38: 25 | R38: 25 | S38: 0 | T38: 0 | U38: 0 | V38: 0 | W38: 0
B39: CFADS Adjusted | I39: =I32 -> 100 | J39: =J32 -> 100 | K39: 100 | L39: 100 | M39: 100 | N39: 100 | O39: 100 | P39: 100 | Q39: 100 | R39: 100 | S39: 100 | T39: 100 | U39: 100 | V39: 100 | W39: 100
B40: PV Debt Service | E40: =NPV(F40,I38:W38) -> 250 | F40: =I21 -> 0 | G40: =E40-E42 -> 0
B41: PV CF | E41: =NPV(F40,I39:W39*I36:W36) -> 1000
B42: Debt 1 | E42: =F19 -> 250
B43: LLCR 1 | E43: =E41/E42 -> 4
B45: Issue 2: Percent | E45: =E24 -> 10 | I45: =I1<=$E45 -> TRUE | J45: TRUE | K45: TRUE | L45: TRUE | M45: TRUE | N45: TRUE | O45: TRUE | P45: TRUE | Q45: TRUE | R45: TRUE | S45: FALSE | T45: FALSE | U45: FALSE | V45: FALSE | W45: FALSE
B46: Other Debt Service
B47: Debt Service | E47: =E52 -> 4 | I47: =I32/$E$47*I45-I46 -> 25 | J47: =J32/$E$47*J45-J46 -> 25 | K47: 25 | L47: 25 | M47: 25 | N47: 25 | O47: 25 | P47: 25 | Q47: 25 | R47: 25 | S47: 0 | T47: 0 | U47: 0 | V47: 0 | W47: 0
B48: PV Debt Service | E48: =NPV(F48,I47:W47) -> 250 | F48: =I25 -> 0
B49: CFADS Adjusted | I49: =I32 -> 100 | J49: =J32 -> 100 | K49: 100 | L49: 100 | M49: 100 | N49: 100 | O49: 100 | P49: 100 | Q49: 100 | R49: 100 | S49: 100 | T49: 100 | U49: 100 | V49: 100 | W49: 100
B50: PV CF | E50: =NPV(F48,I49:W49*I45:W45) -> 1000
B51: Debt 2 | E51: =F23 -> 250
B52: LLCR 2 | E52: =E50/E51 -> 4
B54: Issue 3: Percent | E54: =E28 -> 10 | I54: =I1<=$E$54 -> TRUE | J54: TRUE | K54: TRUE | L54: TRUE | M54: TRUE | N54: TRUE | O54: TRUE | P54: TRUE | Q54: TRUE | R54: TRUE | S54: FALSE | T54: FALSE | U54: FALSE | V54: FALSE | W54: FALSE
B55: Other Debt Service
B56: Debt Service | E56: =E61 -> FALSE
B57: Other CFADS
B58: PV Debt Service | E58: =NPV(F58,I56:W56) -> 0 | F58: =I29 -> 0
B59: PV CF | E59: =NPV(F58,I32:W32*I54:W54) -> 1000
B60: Debt 3 | E60: =F27 -> 0
B61: LLCR 3 | E61: =IF(E60,E59/E60) -> FALSE
A64: Check
B65: CFADS | I65: =I2 -> 100 | J65: 100 | K65: 100 | L65: 100 | M65: 100 | N65: 100 | O65: 100 | P65: 100 | Q65: 100 | R65: 100 | S65: 100 | T65: 100 | U65: 100 | V65: 100 | W65: 100
B67: Debt Service Other | I67: =I6 -> 0 | J67: 0 | K67: 0 | L67: 0 | M67: 0 | N67: 0 | O67: 0 | P67: 0 | Q67: 0 | R67: 0 | S67: 0 | T67: 0 | U67: 0 | V67: 0 | W67: 0
B68: Debt Service 1 | I68: =I38 -> 25 | J68: 25 | K68: 25 | L68: 25 | M68: 25 | N68: 25 | O68: 25 | P68: 25 | Q68: 25 | R68: 25 | S68: 0 | T68: 0 | U68: 0 | V68: 0 | W68: 0
B69: Debt Service 2 | I69: =I47 -> 25 | J69: 25 | K69: 25 | L69: 25 | M69: 25 | N69: 25 | O69: 25 | P69: 25 | Q69: 25 | R69: 25 | S69: 0 | T69: 0 | U69: 0 | V69: 0 | W69: 0
B70: Debt Service 3 | I70: =I56 -> 0 | J70: =J56 -> 0 | K70: 0 | L70: 0 | M70: 0 | N70: 0 | O70: 0 | P70: 0 | Q70: 0 | R70: 0 | S70: 0 | T70: 0 | U70: 0 | V70: 0 | W70: 0
C71: Total Debt Service | I71: =SUM(I67:I70) -> 50 | J71: 50 | K71: 50 | L71: 50 | M71: 50 | N71: 50 | O71: 50 | P71: 50 | Q71: 50 | R71: 50 | S71: 0 | T71: 0 | U71: 0 | V71: 0 | W71: 0
B73: Sculpted Cash Flow | H73: =-F19-F23-F27 -> -500 | I73: =SUM(I68:I70) -> 50 | J73: =SUM(J68:J70) -> 50 | K73: 50 | L73: 50 | M73: 50 | N73: 50 | O73: 50 | P73: 50 | Q73: 50 | R73: 50 | S73: 0 | T73: 0 | U73: 0 | V73: 0 | W73: 0
B74: Sculpted IRR | E74: =IRR(73:73) -> 2.920330644e-12
B76: DSCR | I76: =IF(I71,I65/I71) -> 2 | J76: =IF(J71,J65/J71) -> 2 | K76: 2 | L76: 2 | M76: 2 | N76: 2 | O76: 2 | P76: 2 | Q76: 2 | R76: 2 | S76: FALSE | T76: FALSE | U76: FALSE | V76: FALSE | W76: FALSE
B78: Debt Issues | F78: Pct Tot | G78: Pct Sculpt | H78: Target
C79: Other Debt | E79: =E8 -> 0 | F79: =E79/$E$83 -> 0
C80: Debt 1 | E80: =E40 -> 250 | F80: =E80/$E$83 -> 0.5 | G80: =E80/$E$84 -> 0.5 | H80: =E19 -> 0.5
C81: Debt 2 | E81: =E48 -> 250 | F81: =E81/$E$83 -> 0.5 | G81: =E81/$E$84 -> 0.5 | H81: =E23 -> 0.5
C82: Debt 3 | E82: =E58 -> 0 | F82: =E82/$E$83 -> 0 | G82: =E82/$E$84 -> 0 | H82: =#REF! -> 
D83: Total | E83: =SUM(E79:E82) -> 500 | F83: =E83/$E$83 -> 1
D84: Sculpted | E84: =SUM(E80:E82) -> 500
B116: CFADS | I116: =I2 -> 100 | J116: 100 | K116: 100 | L116: 100 | M116: 100 | N116: 100 | O116: 100 | P116: 100 | Q116: 100 | R116: 100 | S116: 100 | T116: 100 | U116: 100 | V116: 100 | W116: 100
B117: DSCR | E117: =E3 -> 2 | I117: =$E117 -> 2 | J117: =$E117 -> 2 | K117: 2 | L117: 2 | M117: 2 | N117: 2 | O117: 2 | P117: 2 | Q117: 2 | R117: 2 | S117: 2 | T117: 2 | U117: 2 | V117: 2 | W117: 2
B118: Debt Service | I118: =I116/I117 -> 50 | J118: =J116/J117 -> 50 | K118: 50 | L118: 50 | M118: 50 | N118: 50 | O118: 50 | P118: 50 | Q118: 50 | R118: 50 | S118: 50 | T118: 50 | U118: 50 | V118: 50 | W118: 50
B120: Debt Service 1 | I120: =I118*I36 -> 50 | J120: 50 | K120: 50 | L120: 50 | M120: 50 | N120: 50 | O120: 50 | P120: 50 | Q120: 50 | R120: 50 | S120: 0 | T120: 0 | U120: 0 | V120: 0 | W120: 0
B121: Compound Interest | G121: 1 | I121: =G121*(1+I21) -> 1 | J121: =I121*(1+J21) -> 1 | K121: 1 | L121: 1 | M121: 1 | N121: 1 | O121: 1 | P121: 1 | Q121: 1 | R121: 1 | S121: 1 | T121: 1 | U121: 1 | V121: 1 | W121: 1
B122: PV Before Adjsutment | G122: =SUMPRODUCT(I120:W120/I121:W121) -> 500
B124: Debt Service 2 | I124: =I118*I45 -> 50 | J124: 50 | K124: 50 | L124: 50 | M124: 50 | N124: 50 | O124: 50 | P124: 50 | Q124: 50 | R124: 50 | S124: 0 | T124: 0 | U124: 0 | V124: 0 | W124: 0
B125: Compound Interest | G125: 1 | I125: =G125*(1+I25) -> 1 | J125: =I125*(1+J25) -> 1 | K125: 1 | L125: 1 | M125: 1 | N125: 1 | O125: 1 | P125: 1 | Q125: 1 | R125: 1 | S125: 1 | T125: 1 | U125: 1 | V125: 1 | W125: 1
B126: PV Before Adjustment | G126: =SUMPRODUCT(I124:W124/I125:W125) -> 500
B128: Allocated
C129: Total | G129: =G126+G122 -> 1000
C130: Debt 1 | G130: =G122/G129 -> 0.5 | I130: =I120*$G130 -> 25 | J130: =J120*$G130 -> 25 | K130: 25 | L130: 25 | M130: 25 | N130: 25 | O130: 25 | P130: 25 | Q130: 25 | R130: 25 | S130: 0 | T130: 0 | U130: 0 | V130: 0 | W130: 0
C131: Debt 2 | G131: =G126/G129 -> 0.5 | I131: =I124*$G131 -> 25 | J131: =J124*$G131 -> 25 | K131: 25 | L131: 25 | M131: 25 | N131: 25 | O131: 25 | P131: 25 | Q131: 25 | R131: 25 | S131: 0 | T131: 0 | U131: 0 | V131: 0 | W131: 0
C132: Total | I132: =SUM(I130:I131) -> 50 | J132: =SUM(J130:J131) -> 50 | K132: 50 | L132: 50 | M132: 50 | N132: 50 | O132: 50 | P132: 50 | Q132: 50 | R132: 50 | S132: 0 | T132: 0 | U132: 0 | V132: 0 | W132: 0
I133: =IF(I132,I130/I132) -> 0.5 | J133: =IF(J132,J130/J132) -> 0.5 | K133: 0.5 | L133: 0.5 | M133: 0.5 | N133: 0.5 | O133: 0.5 | P133: 0.5 | Q133: 0.5 | R133: 0.5 | S133: FALSE | T133: FALSE | U133: FALSE | V133: FALSE | W133: FALSE
B134: Amounts
C135: Debt 1 | G135: =SUMPRODUCT(I130:W130/I121:W121) -> 250 | H135: =G135/I130 -> 10 | I135: =H135/H137 -> 0.5 | L135: 0.5923 | M135: X | R135: =I136 -> 0.5 | S135: X
C136: Debt 2 | G136: =SUMPRODUCT(I131:W131/I125:W125) -> 250 | H136: =G136/I131 -> 10 | I136: =H136/H137 -> 0.5 | L136: =G135 -> 250 | M136: =G152 -> 250 | O136: =M136*L135 -> 148.075 | P136: =O136/L136 -> 0.5923 | R136: =G136 -> 250 | S136: =M136 -> 250
G137: =SUM(G135:G136) -> 500 | H137: =SUM(H135:H136) -> 20
B138: Check
C139: Debt 1 | G139: =IRR(H139:W139) -> 2.920330644e-12 | H139: =-G135 -> -250 | I139: =I130 -> 25 | J139: =J130 -> 25 | K139: 25 | L139: 25 | M139: 25 | N139: 25 | O139: 25 | P139: 25 | Q139: 25 | R139: 25 | S139: 0 | T139: 0 | U139: 0 | V139: 0 | W139: 0
C140: Debt 2 | G140: =IRR(H140:W140) -> 2.920330644e-12 | H140: =-G136 -> -250 | I140: =I131 -> 25 | J140: 25 | K140: 25 | L140: 25 | M140: 25 | N140: 25 | O140: 25 | P140: 25 | Q140: 25 | R140: 25 | S140: 0 | T140: 0 | U140: 0 | V140: 0 | W140: 0
C141: Total | G141: =IRR(H141:W141) -> 2.920330644e-12 | H141: =SUM(H139:H140) -> -500 | I141: =SUM(I139:I140) -> 50 | J141: 50 | K141: 50 | L141: 50 | M141: 50 | N141: 50 | O141: 50 | P141: 50 | Q141: 50 | R141: 50 | S141: 0 | T141: 0 | U141: 0 | V141: 0 | W141: 0
B143: PV of CFADS | I143: =I116*I36 -> 100 | J143: 100 | K143: 100 | L143: 100 | M143: 100 | N143: 100 | O143: 100 | P143: 100 | Q143: 100 | R143: 100 | S143: 0 | T143: 0 | U143: 0 | V143: 0 | W143: 0
C144: PV for 1 | G144: =G139 -> 2.920330644e-12 | H144: =NPV(G144,I143:W143) -> 1000 | I144: =H144/G152 -> 4
C145: PV for 2 | G145: =G140 -> 2.920330644e-12 | H145: =NPV(G145,I143:W143) -> 1000 | I145: =H145/G152 -> 4
C146: PV for Both | G146: =G141 -> 2.920330644e-12 | H146: =NPV(G146,I143:W143) -> 1000 | I146: =H146/G150 -> 2
C150: PV | G150: =NPV(G141,I141:W141) -> 500
E152: =E19 -> 0.5 | G152: =G150*E152 -> 250 | I152: 0.12 | J152: =I152 -> 0.12 | K152: =J152 -> 0.12 | L152: 0.12 | M152: 0.12 | N152: 0.12 | O152: 0.12 | P152: 0.12 | Q152: 0.12 | R152: 0.12 | S152: 0.12 | T152: 0.12 | U152: 0.12 | V152: 0.12 | W152: 0.12
G153: =NPV(G139,I153:W153) -> 450 | I153: =I152*$G152 -> 30 | J153: =J152*$G152 -> 30 | K153: 30 | L153: 30 | M153: 30 | N153: 30 | O153: 30 | P153: 30 | Q153: 30 | R153: 30 | S153: 30 | T153: 30 | U153: 30 | V153: 30 | W153: 30
G155: =E156*G150 -> 250
E156: =E152 -> 0.5 | G156: =NPV(G140,I156:W156) -> 300 | I156: =I2/I117-I153 -> 20 | J156: 20 | K156: 20 | L156: 20 | M156: 20 | N156: 20 | O156: 20 | P156: 20 | Q156: 20 | R156: 20 | S156: 20 | T156: 20 | U156: 20 | V156: 20 | W156: 20
G158: =NPV(G141,I158:W158) -> 750 | I158: =I153+I156 -> 50 | J158: =J153+J156 -> 50 | K158: 50 | L158: 50 | M158: 50 | N158: 50 | O158: 50 | P158: 50 | Q158: 50 | R158: 50 | S158: 50 | T158: 50 | U158: 50 | V158: 50 | W158: 50
D160: CFADS | I160: =I2 -> 100 | J160: 100 | K160: 100 | L160: 100 | M160: 100 | N160: 100 | O160: 100 | P160: 100 | Q160: 100 | R160: 100 | S160: 100 | T160: 100 | U160: 100 | V160: 100 | W160: 100
D162: CFADS 1 | G162: =E20 -> 10 | I162: =(I1<=$G$162)*I160 -> 100 | J162: 100 | K162: 100 | L162: 100 | M162: 100 | N162: 100 | O162: 100 | P162: 100 | Q162: 100 | R162: 100 | S162: 0 | T162: 0 | U162: 0 | V162: 0 | W162: 0
D163: CFADS 2 | G163: =E24 -> 10 | I163: =(I1<=$G$163)*I160 -> 100 | J163: 100 | K163: 100 | L163: 100 | M163: 100 | N163: 100 | O163: 100 | P163: 100 | Q163: 100 | R163: 100 | S163: 0 | T163: 0 | U163: 0 | V163: 0 | W163: 0
D166: Debt Service 1 | E166: =H166/(H166+H167) -> 0.6717717617 | G166: 2.977201654 | H166: =NPV(G144,I166:W166) -> 335.8858809 | I166: =I162/$G166 -> 33.58858809 | J166: =J162/$G166 -> 33.58858809 | K166: 33.58858809 | L166: 33.58858809 | M166: 33.58858809 | N166: 33.58858809 | O166: 33.58858809 | P166: 33.58858809 | Q166: 33.58858809 | R166: 33.58858809 | S166: 0 | T166: 0 | U166: 0 | V166: 0 | W166: 0
D167: Debt Service 2 | E167: =E23/(E19+E27) -> 1 | H167: =NPV(G145,I167:W167) -> 164.1141191 | I167: =(I163/$G$169-I166)*$E$167 -> 16.41141191 | J167: 16.41141191 | K167: 16.41141191 | L167: 16.41141191 | M167: 16.41141191 | N167: 16.41141191 | O167: 16.41141191 | P167: 16.41141191 | Q167: 16.41141191 | R167: 16.41141191 | S167: 0 | T167: 0 | U167: 0 | V167: 0 | W167: 0
E168: =E27/(E19+E23) -> 0 | H168: =NPV(I29,I168:W168) -> 250 | I168: =(I162-I166-I167)/$G$169 -> 25 | J168: =(J162-J166-J167)/$G$169 -> 25 | K168: 25 | L168: 25 | M168: 25 | N168: 25 | O168: 25 | P168: 25 | Q168: 25 | R168: 25 | S168: 0 | T168: 0 | U168: 0 | V168: 0 | W168: 0
G169: =E3 -> 2 | H169: =NPV(G146,I169:W169) -> 750 | I169: =I$160/$G169 -> 50 | J169: =J$160/$G169 -> 50 | K169: 50 | L169: 50 | M169: 50 | N169: 50 | O169: 50 | P169: 50 | Q169: 50 | R169: 50 | S169: 50 | T169: 50 | U169: 50 | V169: 50 | W169: 50
H171: =(H166+H167)*E168-H168 -> -250 | I171: =I166+I167 -> 50 | J171: =J166+J167 -> 50 | K171: 50 | L171: 50 | M171: 50 | N171: 50 | O171: 50 | P171: 50 | Q171: 50 | R171: 50 | S171: 0 | T171: 0 | U171: 0 | V171: 0 | W171: 0
I172: =I160/I171 -> 2 | J172: =J160/J171 -> 2 | K172: 2 | L172: 2 | M172: 2 | N172: 2 | O172: 2 | P172: 2 | Q172: 2 | R172: 2
I175: 4 | J175: 2
I189: dscr = cfads/ds
I191: ds = cfads/dscr
I192: ds + other = cfads/dscr
I193: ds = cfads/dscr - other
H195: Weighted LLCR
I196: LLCR 1 = At Rate 1 = CFADS at Rate 1/Given Debt
I197: LLCR 2 = At Rate 2 = CFADS at Rate 2/Given Debt
I198: LLCR Average
H199: Compute 1

Sheet Shift Cntl S
C3: 1 | D3: 2 | E3: 3 | F3: 4 | G3: 5 | H3: 6 | I3: 7 | J3: 8 | K3: 9 | L3: 10 | M3: 11 | N3: 12 | O3: 13 | P3: 14 | Q3: 15
C5: 100 | D5: 100 | E5: 100 | F5: 100 | G5: 100 | H5: 100 | I5: 100 | J5: 100 | K5: 100 | L5: 100 | M5: 100 | N5: 100 | O5: 100 | P5: 100 | Q5: 100
C6: 200 | D6: 200 | E6: 200 | F6: 200 | G6: 200 | H6: 200 | I6: 200 | J6: 200 | K6: 200 | L6: 200 | M6: 200 | N6: 200 | O6: 200 | P6: 200 | Q6: 200
C7: =SUM(C5:C6) -> 300 | D7: =SUM(D5:D6) -> 300 | E7: 300 | F7: 300 | G7: 300 | H7: 300 | I7: 300 | J7: 300 | K7: 300 | L7: 300 | M7: 300 | N7: 300 | O7: 300 | P7: 300 | Q7: 300
C9: First time in blank row does not work
C10: Over-write does work
C12: 200 | D12: 100 | E12: 100 | F12: 100 | G12: 100 | H12: 100 | I12: 100 | J12: 100 | K12: 100 | L12: 100 | M12: 100 | N12: 100 | O12: 100 | P12: 100 | Q12: 100
C14: 100 | D14: 100 | E14: 100 | F14: 100 | G14: 100 | H14: 100 | I14: 100 | J14: 100 | K14: 100 | L14: 100 | M14: 100 | N14: 100 | O14: 100 | P14: 100 | Q14: 100
C16: 300 | D16: 300 | E16: 300 | F16: 300 | G16: 300 | H16: 300 | I16: 300 | J16: 300 | K16: 300 | L16: 300 | M16: 300 | N16: 300 | O16: 300 | P16: 300 | Q16: 300
C18: 500 | D18: 500 | E18: 500 | F18: 500 | G18: 500 | H18: 500 | I18: 500 | J18: 500 | K18: 500 | L18: 500 | M18: 500 | N18: 500 | O18: 500 | P18: 500 | Q18: 500
C19: 1000 | D19: 1000 | E19: 1000 | F19: 1000 | G19: 1000 | H19: 1000 | I19: 1000 | J19: 1000 | K19: 1000 | L19: 1000 | M19: 1000 | N19: 1000 | O19: 1000 | P19: 1000 | Q19: 1000
C21: 2000 | D21: 2000 | E21: 2000 | F21: 2000 | G21: 2000 | H21: 2000 | I21: 2000 | J21: 2000 | K21: 2000 | L21: 2000 | M21: 2000 | N21: 2000 | O21: 2000 | P21: 2000 | Q21: 2000

Sheet LLCR Same Tenor
D1: Period | G1: 0 | I1: 1 | J1: 2 | K1: 3 | L1: 4 | M1: 5 | N1: 6 | O1: 7 | P1: 8 | Q1: 9 | R1: 10 | S1: 11 | T1: 12 | U1: 13 | V1: 14 | W1: 15
B2: CFADS | I2: 100 | J2: 100 | K2: 100 | L2: 100 | M2: 100 | N2: 100 | O2: 100 | P2: 100 | Q2: 100 | R2: 100 | S2: 100 | T2: 100 | U2: 100 | V2: 100 | W2: 100
B3: DSCR Target | E3: 1.75
B4: Max Debt to Capital | E4: 0.8
B5: Total Project Cost | E5: 900
B6: Non-Sculpted Debt Service | I6: 0 | J6: =I6 -> 0 | K6: =J6 -> 0 | L6: =K6 -> 0 | M6: =L6 -> 0 | N6: =M6 -> 0
B7: Interest Rate | E7: 0
B8: NPV of Debt Service | E8: =NPV(E7,I6:W6) -> 0 | G8: DSCR =CFADS/(SDS+ODS) | J8: LLCR =NPV(CFADS)/Debt | M8: LLCR =NPV(CFADS)/(Odebt + Sdebt)
G9: SDS =CFADS/DSCR - ODS | J9: ALCR =NPV(CFADS - CFADS/DSCR)/Debt
B10: Max Tenor | E10: =MAX(E18,E22,E26) -> 10
B11: Aggregate Switch | I11: =I1<=$E$10 -> TRUE | J11: TRUE | K11: TRUE | L11: TRUE | M11: TRUE | N11: TRUE | O11: TRUE | P11: TRUE | Q11: TRUE | R11: TRUE | S11: FALSE | T11: FALSE | U11: FALSE | V11: FALSE | W11: FALSE
B12: Total Debt Service for Sculpting | E12: =E3 -> 1.75 | F12: Fixed | I12: =I2/$E$12*I11 -> 57.14285714 | J12: 57.14285714 | K12: 57.14285714 | L12: 57.14285714 | M12: 57.14285714 | N12: 57.14285714 | O12: 57.14285714 | P12: 57.14285714 | Q12: 57.14285714 | R12: 57.14285714 | S12: 0 | T12: 0 | U12: 0 | V12: 0 | W12: 0
B13: IRR on Sculpted Debt | E13: =E72 -> 0.05378244993 | F13: 0.05378244993 | G13: =F13-E13 -> 0
B14: NPV of Total Debt Service | E14: =NPV(F13,I12:W12) -> 433.2480992
B16: Debt 1
C17: Percent | E17: 0.4 | F17: =E17*E14 -> 173.2992397
C18: Tenor | E18: 10
C19: Interest Rate | I19: 0.1 | J19: 0.1 | K19: 0.1 | L19: 0.1 | M19: 0.1 | N19: 0.1 | O19: 0.1 | P19: 0.1 | Q19: 0.1 | R19: 0.1 | S19: 0.1 | T19: 0.1 | U19: 0.1 | V19: 0.1 | W19: 0.1
B20: Debt 2
C21: Amount | E21: =1-E17 -> 0.6 | F21: =E21*E14 -> 259.9488595
C22: Tenor | E22: 10
C23: Interest Rate | I23: 0.02 | J23: 0.02 | K23: 0.02 | L23: 0.02 | M23: 0.02 | N23: 0.02 | O23: 0.02 | P23: 0.02 | Q23: 0.02 | R23: 0.02 | S23: 0.02 | T23: 0.02 | U23: 0.02 | V23: 0.02 | W23: 0.02
B24: Debt 3
C25: Amount | E25: 0 | F25: =E25*E14 -> 0
C26: Tenor | E26: 10
C27: Interest Rate | I27: 0 | J27: =I27 -> 0 | K27: =J27 -> 0 | L27: 0 | M27: 0 | N27: 0 | O27: 0 | P27: 0 | Q27: 0 | R27: 0 | S27: 0 | T27: 0 | U27: 0 | V27: 0 | W27: 0
B30: Total CFADS | I30: =I2 -> 100 | J30: 100 | K30: 100 | L30: 100 | M30: 100 | N30: 100 | O30: 100 | P30: 100 | Q30: 100 | R30: 100 | S30: 100 | T30: 100 | U30: 100 | V30: 100 | W30: 100
B31: Other Debt Service | I31: =I6 -> 0 | J31: 0 | K31: 0 | L31: 0 | M31: 0 | N31: 0 | O31: 0 | P31: 0 | Q31: 0 | R31: 0 | S31: 0 | T31: 0 | U31: 0 | V31: 0 | W31: 0
B32: Total Sculpted Debt Service | E32: =E3 -> 1.75 | I32: =I30/$E$32-I31 -> 57.14285714 | J32: =J30/$E$32-J31 -> 57.14285714 | K32: 57.14285714 | L32: 57.14285714 | M32: 57.14285714 | N32: 57.14285714 | O32: 57.14285714 | P32: 57.14285714 | Q32: 57.14285714 | R32: 57.14285714 | S32: 57.14285714 | T32: 57.14285714 | U32: 57.14285714 | V32: 57.14285714 | W32: 57.14285714
B34: Issue 1: Percent | E34: =E18 -> 10 | I34: =I1<=$E34 -> TRUE | J34: TRUE | K34: TRUE | L34: TRUE | M34: TRUE | N34: TRUE | O34: TRUE | P34: TRUE | Q34: TRUE | R34: TRUE | S34: FALSE | T34: FALSE | U34: FALSE | V34: FALSE | W34: FALSE
B35: Other Debt Service
B36: Debt Service | E36: =E41 -> 3.545639968 | I36: =(I30/$E$36-I35)*I34 -> 28.20365319 | J36: =(J30/$E$36-J35)*J34 -> 28.20365319 | K36: 28.20365319 | L36: 28.20365319 | M36: 28.20365319 | N36: 28.20365319 | O36: 28.20365319 | P36: 28.20365319 | Q36: 28.20365319 | R36: 28.20365319 | S36: 0 | T36: 0 | U36: 0 | V36: 0 | W36: 0
B37: CFADS Adjusted | I37: =I30 -> 100 | J37: =J30 -> 100 | K37: 100 | L37: 100 | M37: 100 | N37: 100 | O37: 100 | P37: 100 | Q37: 100 | R37: 100 | S37: 100 | T37: 100 | U37: 100 | V37: 100 | W37: 100
B38: PV Debt Service | E38: =NPV(F38,I36:W36) -> 173.2992397 | F38: =I19 -> 0.1 | G38: =E38-E40 -> 0
B39: PV CF | E39: =NPV(F38,I37:W37*I34:W34) -> 614.4567106
B40: Debt 1 | E40: =F17 -> 173.2992397
B41: LLCR 1 | E41: =E39/E40 -> 3.545639968
B43: Issue 2: Percent | E43: =E22 -> 10 | I43: =I1<=$E43 -> TRUE | J43: TRUE | K43: TRUE | L43: TRUE | M43: TRUE | N43: TRUE | O43: TRUE | P43: TRUE | Q43: TRUE | R43: TRUE | S43: FALSE | T43: FALSE | U43: FALSE | V43: FALSE | W43: FALSE
B44: Other Debt Service
B45: Debt Service | E45: =E50 -> 3.455520068 | I45: =I30/$E$45*I43-I44 -> 28.93920395 | J45: =J30/$E$45*J43-J44 -> 28.93920395 | K45: =K30/$E$45*K43-K44 -> 28.93920395 | L45: 28.93920395 | M45: 28.93920395 | N45: 28.93920395 | O45: 28.93920395 | P45: 28.93920395 | Q45: 28.93920395 | R45: 28.93920395 | S45: 0 | T45: 0 | U45: 0 | V45: 0 | W45: 0
B46: PV Debt Service | E46: =NPV(F46,I45:W45) -> 259.9488595 | F46: =I23 -> 0.02
B47: CFADS Adjusted | I47: =I30 -> 100 | J47: =J30 -> 100 | K47: 100 | L47: 100 | M47: 100 | N47: 100 | O47: 100 | P47: 100 | Q47: 100 | R47: 100 | S47: 100 | T47: 100 | U47: 100 | V47: 100 | W47: 100
B48: PV CF | E48: =NPV(F46,I47:W47*I43:W43) -> 898.2585006
B49: Debt 2 | E49: =F21 -> 259.9488595
B50: LLCR 2 | E50: =E48/E49 -> 3.455520068
B52: Issue 3: Percent | E52: =E26 -> 10 | I52: =I1<=$E$52 -> TRUE | J52: TRUE | K52: TRUE | L52: TRUE | M52: TRUE | N52: TRUE | O52: TRUE | P52: TRUE | Q52: TRUE | R52: TRUE | S52: FALSE | T52: FALSE | U52: FALSE | V52: FALSE | W52: FALSE
B53: Other Debt Service
B54: Debt Service | E54: =E59 -> FALSE
B55: Other CFADS
B56: PV Debt Service | E56: =NPV(F56,I54:W54) -> 0 | F56: =I27 -> 0
B57: PV CF | E57: =NPV(F56,I30:W30*I52:W52) -> 1000
B58: Debt 3 | E58: =F25 -> 0
B59: LLCR 3 | E59: =IF(E58,E57/E58) -> FALSE
A62: Check
B63: CFADS | I63: =I2 -> 100 | J63: 100 | K63: 100 | L63: 100 | M63: 100 | N63: 100 | O63: 100 | P63: 100 | Q63: 100 | R63: 100 | S63: 100 | T63: 100 | U63: 100 | V63: 100 | W63: 100
B65: Debt Service Other
B66: Debt Service 1 | I66: =I36 -> 28.20365319 | J66: 28.20365319 | K66: 28.20365319 | L66: 28.20365319 | M66: 28.20365319 | N66: 28.20365319 | O66: 28.20365319 | P66: 28.20365319 | Q66: 28.20365319 | R66: 28.20365319 | S66: 0 | T66: 0 | U66: 0 | V66: 0 | W66: 0
B67: Debt Service 2 | I67: =I45 -> 28.93920395 | J67: 28.93920395 | K67: 28.93920395 | L67: 28.93920395 | M67: 28.93920395 | N67: 28.93920395 | O67: 28.93920395 | P67: 28.93920395 | Q67: 28.93920395 | R67: 28.93920395 | S67: 0 | T67: 0 | U67: 0 | V67: 0 | W67: 0
B68: Debt Service 3 | I68: =I54 -> 0 | J68: =J54 -> 0 | K68: 0 | L68: 0 | M68: 0 | N68: 0 | O68: 0 | P68: 0 | Q68: 0 | R68: 0 | S68: 0 | T68: 0 | U68: 0 | V68: 0 | W68: 0
C69: Total Debt Service | I69: =SUM(I65:I68) -> 57.14285714 | J69: 57.14285714 | K69: 57.14285714 | L69: 57.14285714 | M69: 57.14285714 | N69: 57.14285714 | O69: 57.14285714 | P69: 57.14285714 | Q69: 57.14285714 | R69: 57.14285714 | S69: 0 | T69: 0 | U69: 0 | V69: 0 | W69: 0
B71: Sculpted Cash Flow | H71: =-F17-F21-F25 -> -433.2480992 | I71: =SUM(I66:I68) -> 57.14285714 | J71: =SUM(J66:J68) -> 57.14285714 | K71: 57.14285714 | L71: 57.14285714 | M71: 57.14285714 | N71: 57.14285714 | O71: 57.14285714 | P71: 57.14285714 | Q71: 57.14285714 | R71: 57.14285714 | S71: 0 | T71: 0 | U71: 0 | V71: 0 | W71: 0
B72: Sculpted IRR | E72: =IRR(71:71) -> 0.05378244993
B74: DSCR | I74: =IF(I69,I63/I69) -> 1.75 | J74: =IF(J69,J63/J69) -> 1.75 | K74: 1.75 | L74: =IF(L69,L63/L69) -> 1.75 | M74: 1.75 | N74: 1.75 | O74: 1.75 | P74: 1.75 | Q74: 1.75 | R74: 1.75 | S74: FALSE | T74: FALSE | U74: FALSE | V74: FALSE | W74: FALSE
B76: Debt Issues | F76: Pct Tot | G76: Pct Sculpt | H76: Target
C77: Other Debt | E77: =E8 -> 0 | F77: =E77/$E$81 -> 0
C78: Debt 1 | E78: =E38 -> 173.2992397 | F78: =E78/$E$81 -> 0.4 | G78: =E78/$E$82 -> 0.4 | H78: =E17 -> 0.4
C79: Debt 2 | E79: =E46 -> 259.9488595 | F79: =E79/$E$81 -> 0.6 | G79: =E79/$E$82 -> 0.6 | H79: =E21 -> 0.6
C80: Debt 3 | E80: =E56 -> 0 | F80: =E80/$E$81 -> 0 | G80: =E80/$E$82 -> 0 | H80: =#REF! -> 
D81: Total | E81: =SUM(E77:E80) -> 433.2480992 | F81: =E81/$E$81 -> 1
D82: Sculpted | E82: =SUM(E78:E80) -> 433.2480992

Sheet LLCR Same Interest Rate
D1: Period | G1: 0 | I1: 1 | J1: 2 | K1: 3 | L1: 4 | M1: 5 | N1: 6 | O1: 7 | P1: 8 | Q1: 9 | R1: 10 | S1: 11 | T1: 12 | U1: 13 | V1: 14 | W1: 15
B2: CFADS | I2: 100 | J2: 100 | K2: 100 | L2: 100 | M2: 100 | N2: 100 | O2: 100 | P2: 100 | Q2: 100 | R2: 100 | S2: 100 | T2: 100 | U2: 100 | V2: 100 | W2: 100
B3: DSCR Target | E3: 2
B4: Max Debt to Capital | E4: 0.6
B5: Total Project Cost | E5: 900
B6: Non-Sculpted Debt Service | I6: 0 | J6: =I6 -> 0 | K6: =J6 -> 0 | L6: =K6 -> 0 | M6: =L6 -> 0 | N6: =M6 -> 0
B7: Interest Rate | E7: 0
B8: NPV of Debt Service | E8: =NPV(E7,I6:W6) -> 0
F9: DSCR = CFADS/(SDS+ODS) | I9: LLCR = NPV(CFADS)/Debt | L9: LLCR = NPV(CFADS)/(Odebt + Sdebt)
F10: SDS = CFADS/DSCR - ODS | I10: ALCR = NPV(CFADS - CFADS/DSCR)/Debt
B12: Max Tenor | E12: =MAX(E20,E24,E28) -> 12
B13: Aggregate Switch | I13: =I1<=$E$12 -> TRUE | J13: =J1<=$E$12 -> TRUE | K13: TRUE | L13: TRUE | M13: TRUE | N13: TRUE | O13: TRUE | P13: TRUE | Q13: TRUE | R13: TRUE | S13: TRUE | T13: TRUE | U13: FALSE | V13: FALSE | W13: FALSE
B14: Total Debt Service for Sculpting | E14: =E3 -> 2 | F14: Fixed | I14: =I2/$E$14*I13 -> 50 | J14: =J2/$E$14*J13 -> 50 | K14: 50 | L14: 50 | M14: 50 | N14: 50 | O14: 50 | P14: 50 | Q14: 50 | R14: 50 | S14: 50 | T14: 50 | U14: 0 | V14: 0 | W14: 0
B15: IRR on Sculpted Debt | E15: =E74 -> 0.05 | F15: 0.05 | G15: =F15-E15 -> 0
B16: NPV of Total Debt Service | E16: =NPV(F15,I14:W14) -> 443.1625818
B18: Debt 1
C19: Percent | E19: 0.5 | F19: =E19*E16 -> 221.5812909
C20: Tenor | E20: 8
C21: Interest Rate | I21: 0.05 | J21: =I21 -> 0.05 | K21: =J21 -> 0.05 | L21: 0.05 | M21: 0.05 | N21: 0.05 | O21: 0.05 | P21: 0.05 | Q21: 0.05 | R21: 0.05 | S21: 0.05 | T21: 0.05 | U21: 0.05 | V21: 0.05 | W21: 0.05
B22: Debt 2
C23: Amount | E23: 0.5 | F23: =E23*E16 -> 221.5812909
C24: Tenor | E24: 12
C25: Interest Rate | I25: 0.05 | J25: =I25 -> 0.05 | K25: =J25 -> 0.05 | L25: 0.05 | M25: 0.05 | N25: 0.05 | O25: 0.05 | P25: 0.05 | Q25: 0.05 | R25: 0.05 | S25: 0.05 | T25: 0.05 | U25: 0.05 | V25: 0.05 | W25: 0.05
B26: Debt 3
C27: Amount | E27: 0 | F27: =E27*E16 -> 0
C28: Tenor | E28: 10
C29: Interest Rate | I29: 0 | J29: =I29 -> 0 | K29: =J29 -> 0 | L29: 0 | M29: 0 | N29: 0 | O29: 0 | P29: 0 | Q29: 0 | R29: 0 | S29: 0 | T29: 0 | U29: 0 | V29: 0 | W29: 0
B32: Total CFADS | I32: =I2 -> 100 | J32: 100 | K32: 100 | L32: 100 | M32: 100 | N32: 100 | O32: 100 | P32: 100 | Q32: 100 | R32: 100 | S32: 100 | T32: 100 | U32: 100 | V32: 100 | W32: 100
B33: Other Debt Service | I33: =I6 -> 0 | J33: 0 | K33: 0 | L33: 0 | M33: 0 | N33: 0 | O33: 0 | P33: 0 | Q33: 0 | R33: 0 | S33: 0 | T33: 0 | U33: 0 | V33: 0 | W33: 0
B34: Total Sculpted Debt Service | E34: =E3 -> 2 | I34: =I32/$E$34-I33 -> 50 | J34: =J32/$E$34-J33 -> 50 | K34: 50 | L34: 50 | M34: 50 | N34: 50 | O34: 50 | P34: 50 | Q34: 50 | R34: 50 | S34: 50 | T34: 50 | U34: 50 | V34: 50 | W34: 50
B36: Issue 1: Percent | E36: =E20 -> 8 | I36: =I1<=$E36 -> TRUE | J36: TRUE | K36: TRUE | L36: TRUE | M36: TRUE | N36: TRUE | O36: TRUE | P36: TRUE | Q36: FALSE | R36: FALSE | S36: FALSE | T36: FALSE | U36: FALSE | V36: FALSE | W36: FALSE
B37: Other Debt Service
B38: Debt Service | E38: =E43 -> 2.916858519 | I38: =(I32/$E$38-I37)*I36 -> 34.2834592 | J38: =(J32/$E$38-J37)*J36 -> 34.2834592 | K38: 34.2834592 | L38: 34.2834592 | M38: 34.2834592 | N38: 34.2834592 | O38: 34.2834592 | P38: 34.2834592 | Q38: 0 | R38: 0 | S38: 0 | T38: 0 | U38: 0 | V38: 0 | W38: 0
B39: CFADS Adjusted | I39: =I32 -> 100 | J39: =J32 -> 100 | K39: 100 | L39: 100 | M39: 100 | N39: 100 | O39: 100 | P39: 100 | Q39: 100 | R39: 100 | S39: 100 | T39: 100 | U39: 100 | V39: 100 | W39: 100
B40: PV Debt Service | E40: =NPV(F40,I38:W38) -> 221.5812909 | F40: =I21 -> 0.05 | G40: =E40-E42 -> 0
B41: PV CF | E41: =NPV(F40,I39:W39*I36:W36) -> 646.3212759
B42: Debt 1 | E42: =F19 -> 221.5812909
B43: LLCR 1 | E43: =E41/E42 -> 2.916858519
B45: Issue 2: Percent | E45: =E24 -> 12 | F45: =E3 -> 2 | I45: =I1<=$E45 -> TRUE | J45: TRUE | K45: TRUE | L45: TRUE | M45: TRUE | N45: TRUE | O45: TRUE | P45: TRUE | Q45: TRUE | R45: TRUE | S45: TRUE | T45: TRUE | U45: FALSE | V45: FALSE | W45: FALSE
B46: Other Debt Service | I46: =I38 -> 34.2834592 | J46: =J38 -> 34.2834592 | K46: 34.2834592 | L46: 34.2834592 | M46: 34.2834592 | N46: 34.2834592 | O46: 34.2834592 | P46: 34.2834592 | Q46: 0 | R46: 0 | S46: 0 | T46: 0 | U46: 0 | V46: 0 | W46: 0
B47: Debt Service | E47: =E52 -> 4 | I47: =(I32/$F$45-I46)*I45 -> 15.7165408 | J47: =(J32/$F$45-J46)*J45 -> 15.7165408 | K47: 15.7165408 | L47: 15.7165408 | M47: 15.7165408 | N47: 15.7165408 | O47: 15.7165408 | P47: 15.7165408 | Q47: 50 | R47: 50 | S47: 50 | T47: 50 | U47: 0 | V47: 0 | W47: 0
B48: PV Debt Service | E48: =NPV(F48,I47:W47) -> 221.5812909 | F48: =I25 -> 0.05
B49: CFADS Adjusted | I49: =I32 -> 100 | J49: =J32 -> 100 | K49: 100 | L49: 100 | M49: 100 | N49: 100 | O49: 100 | P49: 100 | Q49: 100 | R49: 100 | S49: 100 | T49: 100 | U49: 100 | V49: 100 | W49: 100
B50: PV CF | E50: =NPV(F48,I49:W49*I45:W45) -> 886.3251636
B51: Debt 2 | E51: =F23 -> 221.5812909
B52: LLCR 2 | E52: =E50/E51 -> 4
B54: Issue 3: Percent | E54: =E28 -> 10 | I54: =I1<=$E$54 -> TRUE | J54: TRUE | K54: TRUE | L54: TRUE | M54: TRUE | N54: TRUE | O54: TRUE | P54: TRUE | Q54: TRUE | R54: TRUE | S54: FALSE | T54: FALSE | U54: FALSE | V54: FALSE | W54: FALSE
B55: Other Debt Service
B56: Debt Service | E56: =E61 -> FALSE
B57: Other CFADS
B58: PV Debt Service | E58: =NPV(F58,I56:W56) -> 0 | F58: =I29 -> 0
B59: PV CF | E59: =NPV(F58,I32:W32*I54:W54) -> 1000
B60: Debt 3 | E60: =F27 -> 0
B61: LLCR 3 | E61: =IF(E60,E59/E60) -> FALSE
A64: Check
B65: CFADS | I65: =I2 -> 100 | J65: 100 | K65: 100 | L65: 100 | M65: 100 | N65: 100 | O65: 100 | P65: 100 | Q65: 100 | R65: 100 | S65: 100 | T65: 100 | U65: 100 | V65: 100 | W65: 100
B67: Debt Service Other
B68: Debt Service 1 | I68: =I38 -> 34.2834592 | J68: 34.2834592 | K68: 34.2834592 | L68: 34.2834592 | M68: 34.2834592 | N68: 34.2834592 | O68: 34.2834592 | P68: 34.2834592 | Q68: 0 | R68: 0 | S68: 0 | T68: 0 | U68: 0 | V68: 0 | W68: 0
B69: Debt Service 2 | I69: =I47 -> 15.7165408 | J69: 15.7165408 | K69: 15.7165408 | L69: 15.7165408 | M69: 15.7165408 | N69: 15.7165408 | O69: 15.7165408 | P69: 15.7165408 | Q69: 50 | R69: 50 | S69: 50 | T69: 50 | U69: 0 | V69: 0 | W69: 0
B70: Debt Service 3 | I70: =I56 -> 0 | J70: =J56 -> 0 | K70: 0 | L70: 0 | M70: 0 | N70: 0 | O70: 0 | P70: 0 | Q70: 0 | R70: 0 | S70: 0 | T70: 0 | U70: 0 | V70: 0 | W70: 0
C71: Total Debt Service | I71: =SUM(I67:I70) -> 50 | J71: 50 | K71: 50 | L71: 50 | M71: 50 | N71: 50 | O71: 50 | P71: 50 | Q71: 50 | R71: 50 | S71: 50 | T71: 50 | U71: 0 | V71: 0 | W71: 0
B73: Sculpted Cash Flow | H73: =-E16 -> -443.1625818 | I73: =SUM(I68:I70) -> 50 | J73: =SUM(J68:J70) -> 50 | K73: 50 | L73: 50 | M73: 50 | N73: 50 | O73: 50 | P73: 50 | Q73: 50 | R73: 50 | S73: 50 | T73: 50 | U73: 0 | V73: 0 | W73: 0
B74: Sculpted IRR | E74: =IRR(73:73) -> 0.05
B76: DSCR | I76: =IF(I71,I65/I71) -> 2 | J76: =IF(J71,J65/J71) -> 2 | K76: 2 | L76: 2 | M76: 2 | N76: 2 | O76: 2 | P76: 2 | Q76: 2 | R76: 2 | S76: 2 | T76: 2 | U76: FALSE | V76: FALSE | W76: FALSE
B78: Debt Issues | F78: Pct Tot | G78: Pct Sculpt | H78: Target
C79: Other Debt | E79: =E8 -> 0 | F79: =E79/$E$83 -> 0
C80: Debt 1 | E80: =E40 -> 221.5812909 | F80: =E80/$E$83 -> 0.5 | G80: =E80/$E$84 -> 0.5 | H80: =E19 -> 0.5
C81: Debt 2 | E81: =E48 -> 221.5812909 | F81: =E81/$E$83 -> 0.5 | G81: =E81/$E$84 -> 0.5 | H81: =E23 -> 0.5
C82: Debt 3 | E82: =E58 -> 0 | F82: =E82/$E$83 -> 0 | G82: =E82/$E$84 -> 0 | H82: =#REF! -> 
D83: Total | E83: =SUM(E79:E82) -> 443.1625818 | F83: =E83/$E$83 -> 1
D84: Sculpted | E84: =SUM(E80:E82) -> 443.1625818
B116: CFADS | I116: =I2 -> 100 | J116: 100 | K116: 100 | L116: 100 | M116: 100 | N116: 100 | O116: 100 | P116: 100 | Q116: 100 | R116: 100 | S116: 100 | T116: 100 | U116: 100 | V116: 100 | W116: 100
B117: DSCR | E117: =E3 -> 2 | I117: =$E117 -> 2 | J117: =$E117 -> 2 | K117: 2 | L117: 2 | M117: 2 | N117: 2 | O117: 2 | P117: 2 | Q117: 2 | R117: 2 | S117: 2 | T117: 2 | U117: 2 | V117: 2 | W117: 2
B118: Debt Service | I118: =I116/I117 -> 50 | J118: =J116/J117 -> 50 | K118: 50 | L118: 50 | M118: 50 | N118: 50 | O118: 50 | P118: 50 | Q118: 50 | R118: 50 | S118: 50 | T118: 50 | U118: 50 | V118: 50 | W118: 50
B120: Debt Service 1 | I120: =I118*I36 -> 50 | J120: 50 | K120: 50 | L120: 50 | M120: 50 | N120: 50 | O120: 50 | P120: 50 | Q120: 0 | R120: 0 | S120: 0 | T120: 0 | U120: 0 | V120: 0 | W120: 0
B121: Compound Interest | G121: 1 | I121: =G121*(1+I21) -> 1.05 | J121: =I121*(1+J21) -> 1.1025 | K121: 1.157625 | L121: 1.21550625 | M121: 1.276281563 | N121: 1.340095641 | O121: 1.407100423 | P121: 1.477455444 | Q121: 1.551328216 | R121: 1.628894627 | S121: 1.710339358 | T121: 1.795856326 | U121: 1.885649142 | V121: 1.979931599 | W121: 2.078928179
B122: PV Before Adjsutment | G122: =SUMPRODUCT(I120:W120/I121:W121) -> 323.160638
B124: Debt Service 2 | I124: =I118*I45 -> 50 | J124: 50 | K124: 50 | L124: 50 | M124: 50 | N124: 50 | O124: 50 | P124: 50 | Q124: 50 | R124: 50 | S124: 50 | T124: 50 | U124: 0 | V124: 0 | W124: 0
B125: Compound Interest | G125: 1 | I125: =G125*(1+I25) -> 1.05 | J125: =I125*(1+J25) -> 1.1025 | K125: 1.157625 | L125: 1.21550625 | M125: 1.276281563 | N125: 1.340095641 | O125: 1.407100423 | P125: 1.477455444 | Q125: 1.551328216 | R125: 1.628894627 | S125: 1.710339358 | T125: 1.795856326 | U125: 1.885649142 | V125: 1.979931599 | W125: 2.078928179
B126: PV Before Adjustment | G126: =SUMPRODUCT(I124:W124/I125:W125) -> 443.1625818
B128: Allocated
C129: Total | G129: =G126+G122 -> 766.3232198
C130: Debt 1 | G130: =G122/G129 -> 0.4217027876 | I130: =I120*$G130 -> 21.08513938 | J130: =J120*$G130 -> 21.08513938 | K130: 21.08513938 | L130: 21.08513938 | M130: 21.08513938 | N130: 21.08513938 | O130: 21.08513938 | P130: 21.08513938 | Q130: 0 | R130: 0 | S130: 0 | T130: 0 | U130: 0 | V130: 0 | W130: 0
C131: Debt 2 | G131: =G126/G129 -> 0.5782972124 | I131: =I124*$G131 -> 28.91486062 | J131: =J124*$G131 -> 28.91486062 | K131: 28.91486062 | L131: 28.91486062 | M131: 28.91486062 | N131: 28.91486062 | O131: 28.91486062 | P131: 28.91486062 | Q131: 28.91486062 | R131: 28.91486062 | S131: 28.91486062 | T131: 28.91486062 | U131: 0 | V131: 0 | W131: 0
C132: Total | I132: =SUM(I130:I131) -> 50 | J132: =SUM(J130:J131) -> 50 | K132: 50 | L132: 50 | M132: 50 | N132: 50 | O132: 50 | P132: 50 | Q132: 28.91486062 | R132: 28.91486062 | S132: 28.91486062 | T132: 28.91486062 | U132: 0 | V132: 0 | W132: 0
I133: =IF(I132,I130/I132) -> 0.4217027876 | J133: =IF(J132,J130/J132) -> 0.4217027876 | K133: 0.4217027876 | L133: 0.4217027876 | M133: 0.4217027876 | N133: 0.4217027876 | O133: 0.4217027876 | P133: 0.4217027876 | Q133: 0 | R133: 0 | S133: 0 | T133: 0 | U133: FALSE | V133: FALSE | W133: FALSE
B134: Amounts
C135: Debt 1 | G135: =SUMPRODUCT(I130:W130/I121:W121) -> 136.2777419 | H135: =G135/I130 -> 6.463212759 | I135: =H135/H137 -> 0.4217027876 | L135: 0.5923 | M135: X | R135: =I136 -> 0.5782972124 | S135: X
C136: Debt 2 | G136: =SUMPRODUCT(I131:W131/I125:W125) -> 256.2796857 | H136: =G136/I131 -> 8.863251636 | I136: =H136/H137 -> 0.5782972124 | L136: =G135 -> 136.2777419 | M136: =G152 -> 196.2787138 | O136: =M136*L135 -> 116.2558822 | P136: =O136/L136 -> 0.8530804854 | R136: =G136 -> 256.2796857 | S136: =M136 -> 196.2787138
G137: =SUM(G135:G136) -> 392.5574276 | H137: =SUM(H135:H136) -> 15.3264644
B138: Check
C139: Debt 1 | G139: =IRR(H139:W139) -> 0.05 | H139: =-G135 -> -136.2777419 | I139: =I130 -> 21.08513938 | J139: =J130 -> 21.08513938 | K139: 21.08513938 | L139: 21.08513938 | M139: 21.08513938 | N139: 21.08513938 | O139: 21.08513938 | P139: 21.08513938 | Q139: 0 | R139: 0 | S139: 0 | T139: 0 | U139: 0 | V139: 0 | W139: 0
C140: Debt 2 | G140: =IRR(H140:W140) -> 0.05 | H140: =-G136 -> -256.2796857 | I140: =I131 -> 28.91486062 | J140: 28.91486062 | K140: 28.91486062 | L140: 28.91486062 | M140: 28.91486062 | N140: 28.91486062 | O140: 28.91486062 | P140: 28.91486062 | Q140: 28.91486062 | R140: 28.91486062 | S140: 28.91486062 | T140: 28.91486062 | U140: 0 | V140: 0 | W140: 0
C141: Total | G141: =IRR(H141:W141) -> 0.05000000001 | H141: =SUM(H139:H140) -> -392.5574276 | I141: =SUM(I139:I140) -> 50 | J141: 50 | K141: 50 | L141: 50 | M141: 50 | N141: 50 | O141: 50 | P141: 50 | Q141: 28.91486062 | R141: 28.91486062 | S141: 28.91486062 | T141: 28.91486062 | U141: 0 | V141: 0 | W141: 0
B143: PV of CFADS | I143: =I116*I36 -> 100 | J143: 100 | K143: 100 | L143: 100 | M143: 100 | N143: 100 | O143: 100 | P143: 100 | Q143: 0 | R143: 0 | S143: 0 | T143: 0 | U143: 0 | V143: 0 | W143: 0
C144: PV for 1 | G144: =G139 -> 0.05 | H144: =NPV(G144,I143:W143) -> 646.3212759 | I144: =H144/G152 -> 3.292875032
C145: PV for 2 | G145: =G140 -> 0.05 | H145: =NPV(G145,I143:W143) -> 646.3212759 | I145: =H145/G152 -> 3.292875032
C146: PV for Both | G146: =G141 -> 0.05000000001 | H146: =NPV(G146,I143:W143) -> 646.3212759 | I146: =H146/G150 -> 1.646437516
C150: PV | G150: =NPV(G141,I141:W141) -> 392.5574276
E152: =E19 -> 0.5 | G152: =G150*E152 -> 196.2787138 | I152: 0.12 | J152: =I152 -> 0.12 | K152: =J152 -> 0.12 | L152: 0.12 | M152: 0.12 | N152: 0.12 | O152: 0.12 | P152: 0.12 | Q152: 0.12 | R152: 0.12 | S152: 0.12 | T152: 0.12 | U152: 0.12 | V152: 0.12 | W152: 0.12
G153: =NPV(G139,I153:W153) -> 244.4767115 | I153: =I152*$G152 -> 23.55344565 | J153: =J152*$G152 -> 23.55344565 | K153: 23.55344565 | L153: 23.55344565 | M153: 23.55344565 | N153: 23.55344565 | O153: 23.55344565 | P153: 23.55344565 | Q153: 23.55344565 | R153: 23.55344565 | S153: 23.55344565 | T153: 23.55344565 | U153: 23.55344565 | V153: 23.55344565 | W153: 23.55344565
G155: =E156*G150 -> 196.2787138
E156: =E152 -> 0.5 | G156: =NPV(G140,I156:W156) -> 274.5061904 | I156: =I2/I117-I153 -> 26.44655435 | J156: 26.44655435 | K156: 26.44655435 | L156: 26.44655435 | M156: 26.44655435 | N156: 26.44655435 | O156: 26.44655435 | P156: 26.44655435 | Q156: 26.44655435 | R156: 26.44655435 | S156: 26.44655435 | T156: 26.44655435 | U156: 26.44655435 | V156: 26.44655435 | W156: 26.44655435
G158: =NPV(G141,I158:W158) -> 518.9829019 | I158: =I153+I156 -> 50 | J158: =J153+J156 -> 50 | K158: 50 | L158: 50 | M158: 50 | N158: 50 | O158: 50 | P158: 50 | Q158: 50 | R158: 50 | S158: 50 | T158: 50 | U158: 50 | V158: 50 | W158: 50
D160: CFADS | I160: =I2 -> 100 | J160: 100 | K160: 100 | L160: 100 | M160: 100 | N160: 100 | O160: 100 | P160: 100 | Q160: 100 | R160: 100 | S160: 100 | T160: 100 | U160: 100 | V160: 100 | W160: 100
D162: CFADS 1 | G162: =E20 -> 8 | I162: =(I1<=$G$162)*I160 -> 100 | J162: 100 | K162: 100 | L162: 100 | M162: 100 | N162: 100 | O162: 100 | P162: 100 | Q162: 0 | R162: 0 | S162: 0 | T162: 0 | U162: 0 | V162: 0 | W162: 0
D163: CFADS 2 | G163: =E24 -> 12 | I163: =(I1<=$G$163)*I160 -> 100 | J163: 100 | K163: 100 | L163: 100 | M163: 100 | N163: 100 | O163: 100 | P163: 100 | Q163: 100 | R163: 100 | S163: 100 | T163: 100 | U163: 0 | V163: 0 | W163: 0
D166: Debt Service 1 | E166: =H166/(H166+H167) -> 0.4898657964 | G166: 2.977201654 | H166: =NPV(G144,I166:W166) -> 217.0901911 | I166: =I162/$G166 -> 33.58858809 | J166: =J162/$G166 -> 33.58858809 | K166: 33.58858809 | L166: 33.58858809 | M166: 33.58858809 | N166: 33.58858809 | O166: 33.58858809 | P166: 33.58858809 | Q166: 0 | R166: 0 | S166: 0 | T166: 0 | U166: 0 | V166: 0 | W166: 0
D167: Debt Service 2 | E167: =E23/(E19+E27) -> 1 | H167: =NPV(G145,I167:W167) -> 226.0723907 | I167: =(I163/$G$169-I166)*$E$167 -> 16.41141191 | J167: 16.41141191 | K167: 16.41141191 | L167: 16.41141191 | M167: 16.41141191 | N167: 16.41141191 | O167: 16.41141191 | P167: 16.41141191 | Q167: 50 | R167: 50 | S167: 50 | T167: 50 | U167: 0 | V167: 0 | W167: 0
E168: =E27/(E19+E23) -> 0 | H168: =NPV(I29,I168:W168) -> 100 | I168: =(I162-I166-I167)/$G$169 -> 25 | J168: =(J162-J166-J167)/$G$169 -> 25 | K168: 25 | L168: 25 | M168: 25 | N168: 25 | O168: 25 | P168: 25 | Q168: -25 | R168: -25 | S168: -25 | T168: -25 | U168: 0 | V168: 0 | W168: 0
G169: =E3 -> 2 | H169: =NPV(G146,I169:W169) -> 518.9829019 | I169: =I$160/$G169 -> 50 | J169: =J$160/$G169 -> 50 | K169: 50 | L169: 50 | M169: 50 | N169: 50 | O169: 50 | P169: 50 | Q169: 50 | R169: 50 | S169: 50 | T169: 50 | U169: 50 | V169: 50 | W169: 50
H171: =(H166+H167)*E168-H168 -> -100 | I171: =I166+I167 -> 50 | J171: =J166+J167 -> 50 | K171: 50 | L171: 50 | M171: 50 | N171: 50 | O171: 50 | P171: 50 | Q171: 50 | R171: 50 | S171: 50 | T171: 50 | U171: 0 | V171: 0 | W171: 0
I172: =I160/I171 -> 2 | J172: =J160/J171 -> 2 | K172: 2 | L172: 2 | M172: 2 | N172: 2 | O172: 2 | P172: 2 | Q172: 2 | R172: 2 | S172: 2 | T172: 2
I175: 4 | J175: 2
I189: dscr = cfads/ds
I191: ds = cfads/dscr
I192: ds + other = cfads/dscr
I193: ds = cfads/dscr - other
H195: Weighted LLCR
I196: LLCR 1 = At Rate 1 = CFADS at Rate 1/Given Debt
I197: LLCR 2 = At Rate 2 = CFADS at Rate 2/Given Debt
I198: LLCR Average
H199: Compute 1

Sheet LLCR and Formula 2 Issues
D1: Period | G1: 0 | I1: 1 | J1: 2 | K1: 3 | L1: 4 | M1: 5 | N1: 6 | O1: 7 | P1: 8 | Q1: 9 | R1: 10 | S1: 11 | T1: 12 | U1: 13 | V1: 14 | W1: 15
B2: CFADS | I2: 100 | J2: 100 | K2: 100 | L2: 100 | M2: 100 | N2: 100 | O2: 100 | P2: 100 | Q2: 100 | R2: 100 | S2: 100 | T2: 100 | U2: 100 | V2: 100 | W2: 100
B3: DSCR Target | E3: 1.75
B4: Max Debt to Capital | E4: 0.6
B5: Total Project Cost | E5: 900
B6: Non-Sculpted Debt Service | I6: 0 | J6: =I6 -> 0 | K6: =J6 -> 0 | L6: =K6 -> 0 | M6: =L6 -> 0 | N6: =M6 -> 0
B7: Interest Rate | E7: 0 | H7: DSCR =CFADS/(SDS+ODS) | K7: LLCR =NPV(CFADS)/Debt | N7: LLCR =NPV(CFADS)/(Odebt + Sdebt)
B8: NPV of Debt Service | E8: =NPV(E7,I6:W6) -> 0 | H8: SDS =CFADS/DSCR - ODS | K8: ALCR =NPV(CFADS - CFADS/DSCR)/Debt
B10: Max Tenor | E10: =MAX(E18,E22,E26) -> 14 | F10: =_xlfn.FORMULATEXT(E10) -> =MAX(E18,E22,E26)
B11: Aggregate Switch | I11: =I1<=$E$10 -> TRUE | J11: TRUE | K11: TRUE | L11: TRUE | M11: TRUE | N11: TRUE | O11: TRUE | P11: TRUE | Q11: TRUE | R11: TRUE | S11: TRUE | T11: TRUE | U11: TRUE | V11: TRUE | W11: FALSE
B12: Total Debt Service for Sculpting | E12: =E3 -> 1.75 | F12: Fixed | I12: =I2/$E$12*I11 -> 57.14285714 | J12: 57.14285714 | K12: 57.14285714 | L12: 57.14285714 | M12: 57.14285714 | N12: 57.14285714 | O12: 57.14285714 | P12: 57.14285714 | Q12: 57.14285714 | R12: 57.14285714 | S12: 57.14285714 | T12: 57.14285714 | U12: 57.14285714 | V12: 57.14285714 | W12: 0
B13: IRR on Sculpted Debt | E13: =E73 -> 0.06942159273 | F13: 0.06942159286 | G13: =F13-E13 -> 1.268838368e-10
B14: NPV of Total Debt Service | E14: =NPV(F13,I12:W12) -> 501.479086 | F14: =_xlfn.FORMULATEXT(E14) -> =NPV(F13,I12:W12)
B16: Debt 1
C17: Percent | E17: 0.6 | F17: =E17*E14 -> 300.8874516
C18: Tenor | E18: 8
C19: Interest Rate | I19: 0.15 | J19: 0.15 | K19: 0.15 | L19: 0.15 | M19: 0.15 | N19: 0.15 | O19: 0.15 | P19: 0.15 | Q19: 0.15 | R19: 0.15 | S19: 0.15 | T19: 0.15 | U19: 0.15 | V19: 0.15 | W19: 0.15
B20: Debt 2
C21: Amount | E21: =1-E17 -> 0.4 | F21: =E21*E14 -> 200.5916344
C22: Tenor | E22: 14
C23: Interest Rate | I23: 0.02 | J23: 0.02 | K23: 0.02 | L23: 0.02 | M23: 0.02 | N23: 0.02 | O23: 0.02 | P23: 0.02 | Q23: 0.02 | R23: 0.02 | S23: 0.02 | T23: 0.02 | U23: 0.02 | V23: 0.02 | W23: 0.02
B24: Debt 3
C25: Amount | E25: 0 | F25: =E25*E14 -> 0
C26: Tenor | E26: 10
C27: Interest Rate | I27: 0 | J27: =I27 -> 0 | K27: =J27 -> 0 | L27: 0 | M27: 0 | N27: 0 | O27: 0 | P27: 0 | Q27: 0 | R27: 0 | S27: 0 | T27: 0 | U27: 0 | V27: 0 | W27: 0
B30: Total CFADS | I30: =I2 -> 100 | J30: 100 | K30: 100 | L30: 100 | M30: 100 | N30: 100 | O30: 100 | P30: 100 | Q30: 100 | R30: 100 | S30: 100 | T30: 100 | U30: 100 | V30: 100 | W30: 100
B31: Other Debt Service | I31: =I6 -> 0 | J31: 0 | K31: 0 | L31: 0 | M31: 0 | N31: 0 | O31: 0 | P31: 0 | Q31: 0 | R31: 0 | S31: 0 | T31: 0 | U31: 0 | V31: 0 | W31: 0
B32: Total Sculpted Debt Service | E32: =E3 -> 1.75 | I32: =I30/$E$32-I31 -> 57.14285714 | J32: =J30/$E$32-J31 -> 57.14285714 | K32: 57.14285714 | L32: 57.14285714 | M32: 57.14285714 | N32: 57.14285714 | O32: 57.14285714 | P32: 57.14285714 | Q32: 57.14285714 | R32: 57.14285714 | S32: 57.14285714 | T32: 57.14285714 | U32: 57.14285714 | V32: 57.14285714 | W32: 57.14285714
B34: Issue 1: Percent | E34: =E18 -> 8 | I34: =I1<=$E34 -> TRUE | J34: TRUE | K34: TRUE | L34: TRUE | M34: TRUE | N34: TRUE | O34: TRUE | P34: TRUE | Q34: FALSE | R34: FALSE | S34: FALSE | T34: FALSE | U34: FALSE | V34: FALSE | W34: FALSE
B35: Other Debt Service
B36: Debt Service | E36: =E41 -> 1.49136213 | I36: =IF($E36>1,(I30/$E$36-I35)*I34,0) -> 67.05279554 | J36: =IF($E36>1,(J30/$E$36-J35)*J34,0) -> 67.05279554 | K36: 67.05279554 | L36: 67.05279554 | M36: 67.05279554 | N36: 67.05279554 | O36: 67.05279554 | P36: 67.05279554 | Q36: 0 | R36: 0 | S36: 0 | T36: 0 | U36: 0 | V36: 0 | W36: 0
B37: CFADS Adjusted | I37: =I30 -> 100 | J37: =J30 -> 100 | K37: 100 | L37: 100 | M37: 100 | N37: 100 | O37: 100 | P37: 100 | Q37: 100 | R37: 100 | S37: 100 | T37: 100 | U37: 100 | V37: 100 | W37: 100
B38: PV Debt Service | E38: =NPV(F38,I36:W36) -> 300.8874516 | F38: =I19 -> 0.15 | G38: =E38-E40 -> 0
B39: PV CF | E39: =NPV(F38,I37:W37*I34:W34) -> 448.7321508
B40: Debt 1 | E40: =F17 -> 300.8874516
B41: LLCR 1 | E41: =IF(E40,E39/E40,0.000000001) -> 1.49136213
B43: Issue 2: Percent | E43: =E22 -> 14 | I43: =I1<=$E43 -> TRUE | J43: TRUE | K43: TRUE | L43: TRUE | M43: TRUE | N43: TRUE | O43: TRUE | P43: TRUE | Q43: TRUE | R43: TRUE | S43: TRUE | T43: TRUE | U43: TRUE | V43: TRUE | W43: FALSE
B44: Other Debt Service | I44: =I36 -> 67.05279554 | J44: =J36 -> 67.05279554 | K44: 67.05279554 | L44: 67.05279554 | M44: 67.05279554 | N44: 67.05279554 | O44: 67.05279554 | P44: 67.05279554 | Q44: 0 | R44: 0 | S44: 0 | T44: 0 | U44: 0 | V44: 0 | W44: 0
B45: Debt Service | E45: =E3 -> 1.75 | I45: =(I30/$E$45-I44)*I43 -> -9.909938398 | J45: =(J30/$E$45-J44)*J43 -> -9.909938398 | K45: -9.909938398 | L45: -9.909938398 | M45: -9.909938398 | N45: -9.909938398 | O45: -9.909938398 | P45: -9.909938398 | Q45: 57.14285714 | R45: 57.14285714 | S45: 57.14285714 | T45: 57.14285714 | U45: 57.14285714 | V45: 57.14285714 | W45: 0
B46: PV Debt Service | E46: =NPV(F46,I45:W45) -> 200.5916348 | F46: =I23 -> 0.02
B47: Target | E47: =F21 -> 200.5916344
B48: Difference | E48: =E47-E46 -> -3.827910575e-07
B50: Issue 3: Percent | E50: =E26 -> 10 | I50: =I1<=$E$50 -> TRUE | J50: TRUE | K50: TRUE | L50: TRUE | M50: TRUE | N50: TRUE | O50: TRUE | P50: TRUE | Q50: TRUE | R50: TRUE | S50: FALSE | T50: FALSE | U50: FALSE | V50: FALSE | W50: FALSE
B51: Other Debt Service
B52: Debt Service | E52: =E57 -> FALSE
B53: Other CFADS
B54: PV Debt Service | E54: =NPV(F54,I52:W52) -> 0 | F54: =I27 -> 0
B55: PV CF | E55: =NPV(F54,I30:W30*I50:W50) -> 1000
B56: Debt 3 | E56: =F25 -> 0
B57: LLCR 3 | E57: =IF(E56,E55/E56) -> FALSE
A60: Check
B61: CFADS | I61: =I2 -> 100 | J61: 100 | K61: 100 | L61: 100 | M61: 100 | N61: 100 | O61: 100 | P61: 100 | Q61: 100 | R61: 100 | S61: 100 | T61: 100 | U61: 100 | V61: 100 | W61: 100
B63: Debt Service Other
B64: Debt Service 1 | I64: =I36 -> 67.05279554 | J64: 67.05279554 | K64: 67.05279554 | L64: 67.05279554 | M64: 67.05279554 | N64: 67.05279554 | O64: 67.05279554 | P64: 67.05279554 | Q64: 0 | R64: 0 | S64: 0 | T64: 0 | U64: 0 | V64: 0 | W64: 0
B65: Debt Service 2 | I65: =I45 -> -9.909938398 | J65: -9.909938398 | K65: -9.909938398 | L65: -9.909938398 | M65: -9.909938398 | N65: -9.909938398 | O65: -9.909938398 | P65: -9.909938398 | Q65: 57.14285714 | R65: 57.14285714 | S65: 57.14285714 | T65: 57.14285714 | U65: 57.14285714 | V65: 57.14285714 | W65: 0
B66: Debt Service 3 | I66: =I52 -> 0 | J66: =J52 -> 0 | K66: 0 | L66: 0 | M66: 0 | N66: 0 | O66: 0 | P66: 0 | Q66: 0 | R66: 0 | S66: 0 | T66: 0 | U66: 0 | V66: 0 | W66: 0
C67: Total Debt Service | I67: =SUM(I63:I66) -> 57.14285714 | J67: 57.14285714 | K67: 57.14285714 | L67: 57.14285714 | M67: 57.14285714 | N67: 57.14285714 | O67: 57.14285714 | P67: 57.14285714 | Q67: 57.14285714 | R67: 57.14285714 | S67: 57.14285714 | T67: 57.14285714 | U67: 57.14285714 | V67: 57.14285714 | W67: 0
H69: =E46+E40 -> 501.4790863 | I69: computed debt
H70: 501.479086 | I70: fixed debt | L70: =fixed_debt-computed_debt -> -3.822890449e-07 | M70: diff2
B72: Sculpted Cash Flow | H72: =-computed_debt -> -501.4790863 | I72: =SUM(I64:I66) -> 57.14285714 | J72: =SUM(J64:J66) -> 57.14285714 | K72: 57.14285714 | L72: 57.14285714 | M72: 57.14285714 | N72: 57.14285714 | O72: 57.14285714 | P72: 57.14285714 | Q72: 57.14285714 | R72: 57.14285714 | S72: 57.14285714 | T72: 57.14285714 | U72: 57.14285714 | V72: 57.14285714 | W72: 0
B73: Sculpted IRR | E73: =IRR(72:72) -> 0.06942159273
B75: DSCR | I75: =IF(I67,I61/I67) -> 1.75 | J75: =IF(J67,J61/J67) -> 1.75 | K75: 1.75 | L75: 1.75 | M75: 1.75 | N75: 1.75 | O75: 1.75 | P75: 1.75 | Q75: 1.75 | R75: 1.75 | S75: 1.75 | T75: 1.75 | U75: 1.75 | V75: 1.75 | W75: FALSE
B77: Debt Issues | F77: Pct Tot | G77: Pct Sculpt | H77: Target
C78: Other Debt | E78: =E8 -> 0 | F78: =E78/$E$82 -> 0
C79: Debt 1 | E79: =E38 -> 300.8874516 | F79: =E79/$E$82 -> 0.5999999995 | G79: =E79/$E$83 -> 0.5999999995 | H79: =E17 -> 0.6
C80: Debt 2 | E80: =E46 -> 200.5916348 | F80: =E80/$E$82 -> 0.4000000005 | G80: =E80/$E$83 -> 0.4000000005 | H80: =E21 -> 0.4
C81: Debt 3 | E81: =E54 -> 0 | F81: =E81/$E$82 -> 0 | G81: =E81/$E$83 -> 0
D82: Total | E82: =SUM(E78:E81) -> 501.4790863 | F82: =E82/$E$82 -> 1
D83: Sculpted | E83: =SUM(E79:E81) -> 501.4790863

Sheet LLCR and Formula 3 Issues
D1: Period | G1: 0 | I1: 1 | J1: 2 | K1: 3 | L1: 4 | M1: 5 | N1: 6 | O1: 7 | P1: 8 | Q1: 9 | R1: 10 | S1: 11 | T1: 12 | U1: 13 | V1: 14 | W1: 15
B2: CFADS | I2: 100 | J2: 100 | K2: 100 | L2: 100 | M2: 100 | N2: 100 | O2: 100 | P2: 100 | Q2: 100 | R2: 100 | S2: 100 | T2: 100 | U2: 100 | V2: 100 | W2: 100
B3: DSCR Target | E3: 1.75
B4: Max Debt to Capital | E4: 0.6
B5: Total Project Cost | E5: 900
B6: Non-Sculpted Debt Service | I6: 0 | J6: =I6 -> 0 | K6: =J6 -> 0 | L6: =K6 -> 0 | M6: =L6 -> 0 | N6: =M6 -> 0
B7: Interest Rate | E7: 0 | H7: DSCR =CFADS/(SDS+ODS) | K7: LLCR =NPV(CFADS)/Debt | N7: LLCR =NPV(CFADS)/(Odebt + Sdebt)
B8: NPV of Debt Service | E8: =NPV(E7,I6:W6) -> 0 | H8: SDS =CFADS/DSCR - ODS | K8: ALCR =NPV(CFADS - CFADS/DSCR)/Debt
B10: Max Tenor | E10: =MAX(E18,E22,E26) -> 14 | F10: =_xlfn.FORMULATEXT(E10) -> =MAX(E18,E22,E26)
B11: Aggregate Switch | I11: =I1<=$E$10 -> TRUE | J11: TRUE | K11: TRUE | L11: TRUE | M11: TRUE | N11: TRUE | O11: TRUE | P11: TRUE | Q11: TRUE | R11: TRUE | S11: TRUE | T11: TRUE | U11: TRUE | V11: TRUE | W11: FALSE
B12: Total Debt Service for Sculpting | E12: =E3 -> 1.75 | F12: Fixed | I12: =I2/$E$12*I11 -> 57.14285714 | J12: 57.14285714 | K12: 57.14285714 | L12: 57.14285714 | M12: 57.14285714 | N12: 57.14285714 | O12: 57.14285714 | P12: 57.14285714 | Q12: 57.14285714 | R12: 57.14285714 | S12: 57.14285714 | T12: 57.14285714 | U12: 57.14285714 | V12: 57.14285714 | W12: 0
B13: IRR on Sculpted Debt | E13: =E72 -> 0.04607897698 | F13: 0.04607897698 | G13: =F13-E13 -> 0
B14: NPV of Total Debt Service | E14: =NPV(F13,I12:W12) -> 580.087826 | F14: =_xlfn.FORMULATEXT(E14) -> =NPV(F13,I12:W12)
B16: Debt 1
C17: Percent | E17: 0.3 | F17: =E17*E14 -> 174.0263478
C18: Tenor | E18: 10
C19: Interest Rate | I19: 0.02 | J19: 0.02 | K19: 0.02 | L19: 0.02 | M19: 0.02 | N19: 0.02 | O19: 0.02 | P19: 0.02 | Q19: 0.02 | R19: 0.02 | S19: 0.02 | T19: 0.02 | U19: 0.02 | V19: 0.02 | W19: 0.02
B20: Debt 2
C21: Amount | E21: =1-E17-E25 -> 0.35 | F21: =E21*E14 -> 203.0307391
C22: Tenor | E22: 14
C23: Interest Rate | I23: 0.05 | J23: 0.05 | K23: 0.05 | L23: 0.05 | M23: 0.05 | N23: 0.05 | O23: 0.05 | P23: 0.05 | Q23: 0.05 | R23: 0.05 | S23: 0.05 | T23: 0.05 | U23: 0.05 | V23: 0.05 | W23: 0.05
B24: Debt 3
C25: Amount | E25: 0.35 | F25: =E25*E14 -> 203.0307391
C26: Tenor | E26: 10
C27: Interest Rate | I27: 0.06 | J27: 0.06 | K27: 0.06 | L27: 0.06 | M27: 0.06 | N27: 0.06 | O27: 0.06 | P27: 0.06 | Q27: 0.06 | R27: 0.06 | S27: 0.06 | T27: 0.06 | U27: 0.06 | V27: 0.06 | W27: 0.06
B29: Total CFADS | I29: =I2 -> 100 | J29: 100 | K29: 100 | L29: 100 | M29: 100 | N29: 100 | O29: 100 | P29: 100 | Q29: 100 | R29: 100 | S29: 100 | T29: 100 | U29: 100 | V29: 100 | W29: 100
B30: Other Debt Service | I30: =I6 -> 0 | J30: 0 | K30: 0 | L30: 0 | M30: 0 | N30: 0 | O30: 0 | P30: 0 | Q30: 0 | R30: 0 | S30: 0 | T30: 0 | U30: 0 | V30: 0 | W30: 0
B31: Total Sculpted Debt Service | E31: =E3 -> 1.75 | I31: =I29/$E$31-I30 -> 57.14285714 | J31: =J29/$E$31-J30 -> 57.14285714 | K31: 57.14285714 | L31: 57.14285714 | M31: 57.14285714 | N31: 57.14285714 | O31: 57.14285714 | P31: 57.14285714 | Q31: 57.14285714 | R31: 57.14285714 | S31: 57.14285714 | T31: 57.14285714 | U31: 57.14285714 | V31: 57.14285714 | W31: 57.14285714
B33: Issue 1: Percent | E33: =E18 -> 10 | I33: =I1<=$E33 -> TRUE | J33: TRUE | K33: TRUE | L33: TRUE | M33: TRUE | N33: TRUE | O33: TRUE | P33: TRUE | Q33: TRUE | R33: TRUE | S33: FALSE | T33: FALSE | U33: FALSE | V33: FALSE | W33: FALSE
B34: Other Debt Service
B35: Debt Service | E35: =E40 -> 5.161623582 | I35: =IF($E35>1,(I29/$E$35-I34)*I33,0) -> 19.37374906 | J35: =IF($E35>1,(J29/$E$35-J34)*J33,0) -> 19.37374906 | K35: 19.37374906 | L35: 19.37374906 | M35: 19.37374906 | N35: 19.37374906 | O35: 19.37374906 | P35: 19.37374906 | Q35: 19.37374906 | R35: 19.37374906 | S35: 0 | T35: 0 | U35: 0 | V35: 0 | W35: 0
B36: CFADS Adjusted | I36: =I29 -> 100 | J36: =J29 -> 100 | K36: 100 | L36: 100 | M36: 100 | N36: 100 | O36: 100 | P36: 100 | Q36: 100 | R36: 100 | S36: 100 | T36: 100 | U36: 100 | V36: 100 | W36: 100
B37: PV Debt Service | E37: =NPV(F37,I35:W35) -> 174.0263478 | F37: =I19 -> 0.02 | G37: =E37-E39 -> 0
B38: PV CF | E38: =NPV(F37,I36:W36*I33:W33) -> 898.2585006
B39: Debt 1 | E39: =F17 -> 174.0263478
B40: LLCR 1 | E40: =IF(E39,E38/E39,0.000000001) -> 5.161623582
B42: Issue 2: Percent | E42: =E22 -> 14 | I42: =I1<=$E42 -> TRUE | J42: TRUE | K42: TRUE | L42: TRUE | M42: TRUE | N42: TRUE | O42: TRUE | P42: TRUE | Q42: TRUE | R42: TRUE | S42: TRUE | T42: TRUE | U42: TRUE | V42: TRUE | W42: FALSE
B43: Other Debt Service | I43: =I35+I51 -> 46.95912103 | J43: =J35+J51 -> 46.95912103 | K43: 46.95912103 | L43: 46.95912103 | M43: 46.95912103 | N43: 46.95912103 | O43: 46.95912103 | P43: 46.95912103 | Q43: 46.95912103 | R43: 46.95912103 | S43: 0 | T43: 0 | U43: 0 | V43: 0 | W43: 0
B44: Debt Service | E44: =E3 -> 1.75 | I44: =(I29/$E$44-I43)*I42 -> 10.18373611 | J44: =(J29/$E$44-J43)*J42 -> 10.18373611 | K44: 10.18373611 | L44: 10.18373611 | M44: 10.18373611 | N44: 10.18373611 | O44: 10.18373611 | P44: 10.18373611 | Q44: 10.18373611 | R44: 10.18373611 | S44: 57.14285714 | T44: 57.14285714 | U44: 57.14285714 | V44: 57.14285714 | W44: 0
B45: PV Debt Service | E45: =NPV(F45,I44:W44) -> 203.03074 | F45: =I23 -> 0.05
B46: Target | E46: =F21 -> 203.0307391
B47: Difference | E47: =E46-E45 -> -9.106719858e-07
B49: Issue 3: Percent | E49: =E26 -> 10 | I49: =I1<=$E$49 -> TRUE | J49: TRUE | K49: TRUE | L49: TRUE | M49: TRUE | N49: TRUE | O49: TRUE | P49: TRUE | Q49: TRUE | R49: TRUE | S49: FALSE | T49: FALSE | U49: FALSE | V49: FALSE | W49: FALSE
B50: Other Debt Service
B51: Debt Service | E51: =E56 -> 3.625109717 | I51: =IF($E$51,I49*I29/$E$51) -> 27.58537198 | J51: =IF($E$51,J49*J29/$E$51) -> 27.58537198 | K51: 27.58537198 | L51: 27.58537198 | M51: 27.58537198 | N51: 27.58537198 | O51: 27.58537198 | P51: 27.58537198 | Q51: 27.58537198 | R51: 27.58537198 | S51: 0 | T51: 0 | U51: 0 | V51: 0 | W51: 0
B52: Other CFADS
B53: PV Debt Service | E53: =NPV(F53,I51:W51) -> 203.0307391 | F53: =I27 -> 0.06
B54: PV CF | E54: =NPV(F53,I29:W29*I49:W49) -> 736.0087051
B55: Debt 3 | E55: =F25 -> 203.0307391
B56: LLCR 3 | E56: =IF(E55,E54/E55) -> 3.625109717
A59: Check
B60: CFADS | I60: =I2 -> 100 | J60: 100 | K60: 100 | L60: 100 | M60: 100 | N60: 100 | O60: 100 | P60: 100 | Q60: 100 | R60: 100 | S60: 100 | T60: 100 | U60: 100 | V60: 100 | W60: 100
B62: Debt Service Other
B63: Debt Service 1 | I63: =I35 -> 19.37374906 | J63: 19.37374906 | K63: 19.37374906 | L63: 19.37374906 | M63: 19.37374906 | N63: 19.37374906 | O63: 19.37374906 | P63: 19.37374906 | Q63: 19.37374906 | R63: 19.37374906 | S63: 0 | T63: 0 | U63: 0 | V63: 0 | W63: 0
B64: Debt Service 2 | I64: =I44 -> 10.18373611 | J64: 10.18373611 | K64: 10.18373611 | L64: 10.18373611 | M64: 10.18373611 | N64: 10.18373611 | O64: 10.18373611 | P64: 10.18373611 | Q64: 10.18373611 | R64: 10.18373611 | S64: 57.14285714 | T64: 57.14285714 | U64: 57.14285714 | V64: 57.14285714 | W64: 0
B65: Debt Service 3 | I65: =I51 -> 27.58537198 | J65: =J51 -> 27.58537198 | K65: 27.58537198 | L65: 27.58537198 | M65: 27.58537198 | N65: 27.58537198 | O65: 27.58537198 | P65: 27.58537198 | Q65: 27.58537198 | R65: 27.58537198 | S65: 0 | T65: 0 | U65: 0 | V65: 0 | W65: 0
C66: Total Debt Service | I66: =SUM(I62:I65) -> 57.14285714 | J66: 57.14285714 | K66: 57.14285714 | L66: 57.14285714 | M66: 57.14285714 | N66: 57.14285714 | O66: 57.14285714 | P66: 57.14285714 | Q66: 57.14285714 | R66: 57.14285714 | S66: 57.14285714 | T66: 57.14285714 | U66: 57.14285714 | V66: 57.14285714 | W66: 0
H68: =E45+E39+E55 -> 580.0878269 | I68: computed debt
H69: 580.087826 | I69: fixed debt | L69: =fixed_debt-computed_debt -> -9.10664312e-07 | M69: diff2
B71: Sculpted Cash Flow | H71: =-H69 -> -580.087826 | I71: =SUM(I63:I65) -> 57.14285714 | J71: =SUM(J63:J65) -> 57.14285714 | K71: 57.14285714 | L71: 57.14285714 | M71: 57.14285714 | N71: 57.14285714 | O71: 57.14285714 | P71: 57.14285714 | Q71: 57.14285714 | R71: 57.14285714 | S71: 57.14285714 | T71: 57.14285714 | U71: 57.14285714 | V71: 57.14285714 | W71: 0
B72: Sculpted IRR | E72: =IRR(71:71) -> 0.04607897698
B74: DSCR | I74: =IF(I66,I60/I66) -> 1.75 | J74: =IF(J66,J60/J66) -> 1.75 | K74: 1.75 | L74: 1.75 | M74: 1.75 | N74: 1.75 | O74: 1.75 | P74: 1.75 | Q74: 1.75 | R74: 1.75 | S74: 1.75 | T74: 1.75 | U74: 1.75 | V74: 1.75 | W74: FALSE
B76: Debt Issues | F76: Pct Tot | G76: Pct Sculpt | H76: Target
C77: Other Debt | E77: =E8 -> 0 | F77: =E77/$E$81 -> 0
C78: Debt 1 | E78: =E37 -> 174.0263478 | F78: =E78/$E$81 -> 0.2999999995 | G78: =E78/$E$82 -> 0.2999999995 | H78: =E17 -> 0.3
C79: Debt 2 | E79: =E45 -> 203.03074 | F79: =E79/$E$81 -> 0.350000001 | G79: =E79/$E$82 -> 0.350000001 | H79: =E21 -> 0.35
C80: Debt 3 | E80: =E53 -> 203.0307391 | F80: =E80/$E$81 -> 0.3499999995 | G80: =E80/$E$82 -> 0.3499999995 | H80: =E25 -> 0.35
D81: Total | E81: =SUM(E77:E80) -> 580.0878269 | F81: =E81/$E$81 -> 1
D82: Sculpted | E82: =SUM(E78:E80) -> 580.0878269

Sheet Circular Resolve
D1: Period | G1: 0 | I1: 1 | J1: 2 | K1: 3 | L1: 4 | M1: 5 | N1: 6 | O1: 7 | P1: 8 | Q1: 9 | R1: 10 | S1: 11 | T1: 12 | U1: 13 | V1: 14 | W1: 15
B2: CFADS | I2: 100 | J2: 100 | K2: 100 | L2: 100 | M2: 100 | N2: 100 | O2: 100 | P2: 100 | Q2: 100 | R2: 100 | S2: 100 | T2: 100 | U2: 100 | V2: 100 | W2: 100
B3: DSCR Target | E3: 1.75
B4: Max Debt to Capital | E4: 0.6
B5: Total Project Cost | E5: 900
B6: Non-Sculpted Debt Service | I6: 0 | J6: =I6 -> 0 | K6: =J6 -> 0 | L6: =K6 -> 0 | M6: =L6 -> 0 | N6: =M6 -> 0
B7: Interest Rate | E7: 0 | H7: DSCR =CFADS/(SDS+ODS) | K7: LLCR =NPV(CFADS)/Debt | N7: LLCR =NPV(CFADS)/(Odebt + Sdebt)
B8: NPV of Debt Service | E8: =NPV(E7,I6:W6) -> 0 | H8: SDS =CFADS/DSCR - ODS | K8: ALCR =NPV(CFADS - CFADS/DSCR)/Debt
B10: Max Tenor | E10: =MAX(E18,E22,E26) -> 14 | F10: =_xlfn.FORMULATEXT(E10) -> =MAX(E18,E22,E26)
B11: Aggregate Switch | I11: =I1<=$E$10 -> TRUE | J11: TRUE | K11: TRUE | L11: TRUE | M11: TRUE | N11: TRUE | O11: TRUE | P11: TRUE | Q11: TRUE | R11: TRUE | S11: TRUE | T11: TRUE | U11: TRUE | V11: TRUE | W11: FALSE
B12: Total Debt Service for Sculpting | E12: =E3 -> 1.75 | F12: Fixed | I12: =I2/$E$12*I11 -> 57.14285714 | J12: 57.14285714 | K12: 57.14285714 | L12: 57.14285714 | M12: 57.14285714 | N12: 57.14285714 | O12: 57.14285714 | P12: 57.14285714 | Q12: 57.14285714 | R12: 57.14285714 | S12: 57.14285714 | T12: 57.14285714 | U12: 57.14285714 | V12: 57.14285714 | W12: 0
B13: IRR on Sculpted Debt | E13: =E72 -> 0.05079939177 | F13: =H85 -> 0.05079939589 | G13: =F13-E13 -> 4.115469299e-09
B14: NPV of Total Debt Service | E14: =NPV(F13,I12:W12) -> 562.7566991 | F14: =_xlfn.FORMULATEXT(E14) -> =NPV(F13,I12:W12)
B16: Debt 1
C17: Percent | E17: 0.22 | F17: =E17*E14 -> 123.8064738 | G17: =_xlfn.FORMULATEXT(F17) -> =E17*E14
C18: Tenor | E18: 12
C19: Interest Rate | E19: 0.03 | I19: 0.03 | J19: 0.03 | K19: 0.03 | L19: 0.03 | M19: 0.03 | N19: 0.03 | O19: 0.03 | P19: 0.03 | Q19: 0.03 | R19: 0.03 | S19: 0.03 | T19: 0.03 | U19: 0.03 | V19: 0.03 | W19: 0.03
B20: Debt 2
C21: Amount | E21: =1-E17-E25 -> 0.33 | F21: =E21*E14 -> 185.7097107 | G21: =_xlfn.FORMULATEXT(F21) -> =E21*E14
C22: Tenor | E22: 14
C23: Interest Rate | E23: 0.05 | I23: 0.05 | J23: 0.05 | K23: 0.05 | L23: 0.05 | M23: 0.05 | N23: 0.05 | O23: 0.05 | P23: 0.05 | Q23: 0.05 | R23: 0.05 | S23: 0.05 | T23: 0.05 | U23: 0.05 | V23: 0.05 | W23: 0.05
B24: Debt 3
C25: Amount | E25: 0.45 | F25: =E25*E14 -> 253.2405146 | G25: =_xlfn.FORMULATEXT(F25) -> =E25*E14
C26: Tenor | E26: 14
C27: Interest Rate | E27: 0.06 | I27: 0.06 | J27: 0.06 | K27: 0.06 | L27: 0.06 | M27: 0.06 | N27: 0.06 | O27: 0.06 | P27: 0.06 | Q27: 0.06 | R27: 0.06 | S27: 0.06 | T27: 0.06 | U27: 0.06 | V27: 0.06 | W27: 0.06
B29: Total CFADS | I29: =I2 -> 100 | J29: 100 | K29: 100 | L29: 100 | M29: 100 | N29: 100 | O29: 100 | P29: 100 | Q29: 100 | R29: 100 | S29: 100 | T29: 100 | U29: 100 | V29: 100 | W29: 100
B30: Other Debt Service | I30: =I6 -> 0 | J30: 0 | K30: 0 | L30: 0 | M30: 0 | N30: 0 | O30: 0 | P30: 0 | Q30: 0 | R30: 0 | S30: 0 | T30: 0 | U30: 0 | V30: 0 | W30: 0
B31: Total Sculpted Debt Service | E31: =E3 -> 1.75 | I31: =I29/$E$31-I30 -> 57.14285714 | J31: =J29/$E$31-J30 -> 57.14285714 | K31: 57.14285714 | L31: 57.14285714 | M31: 57.14285714 | N31: 57.14285714 | O31: 57.14285714 | P31: 57.14285714 | Q31: 57.14285714 | R31: 57.14285714 | S31: 57.14285714 | T31: 57.14285714 | U31: 57.14285714 | V31: 57.14285714 | W31: 57.14285714
B33: Issue 1: Percent | E33: =E18 -> 12 | I33: =I1<=$E33 -> TRUE | J33: TRUE | K33: TRUE | L33: TRUE | M33: TRUE | N33: TRUE | O33: TRUE | P33: TRUE | Q33: TRUE | R33: TRUE | S33: TRUE | T33: TRUE | U33: FALSE | V33: FALSE | W33: FALSE
B34: Other Debt Service
B35: Debt Service | E35: =E40 -> 8.039970518 | I35: =IF($E35>1,(I29/$E$35-I34)*I33,0) -> 12.43785655 | J35: =IF($E35>1,(J29/$E$35-J34)*J33,0) -> 12.43785655 | K35: 12.43785655 | L35: 12.43785655 | M35: 12.43785655 | N35: 12.43785655 | O35: 12.43785655 | P35: 12.43785655 | Q35: 12.43785655 | R35: 12.43785655 | S35: 12.43785655 | T35: 12.43785655 | U35: 0 | V35: 0 | W35: 0
B36: CFADS Adjusted | I36: =I29 -> 100 | J36: =J29 -> 100 | K36: 100 | L36: 100 | M36: 100 | N36: 100 | O36: 100 | P36: 100 | Q36: 100 | R36: 100 | S36: 100 | T36: 100 | U36: 100 | V36: 100 | W36: 100
B37: PV Debt Service (Check) | E37: =NPV(F37,I35:W35) -> 123.8064738 | F37: =I19 -> 0.03 | G37: =_xlfn.FORMULATEXT(E37) -> =NPV(F37,I35:W35)
B38: PV CF | E38: =NPV(F37,I36:W36*I33:W33) -> 995.4003994 | G38: =_xlfn.FORMULATEXT(E38) -> {=NPV(F37,I36:W36*I33:W33)}
B39: Debt 1 | E39: =F17 -> 123.8064738 | G39: =_xlfn.FORMULATEXT(E39) -> =F17
B40: LLCR 1 | E40: =IF(E39,E38/E39,0.000000001) -> 8.039970518 | G40: =_xlfn.FORMULATEXT(E40) -> =IF(E39,E38/E39,0.000000001)
B42: Issue 2: Percent | E42: =E22 -> 14 | I42: =I1<=$E42 -> TRUE | J42: TRUE | K42: TRUE | L42: TRUE | M42: TRUE | N42: TRUE | O42: TRUE | P42: TRUE | Q42: TRUE | R42: TRUE | S42: TRUE | T42: TRUE | U42: TRUE | V42: TRUE | W42: FALSE
B43: Other Debt Service | I43: =I35+I51 -> 39.68271427 | J43: =J35+J51 -> 39.68271427 | K43: 39.68271427 | L43: =L35+L51 -> 39.68271427 | M43: 39.68271427 | N43: 39.68271427 | O43: 39.68271427 | P43: 39.68271427 | Q43: 39.68271427 | R43: 39.68271427 | S43: 39.68271427 | T43: 39.68271427 | U43: 27.24485772 | V43: 27.24485772 | W43: 0
B44: Debt Service | E44: =E3 -> 1.75 | I44: =(I29/$E$44-I43)*I42 -> 17.46014287 | J44: 17.46014287 | K44: 17.46014287 | L44: 17.46014287 | M44: 17.46014287 | N44: 17.46014287 | O44: 17.46014287 | P44: 17.46014287 | Q44: 17.46014287 | R44: 17.46014287 | S44: 17.46014287 | T44: 17.46014287 | U44: 29.89799942 | V44: 29.89799942 | W44: 0
B45: PV Debt Service | E45: =NPV(F45,I44:W44) -> 185.7097087 | F45: =I23 -> 0.05 | G45: =_xlfn.FORMULATEXT(E45) -> =NPV(F45,I44:W44)
B46: Target | E46: =F21 -> 185.7097107 | G46: =_xlfn.FORMULATEXT(E46) -> =F21
B47: Difference | E47: =E46-E45 -> 2.029294166e-06 | G47: =_xlfn.FORMULATEXT(E47) -> =E46-E45
B49: Issue 3: Percent | E49: =E26 -> 14 | I49: =I1<=$E$49 -> TRUE | J49: TRUE | K49: TRUE | L49: TRUE | M49: TRUE | N49: TRUE | O49: TRUE | P49: TRUE | Q49: TRUE | R49: TRUE | S49: TRUE | T49: TRUE | U49: TRUE | V49: TRUE | W49: FALSE
B50: Other Debt Service
B51: Debt Service | E51: =E56 -> 3.670417406 | I51: =IF($E$51,I49*I29/$E$51) -> 27.24485772 | J51: =IF($E$51,J49*J29/$E$51) -> 27.24485772 | K51: 27.24485772 | L51: 27.24485772 | M51: 27.24485772 | N51: 27.24485772 | O51: 27.24485772 | P51: 27.24485772 | Q51: 27.24485772 | R51: 27.24485772 | S51: 27.24485772 | T51: 27.24485772 | U51: 27.24485772 | V51: 27.24485772 | W51: 0
B52: Other CFADS
B53: PV Debt Service (Check) | E53: =NPV(F53,I51:W51) -> 253.2405146 | F53: =I27 -> 0.06 | G53: =_xlfn.FORMULATEXT(E53) -> =NPV(F53,I51:W51)
B54: PV CF | E54: =NPV(F53,I29:W29*I49:W49) -> 929.4983927 | G54: =_xlfn.FORMULATEXT(E54) -> {=NPV(F53,I29:W29*I49:W49)}
B55: Debt 3 | E55: =F25 -> 253.2405146 | G55: =_xlfn.FORMULATEXT(E55) -> =F25
B56: LLCR 3 | E56: =IF(E55,E54/E55) -> 3.670417406 | G56: =_xlfn.FORMULATEXT(E56) -> =IF(E55,E54/E55)
A59: Check
B60: CFADS | I60: =I2 -> 100 | J60: 100 | K60: 100 | L60: 100 | M60: 100 | N60: 100 | O60: 100 | P60: 100 | Q60: 100 | R60: 100 | S60: 100 | T60: 100 | U60: 100 | V60: 100 | W60: 100
B62: Debt Service Other
B63: Debt Service 1 | I63: =I35 -> 12.43785655 | J63: 12.43785655 | K63: 12.43785655 | L63: 12.43785655 | M63: 12.43785655 | N63: 12.43785655 | O63: 12.43785655 | P63: 12.43785655 | Q63: 12.43785655 | R63: 12.43785655 | S63: 12.43785655 | T63: 12.43785655 | U63: 0 | V63: 0 | W63: 0
B64: Debt Service 2 | I64: =I44 -> 17.46014287 | J64: 17.46014287 | K64: 17.46014287 | L64: 17.46014287 | M64: 17.46014287 | N64: 17.46014287 | O64: 17.46014287 | P64: 17.46014287 | Q64: 17.46014287 | R64: 17.46014287 | S64: 17.46014287 | T64: 17.46014287 | U64: 29.89799942 | V64: 29.89799942 | W64: 0
B65: Debt Service 3 | I65: =I51 -> 27.24485772 | J65: =J51 -> 27.24485772 | K65: 27.24485772 | L65: 27.24485772 | M65: 27.24485772 | N65: 27.24485772 | O65: 27.24485772 | P65: 27.24485772 | Q65: 27.24485772 | R65: 27.24485772 | S65: 27.24485772 | T65: 27.24485772 | U65: 27.24485772 | V65: 27.24485772 | W65: 0
C66: Total Debt Service | I66: =SUM(I62:I65) -> 57.14285714 | J66: 57.14285714 | K66: 57.14285714 | L66: 57.14285714 | M66: 57.14285714 | N66: 57.14285714 | O66: 57.14285714 | P66: 57.14285714 | Q66: 57.14285714 | R66: 57.14285714 | S66: 57.14285714 | T66: 57.14285714 | U66: 57.14285714 | V66: 57.14285714 | W66: 0
H68: =E45+E39+E55 -> 562.7566971 | I68: computed debt
H69: =H86 -> 562.7567139 | I69: fixed debt | L69: =fixed_debt-computed_debt -> 1.679905733e-05 | M69: diff2
B71: Sculpted Cash Flow | H71: =-H69 -> -562.7567139 | I71: =SUM(I63:I65) -> 57.14285714 | J71: =SUM(J63:J65) -> 57.14285714 | K71: 57.14285714 | L71: 57.14285714 | M71: 57.14285714 | N71: 57.14285714 | O71: 57.14285714 | P71: 57.14285714 | Q71: 57.14285714 | R71: 57.14285714 | S71: 57.14285714 | T71: 57.14285714 | U71: 57.14285714 | V71: 57.14285714 | W71: 0
B72: Sculpted IRR | E72: =IRR(H71:W71) -> 0.05079939177
B74: DSCR | I74: =IF(I66,I60/I66) -> 1.75 | J74: =IF(J66,J60/J66) -> 1.75 | K74: 1.75 | L74: =IF(L66,L60/L66) -> 1.75 | M74: 1.75 | N74: 1.75 | O74: 1.75 | P74: 1.75 | Q74: 1.75 | R74: 1.75 | S74: 1.75 | T74: 1.75 | U74: 1.75 | V74: 1.75 | W74: FALSE
B76: Debt Issues | F76: Pct Tot | G76: Pct Sculpt | H76: Target
C77: Other Debt | E77: =E8 -> 0 | F77: =E77/$E$81 -> 0
C78: Debt 1 | E78: =E37 -> 123.8064738 | F78: =E78/$E$81 -> 0.2200000008 | G78: =E78/$E$82 -> 0.2200000008 | H78: =E17 -> 0.22
C79: Debt 2 | E79: =E45 -> 185.7097087 | F79: =E79/$E$81 -> 0.3299999976 | G79: =E79/$E$82 -> 0.3299999976 | H79: =E21 -> 0.33
C80: Debt 3 | E80: =E53 -> 253.2405146 | F80: =E80/$E$81 -> 0.4500000016 | G80: =E80/$E$82 -> 0.4500000016 | H80: =E25 -> 0.45
D81: Total | E81: =SUM(E77:E80) -> 562.7566971 | F81: =E81/$E$81 -> 1
D82: Sculpted | E82: =SUM(E78:E80) -> 562.7566971
F85: Debt IRR | H85: =mult_sculpt(I2:W2,E3,E17,E18,E19,E21,E22,E23,E25,E26,E27) -> 0.05079939589 | I85: 0 | J85: 0 | K85: 0 | L85: 0 | M85: 0 | N85: 0 | O85: 0 | P85: 0 | Q85: 0 | R85: 0 | S85: 0 | T85: 0 | U85: 0 | V85: 0 | W85: 0
F86: Debt Balance | H86: 562.7567139 | I86: 0 | J86: 0 | K86: 0 | L86: 0 | M86: 0 | N86: 0 | O86: 0 | P86: 0 | Q86: 0 | R86: 0 | S86: 0 | T86: 0 | U86: 0 | V86: 0 | W86: 0
F87: Debt Cash Flow | H87: -562.7567139 | I87: 57.1428566 | J87: 57.1428566 | K87: 57.1428566 | L87: 57.1428566 | M87: 57.1428566 | N87: 57.1428566 | O87: 57.1428566 | P87: 57.1428566 | Q87: 57.1428566 | R87: 57.1428566 | S87: 57.1428566 | T87: 57.1428566 | U87: 57.1428566 | V87: 57.1428566 | W87: 0
F88: Debt Balance Issue | H88: 123.8064728 | I88: 185.7097168 | J88: 253.240509 | K88: 562.7567139 | L88: 0 | M88: 0 | N88: 0 | O88: 0 | P88: 0 | Q88: 0 | R88: 0 | S88: 0 | T88: 0 | U88: 0 | V88: 0 | W88: 0
F89: Cash Flow | H89: 100 | I89: 100 | J89: 100 | K89: 100 | L89: 100 | M89: 100 | N89: 100 | O89: 100 | P89: 100 | Q89: 100 | R89: 100 | S89: 100 | T89: 100 | U89: 100 | V89: 100 | W89: 0
F90: Overall Debt Service | H90: 57.1428566 | I90: 57.1428566 | J90: 57.1428566 | K90: 57.1428566 | L90: 57.1428566 | M90: 57.1428566 | N90: 57.1428566 | O90: 57.1428566 | P90: 57.1428566 | Q90: 57.1428566 | R90: 57.1428566 | S90: 57.1428566 | T90: 57.1428566 | U90: 57.1428566 | V90: 0 | W90: 0
F91: Non-Capture DS | H91: 39.68271255 | I91: 39.68271255 | J91: 39.68271255 | K91: 39.68271255 | L91: 39.68271255 | M91: 39.68271255 | N91: 39.68271255 | O91: 39.68271255 | P91: 39.68271255 | Q91: 39.68271255 | R91: 39.68271255 | S91: 39.68271255 | T91: 27.24485779 | U91: 27.24485779 | V91: 0 | W91: 0
F92: DS Capture | H92: 17.46014404 | I92: 17.46014404 | J92: 17.46014404 | K92: 17.46014404 | L92: 17.46014404 | M92: 17.46014404 | N92: 17.46014404 | O92: 17.46014404 | P92: 17.46014404 | Q92: 17.46014404 | R92: 17.46014404 | S92: 17.46014404 | T92: 29.89799881 | U92: 29.89799881 | V92: 0 | W92: 0
F93: LLCR | H93: 8.039970398 | I93: 0 | J93: 3.670417547 | K93: 0 | L93: 995.4003906 | M93: 0 | N93: 929.4984131 | O93: 0 | P93: 0 | Q93: 0 | R93: 0 | S93: 0 | T93: 0 | U93: 0 | V93: 0 | W93: 0
H94: 0 | I94: 0 | J94: 0 | K94: 0 | L94: 0 | M94: 0 | N94: 0 | O94: 0 | P94: 0 | Q94: 0 | R94: 0 | S94: 0 | T94: 0 | U94: 0 | V94: 0 | W94: 0
H98: =IRR(H87:W87) -> 0.05079939028

Sheet LLCR and Formula Change Int
D1: Period | G1: 0 | I1: 1 | J1: 2 | K1: 3 | L1: 4 | M1: 5 | N1: 6 | O1: 7 | P1: 8 | Q1: 9 | R1: 10 | S1: 11 | T1: 12 | U1: 13 | V1: 14 | W1: 15
B2: CFADS | I2: 100 | J2: 100 | K2: 100 | L2: 100 | M2: 100 | N2: 100 | O2: 100 | P2: 100 | Q2: 100 | R2: 100 | S2: 100 | T2: 100 | U2: 100 | V2: 100 | W2: 100
B3: DSCR Target | E3: 1.75
B4: Max Debt to Capital | E4: 0.6
B5: Total Project Cost | E5: 900
B6: Non-Sculpted Debt Service | I6: =I101 -> 48 | J6: =J101 -> 46.4 | K6: 44.8 | L6: 43.2 | M6: 41.6 | N6: 0 | O6: 0 | P6: 0 | Q6: 0 | R6: 0 | S6: 0 | T6: 0 | U6: 0 | V6: 0 | W6: 0
B7: Interest Rate | E7: 0.04 | H7: DSCR =CFADS/(SDS+ODS) | K7: LLCR =NPV(CFADS)/Debt | N7: LLCR =NPV(CFADS)/(Odebt + Sdebt)
B8: NPV of Debt Service | E8: =NPV(E7,I6:W6) -> 200 | H8: SDS =CFADS/DSCR - ODS | K8: ALCR =NPV(CFADS - CFADS/DSCR)/Debt
B9: Percent of Total Debt | E9: =E8/E15 -> 0.3182867738
B11: Max Tenor | E11: =MAX(E20,E24,E28) -> 14 | F11: =_xlfn.FORMULATEXT(E11) -> =MAX(E20,E24,E28)
B12: Aggregate Switch | I12: =I1<=$E$11 -> TRUE | J12: TRUE | K12: TRUE | L12: TRUE | M12: TRUE | N12: TRUE | O12: TRUE | P12: TRUE | Q12: TRUE | R12: TRUE | S12: TRUE | T12: TRUE | U12: TRUE | V12: TRUE | W12: FALSE
B13: Total Debt Service for Sculpting | E13: =E3 -> 1.75 | F13: Fixed | I13: =I2/$E$13*I12 -> 57.14285714 | J13: 57.14285714 | K13: 57.14285714 | L13: 57.14285714 | M13: 57.14285714 | N13: 57.14285714 | O13: 57.14285714 | P13: 57.14285714 | Q13: 57.14285714 | R13: 57.14285714 | S13: 57.14285714 | T13: 57.14285714 | U13: 57.14285714 | V13: 57.14285714 | W13: 0
B14: IRR on Sculpted Debt | E14: =E77 -> 0.03396987312 | F14: 0.03396987312 | G14: =F14-E14 -> -2.220446049e-16
B15: NPV of Total Debt Service | E15: =NPV(F14,I13:W13) -> 628.3641561 | F15: =_xlfn.FORMULATEXT(E15) -> =NPV(F14,I13:W13)
B16: Sculpted Debt | E16: =E15-E8 -> 428.3641561
B18: Debt 1
C19: Percent of Total Debt | E19: 0.1 | F19: =E19*E15 -> 62.83641561
C20: Tenor | E20: 12
C21: Interest Rate | I21: 0.03 | J21: =I21+0.005 -> 0.035 | K21: =J21+0.005 -> 0.04 | L21: =K21+0.005 -> 0.045 | M21: =L21+0.005 -> 0.05 | N21: =M21+0.005 -> 0.055 | O21: =N21 -> 0.055 | P21: =O21 -> 0.055 | Q21: 0.055 | R21: 0.055 | S21: 0.055 | T21: 0.055 | U21: 0.055 | V21: 0.055 | W21: 0.055
B22: Debt 2
C23: Percent of Toal Debt | E23: =1-E9-E19-E27 -> 0.4717132262 | F23: =E23*E15 -> 296.4076833
C24: Tenor | E24: 14
C25: Interest Rate | I25: 0.02 | J25: 0.02 | K25: =J25+0.003 -> 0.023 | L25: 0.026 | M25: 0.029 | N25: 0.032 | O25: 0.035 | P25: =O25 -> 0.035 | Q25: =P25 -> 0.035 | R25: 0.035 | S25: 0.035 | T25: 0.035 | U25: 0.035 | V25: 0.035 | W25: 0.035
B26: Debt 3
C27: Amount | E27: 0.11 | F27: =E27*E15 -> 69.12005718
C28: Tenor | E28: 10
C29: Interest Rate | I29: 0.04 | J29: =I29+0.005 -> 0.045 | K29: =J29+0.005 -> 0.05 | L29: 0.055 | M29: 0.06 | N29: 0.065 | O29: 0.07 | P29: 0.075 | Q29: 0.08 | R29: 0.085 | S29: 0.09 | T29: 0.095 | U29: 0.1 | V29: 0.105 | W29: 0.11
B31: Total CFADS | I31: =I2 -> 100 | J31: 100 | K31: 100 | L31: 100 | M31: 100 | N31: 100 | O31: 100 | P31: 100 | Q31: 100 | R31: 100 | S31: 100 | T31: 100 | U31: 100 | V31: 100 | W31: 100
B32: Other Debt Service | I32: =I6 -> 48 | J32: 46.4 | K32: 44.8 | L32: 43.2 | M32: 41.6 | N32: 0 | O32: 0 | P32: 0 | Q32: 0 | R32: 0 | S32: 0 | T32: 0 | U32: 0 | V32: 0 | W32: 0
B33: Total Sculpted Debt Service | E33: =E3 -> 1.75 | I33: =I31/$E$33-I32 -> 9.142857143 | J33: =J31/$E$33-J32 -> 10.74285714 | K33: 12.34285714 | L33: 13.94285714 | M33: 15.54285714 | N33: 57.14285714 | O33: 57.14285714 | P33: 57.14285714 | Q33: 57.14285714 | R33: 57.14285714 | S33: 57.14285714 | T33: 57.14285714 | U33: 57.14285714 | V33: 57.14285714 | W33: 57.14285714
B35: Issue 1: Percent | E35: =E20 -> 12 | I35: =I1<=$E35 -> TRUE | J35: TRUE | K35: TRUE | L35: TRUE | M35: TRUE | N35: TRUE | O35: TRUE | P35: TRUE | Q35: TRUE | R35: TRUE | S35: TRUE | T35: TRUE | U35: FALSE | V35: FALSE | W35: FALSE
C36: Other Debt Service
C37: Debt Service | E37: =E43 -> 14.58954918 | I37: =IF($E37>1,(I31/$E$37-I36)*I35,0) -> 6.854221385 | J37: =IF($E37>1,(J31/$E$37-J36)*J35,0) -> 6.854221385 | K37: 6.854221385 | L37: 6.854221385 | M37: 6.854221385 | N37: 6.854221385 | O37: 6.854221385 | P37: 6.854221385 | Q37: 6.854221385 | R37: 6.854221385 | S37: 6.854221385 | T37: 6.854221385 | U37: 0 | V37: 0 | W37: 0
C38: CFADS Adjusted | I38: =I31 -> 100 | J38: =J31 -> 100 | K38: 100 | L38: 100 | M38: 100 | N38: 100 | O38: 100 | P38: 100 | Q38: 100 | R38: 100 | S38: 100 | T38: 100 | U38: 100 | V38: 100 | W38: 100
C39: Interest Rate Index | H39: 1 | I39: =H39*(1+I21) -> 1.03 | J39: =I39*(1+J21) -> 1.06605 | K39: 1.108692 | L39: 1.15858314 | M39: 1.216512297 | N39: 1.283420473 | O39: 1.354008599 | P39: 1.428479072 | Q39: 1.507045421 | R39: 1.589932919 | S39: 1.67737923 | T39: 1.769635088 | U39: 1.866965018 | V39: 1.969648093 | W39: 2.077978739
C40: PV Debt Service | E40: =SUMPRODUCT(I37:W37*I35:W35/I39:W39) -> 62.83641561 | G40: =E40-E42 -> 0
C41: PV CF | E41: =SUMPRODUCT(I38:W38*I35:W35/I39:W39) -> 916.7549761
C42: Debt 1 | E42: =F19 -> 62.83641561
C43: LLCR 1 | E43: =IF(E42,E41/E42,0.000000001) -> 14.58954918
B45: Issue 2: Percent | E45: =E24 -> 14 | I45: =I1<=$E45 -> TRUE | J45: TRUE | K45: TRUE | L45: TRUE | M45: TRUE | N45: TRUE | O45: TRUE | P45: TRUE | Q45: TRUE | R45: TRUE | S45: TRUE | T45: TRUE | U45: TRUE | V45: TRUE | W45: FALSE
C46: Other Debt Service | I46: =I37+I55+I6 -> 63.98074028 | J46: =J37+J55+J6 -> 62.38074028 | K46: 60.78074028 | L46: 59.18074028 | M46: 57.58074028 | N46: 15.98074028 | O46: 15.98074028 | P46: 15.98074028 | Q46: 15.98074028 | R46: 15.98074028 | S46: 6.854221385 | T46: 6.854221385 | U46: 0 | V46: 0 | W46: 0
C47: Debt Service | E47: =E3 -> 1.75 | I47: =(I31/$E$47-I46)*I45 -> -6.837883135 | J47: -5.237883135 | K47: -3.637883135 | L47: -2.037883135 | M47: -0.4378831349 | N47: 41.16211687 | O47: 41.16211687 | P47: 41.16211687 | Q47: 41.16211687 | R47: 41.16211687 | S47: 50.28863576 | T47: 50.28863576 | U47: 57.14285714 | V47: 57.14285714 | W47: 0
C48: Interest Rate Index | H48: 1 | I48: =H48*(1+I25) -> 1.02 | J48: =I48*(1+J25) -> 1.0404 | K48: 1.0643292 | L48: 1.092001759 | M48: 1.12366981 | N48: 1.159627244 | O48: 1.200214198 | P48: 1.242221695 | Q48: 1.285699454 | R48: 1.330698935 | S48: 1.377273398 | T48: 1.425477966 | U48: 1.475369695 | V48: 1.527007635 | W48: 1.580452902
C49: PV Debt Service | E49: =SUMPRODUCT(I47:W47*I45:W45/I48:W48) -> 296.4076839
C50: Target | E50: =F23 -> 296.4076833
C51: Difference | E51: =E50-E49 -> -5.401216185e-07
B53: Issue 3: Percent | E53: =E28 -> 10 | I53: =I1<=$E$53 -> TRUE | J53: TRUE | K53: TRUE | L53: TRUE | M53: TRUE | N53: TRUE | O53: TRUE | P53: TRUE | Q53: TRUE | R53: TRUE | S53: FALSE | T53: FALSE | U53: FALSE | V53: FALSE | W53: FALSE
C54: Other Debt Service
C55: Debt Service | E55: =E61 -> 10.95708026 | I55: =IF($E$55,I53*I31/$E$55) -> 9.126518893 | J55: =IF($E$55,J53*J31/$E$55) -> 9.126518893 | K55: 9.126518893 | L55: 9.126518893 | M55: 9.126518893 | N55: 9.126518893 | O55: 9.126518893 | P55: 9.126518893 | Q55: 9.126518893 | R55: 9.126518893 | S55: 0 | T55: 0 | U55: 0 | V55: 0 | W55: 0
C56: Other CFADS
C57: Interest Rate Index | H57: 1 | I57: =H57*(1+I29) -> 1.04 | J57: =I57*(1+J29) -> 1.0868 | K57: 1.14114 | L57: 1.2039027 | M57: 1.276136862 | N57: 1.359085758 | O57: 1.454221761 | P57: 1.563288393 | Q57: 1.688351465 | R57: 1.831861339 | S57: 1.99672886 | T57: 2.186418101 | U57: 2.405059911 | V57: 2.657591202 | W57: 2.949926234
C58: PV Debt Service | E58: =SUMPRODUCT(I55:W55*I53:W53/I57:W57) -> 69.12005718
C59: PV CF | E59: =SUMPRODUCT(I31:W31*I53:W53/I57:W57) -> 757.354014
C60: Debt 3 | E60: =F27 -> 69.12005718
C61: LLCR 3 | E61: =IF(E60,E59/E60) -> 10.95708026
A64: Check
B65: CFADS | I65: =I2 -> 100 | J65: 100 | K65: 100 | L65: 100 | M65: 100 | N65: 100 | O65: 100 | P65: 100 | Q65: 100 | R65: 100 | S65: 100 | T65: 100 | U65: 100 | V65: 100 | W65: 100
B67: Debt Service Other | I67: =I6 -> 48 | J67: =J6 -> 46.4 | K67: 44.8 | L67: 43.2 | M67: 41.6 | N67: 0 | O67: 0 | P67: 0 | Q67: 0 | R67: 0 | S67: 0 | T67: 0 | U67: 0 | V67: 0 | W67: 0
B68: Debt Service 1 | I68: =I37 -> 6.854221385 | J68: 6.854221385 | K68: 6.854221385 | L68: 6.854221385 | M68: 6.854221385 | N68: 6.854221385 | O68: 6.854221385 | P68: 6.854221385 | Q68: 6.854221385 | R68: 6.854221385 | S68: 6.854221385 | T68: 6.854221385 | U68: 0 | V68: 0 | W68: 0
B69: Debt Service 2 | I69: =I47 -> -6.837883135 | J69: -5.237883135 | K69: -3.637883135 | L69: -2.037883135 | M69: -0.4378831349 | N69: 41.16211687 | O69: 41.16211687 | P69: 41.16211687 | Q69: 41.16211687 | R69: 41.16211687 | S69: 50.28863576 | T69: 50.28863576 | U69: 57.14285714 | V69: 57.14285714 | W69: 0
B70: Debt Service 3 | I70: =I55 -> 9.126518893 | J70: =J55 -> 9.126518893 | K70: 9.126518893 | L70: 9.126518893 | M70: 9.126518893 | N70: 9.126518893 | O70: 9.126518893 | P70: 9.126518893 | Q70: 9.126518893 | R70: 9.126518893 | S70: 0 | T70: 0 | U70: 0 | V70: 0 | W70: 0
C71: Total Debt Service | I71: =SUM(I67:I70) -> 57.14285714 | J71: =SUM(J67:J70) -> 57.14285714 | K71: 57.14285714 | L71: 57.14285714 | M71: 57.14285714 | N71: 57.14285714 | O71: 57.14285714 | P71: 57.14285714 | Q71: 57.14285714 | R71: 57.14285714 | S71: 57.14285714 | T71: 57.14285714 | U71: 57.14285714 | V71: 57.14285714 | W71: 0
H73: =E49+E42+E60+E90 -> 628.3641567 | I73: computed debt
H74: 628.3641561 | I74: fixed debt | L74: =fixed_debt-computed_debt -> -5.391265177e-07 | M74: diff2
B76: Sculpted Cash Flow | H76: =-H74 -> -628.3641561 | I76: =SUM(I67:I70) -> 57.14285714 | J76: =SUM(J67:J70) -> 57.14285714 | K76: 57.14285714 | L76: 57.14285714 | M76: 57.14285714 | N76: 57.14285714 | O76: 57.14285714 | P76: 57.14285714 | Q76: 57.14285714 | R76: 57.14285714 | S76: 57.14285714 | T76: 57.14285714 | U76: 57.14285714 | V76: 57.14285714 | W76: 0
B77: Sculpted IRR | E77: =IRR(76:76) -> 0.03396987312
B79: DSCR | I79: =IF(I71,I65/I71) -> 1.75 | J79: =IF(J71,J65/J71) -> 1.75 | K79: 1.75 | L79: 1.75 | M79: 1.75 | N79: 1.75 | O79: 1.75 | P79: 1.75 | Q79: 1.75 | R79: 1.75 | S79: 1.75 | T79: 1.75 | U79: 1.75 | V79: 1.75 | W79: FALSE
B81: Debt Issues | F81: Pct Tot | G81: Pct Sculpt | H81: Target
C82: Other Debt | E82: =E8 -> 200 | F82: =E82/$E$86 -> 0.3182867735
C83: Debt 1 | E83: =E40 -> 62.83641561 | F83: =E83/$E$86 -> 0.09999999991 | G83: =E83/$E$87 -> 0.1466892471 | H83: =E19 -> 0.1
C84: Debt 2 | E84: =E49 -> 296.4076839 | F84: =E84/$E$86 -> 0.4717132267 | G84: =E84/$E$87 -> 0.6919525812 | H84: =E23 -> 0.4717132262
C85: Debt 3 | E85: =E58 -> 69.12005718 | F85: =E85/$E$86 -> 0.1099999999 | G85: =E85/$E$87 -> 0.1613581718 | H85: =E27 -> 0.11
D86: Total | E86: =SUM(E82:E85) -> 628.3641567 | F86: =E86/$E$86 -> 1
D87: Sculpted | E87: =SUM(E83:E85) -> 428.3641567
A89: Other Debt Service
B90: Debt Balance | E90: 200
B91: Interest Rate | E91: =E7 -> 0.04
B92: Repayment Percent | I92: =1/5 -> 0.2 | J92: =1/5 -> 0.2 | K92: =1/5 -> 0.2 | L92: =1/5 -> 0.2 | M92: =1/5 -> 0.2
B93: Repayment Amount | I93: =I92*$E$90 -> 40 | J93: =J92*$E$90 -> 40 | K93: =K92*$E$90 -> 40 | L93: =L92*$E$90 -> 40 | M93: =M92*$E$90 -> 40
B95: Balance
B96: Opening | I96: =H98 -> 200 | J96: =I98 -> 160 | K96: =J98 -> 120 | L96: =K98 -> 80 | M96: =L98 -> 40
B97: Repayment | I97: =I93 -> 40 | J97: =J93 -> 40 | K97: =K93 -> 40 | L97: =L93 -> 40 | M97: =M93 -> 40
B98: Closing | H98: =E90 -> 200 | I98: =I96-I97 -> 160 | J98: =J96-J97 -> 120 | K98: =K96-K97 -> 80 | L98: =L96-L97 -> 40 | M98: =M96-M97 -> 0
B100: Interest | I100: =I96*$E$91 -> 8 | J100: =J96*$E$91 -> 6.4 | K100: =K96*$E$91 -> 4.8 | L100: =L96*$E$91 -> 3.2 | M100: =M96*$E$91 -> 1.6
B101: Debt Service | I101: =I100+I97 -> 48 | J101: =J100+J97 -> 46.4 | K101: =K100+K97 -> 44.8 | L101: =L100+L97 -> 43.2 | M101: =M100+M97 -> 41.6
